Workbook

Sheet GİRİŞ
A1: ÇOCUK KULÜBÜ İŞLEM ADIMLARI | J1: Okul Adı | L1: ................... Anaokulu
A2: S.N. | B2: İŞLEM | C2: DÖNEM | D2: ŞABLON (Çift Tıklayınız.) | J2: İli | K2: İlçesi | L2: MUĞLA | N2: KÖYCEĞİZ
A3: 1 | B3: Okul Aile Birliği Hesabı altında alt hesap açınız. | C3: PLANLAMA ÖNCESİ | J3: Okul Müdürü
A4: 2 | B4: Çocuk Kulübü Yönetim Kurulu ve Etkinlik/Personel Planlaması yaparak olur alınız. Olur ekinde kulüpte görev alacak öğretmen/usta öğretici ve personelin yeterlilik evraklarını ekleyiniz | C4: EYLÜL AYI | J4: Müdür Yardımcısı
A5: 3 | B5: Güncel Dönem Maaş Aylık Katsayısı ve Brüt Aylıkları "Anasayfa"ya girerek 1 saatlik ücreti belirleyiniz. | C5: OCAK TEMMUZ | D5: GÜNCEL KATSAYILAR
A6: 4 | B6: Öğrenci kayıtlarını alınız. EK-1, EK-2, EK3 Formlar ile öğrenci özlük föylerini oluşturunuz. E-okul işlemlerini tamamlaynız. | C6: EYLÜL AYI | J6: 1 Saatlik Ücret | L6: =ANASAYFA!J10 -> 17.84 | M6: Günlük Etkinlik Saati | O6: =ANASAYFA!L6 -> 0
A7: 5 | B7: Görevli Öğretmen/Ücretli Usta Öğreticiye ait föy dosyası oluşturunuz. (Diploma, Kurs Bitirme Belgesi, …) Görevli yardımcı personelin işe girişi kulüp bünyesinde ise föy oluşturunuz (Sözleşme,Sağlık raporu, sicil kaydı, …) | J7: KULÜP AYLIK AİDAT HESAP ÇİZELGESİ (VELİ BİLGİLENDİRME)
A8: 6 | B8: ANASAYFA'da tüm GRİ alanları eksiksiz doldurarak cari ay için planlamanızı gerçekleştiriniz. | C8: HER AY BAŞI | J8: Ay | L8: İş Günü | N8: Aylık Ücret | Q8: Versiyon 1.0
A9: 7 | B9: Mevcut ay içinde aidat yatırılmaması kaynaklı BANKA HESABI ile TAHMİNİ BÜTÇE arasında fark var ise BANKA HESABINA YATAN tutarı ilgili alana giriniz. | C9: AYLIK | J9: Eylül | L9: 15 | N9: =$L$6*$O$6*$L9 -> 0 | Q9: 2023-10-01
A10: 8 | B10: Temel Giderler Bütçesinden yapmış olduğunuz aylık harcamaları (Temizlik, Materyal vb.) TEMEL GİDER HARCAMA TUTARI alanına giriniz. | C10: AYLIK | J10: Ekim | L10: 22 | N10: 0
A11: 9 | B11: Yardımcı personel ücretinin tümü kulüp bütçesinden karşılanıyor ise (Yönerge 16/2); bu personele yapılan ödeme farkını TEMEL GİDER KASASINDAN ÖDENEN PERSONEL ÖDEME FARKI alanına giriniz. | C11: AYLIK | J11: Kasım | L11: 17 | N11: 0
A12: 10 | B12: Her ayın 1-23'ü arası bir önceki ayın Muhtasar Beyanname girişi/ödemesi yapınız. Stopaj gibi kalemler nedeniyle fark oluşması halinde toplam ödenen tutarı SGK VE VERGİ ÖDEMELERİ FARKI alanına giriniz. | C12: AYLIK | J12: Aralık | L12: 21 | N12: 0
A13: 11 | B13: Banka Talimat yazısı yazarak, ekinde banka listesi ile personel ödemelerini gerçekleştiriniz. Ödeme dekontunu aylık bilanço föyüne ekleyiniz. | C13: AYLIK | J13: Ocak | L13: 14 | N13: 0
A14: 12 | B14: Kadrolu personel Vergi Matrahlarını Üst Yazı ekinde İlçe Milli Eğitim Müdürlüğü Destek/Strateji Şubesine vergi matrahlarının güncellenmesi için gönderiniz. | C14: AYLIK | J14: Şubat | L14: 19 | N14: 0
A15: 13 | B15: Bordro, banka listesi, bilanço, kişi bordroları, vergi matrahı çıktılarını alarak Aylık Kulüp Bilanço föyünü hazırlayınız. | C15: AYLIK | D15: BORDRO | E15: BANKA LİSTESİ | F15: BİLANÇO | G15: KİŞİ BORDRO | H15: VERGİ MATRAHI | J15: Mart | L15: 21 | N15: 0
A16: 14 | B16: 6-7-8-9-10-11. ALANLARDAKİ İŞLEMLERİ SIRASIYLA AYLIK OLARAK TEKRAR EDİNİZ. | C16: AYLIK | J16: Nisan | L16: 21 | N16: 0
A17: 15 | B17: Kulüp Dönemi sonunda Temel Giderler Kasasında kalan tüm miktarı, okul aile birliği ana hesabına aktarınız. | C17: HAZİRAN AĞUSTOS | J17: Mayıs | L17: 22 | N17: 0
A18: Programla ilgili tüm işlevleri kullanabilmek için bilgisayarınızda makroları etkinleştirmeniz gerekebilir. Dosya > Seçenekler > Güven Merkezi > Güven Merkezi Ayarları > Makro Ayarları > İzin Ver | C18: M.E.B. ÇOCUK KULÜPLERİ YÖNERGESİ | J18: Haziran | L18: 10 | N18: 0
A19: Program bilgi amaçlı hazırlanmıştır. Kesin hesaplar için muhasebecinize başvurunuz. | J19: 1. DÖNEM SABİT ÜCRET | L19: =AVERAGE(N9:O13) -> 0 | M19: 2. DÖNEM SABİT ÜCRET | O19: =AVERAGE(N14:O18) -> 0

Sheet ANASAYFA
B2: ÇOCUK KULÜBÜ MUHASEBE PROGRAMI
B3: Güncel Dönem Maaş Aylık Katsayısı | D3: En Yüksek Devlet Memuru Brüt Aylığı | F3: Güncel Dönem Brüt Asgari Ücret | H3: Gündüz Öğretimi Göstergesi | J3: Kulüpte Yemek Verilecek Mi? | L3: Günlük Etkinlik Saat Sayısı | N3: DÖNEM SEÇİNİZ | O3: Kulüp Faaliyeti Yapılan İş Günü | P3: Grup (Sınıf) Sayısı | Q3: Toplam Öğrenci Sayısı | R3: %50 İndirimli Çocuk Sayısı | S3: Ücretsiz Faydalanan Çocuk Sayısı | T3: KATSAYILARI GÜNCELLE | U3: M. Orhan DURUM Muğla - Köyceğiz orhandurum@gmail.com
N5: 2023
B6: 0.509796 | D6: =9500*B6 -> 4843.062 | F6: 13414.5 | H6: 140 | J6: Evet | N6: KASIM | T6: SIFIRLA | U6: KULLANIM KILAVUZU
B8: Günlük Toplam Ders Yükü | D8: Aylık Toplam Ders Yükü (Koord. Dahil) | F8: Belirlenebilecek En Az Saat Ücreti | H8: Belirlenebilecek En Yüksek Saat Ücreti | J8: Okulun Belirlediği 1 Saatlik Ücret | L8: Toplanan Aidat, Bütçeden; | O8: BÜTÇE | Q8: İLİ | R8: İLÇESİ | S8: MUĞLA | U8: KÖYCEĞİZ
L9: FARKLI MI | M9: TOPLANAN MİKTAR | Q9: Okul Adı | T9: KÖYCEĞİZ ANAOKULU
J10: 17.84 | L10: AYNI | O10: =KAYNAK!G15 -> 0 | Q10: Okul Müdürü
B11: =P6*L6 -> 0 | D11: =(B11*KAYNAK!G6)+KAYNAK!C80 -> 0 | F11: =(B6*140)/10 -> 7.137144 | H11: =(B6*140)/KAYNAK!A5 -> 17.84286 | Q11: Müdür Yardımcısı
B13: PERSONEL BİLGİLERİ | U13: AY SONU TEMEL GİDER HARCAMA TUTARI (Temizlik, Kırtasiye, Okulun Diğer İhtiyaçları vb.)
C14: Personel Adı Soyadı* | G14: Görevi* | I14: Kadro Durumu* | K14: Aylık Ders Saati | L14: Koord. | M14: Vergi Dilimi* | N14: Rapor/İzin Gün Sayısı | O14: T.C. Kimlik No | Q14: IBAN
B15: 1
B16: 2
B17: 3
B18: 4 | U18: Temel Gider Kasasından Personele Ek Ödeme Yapıldıysa; Ek Ödenen Tutar. (Yönerge 16/2)
B19: 5
B20: 6
B21: 7
B22: 8
B23: 9
B24: 10 | U24: SGK ve Vergi Ödemelerinde Stopaj vb Farkı
B25: 11
B26: 12 | U26: HESAPLANAN TUTAR | V26: TOPLAM ÖDENEN TUTAR
B27: 13
B28: 14
B29: 15 | U29: =BİLANÇO!L40 -> 0
B30: KONTROL : | D30: TOPLAM DERS YÜKÜ | G30: =D11 -> 0 | I30: =_xlfn.IFS(K30=D11,"TUTARLI",K30>D11,"FAZLA",K30<D11,"EKSİK") -> TUTARLI | K30: =SUM(K15:L29)-KAYNAK!AR23 -> 0 | M30: =IF(I30="TUTARLI","TUTARLI",IF(I30="EKSİK","PLANLAMADA -EKSİK- DERS SAATİ GİRİLMİŞ",IF(I30="FAZLA","PLANLAMADA -FAZLA- DERS SAATİ GİRİLMİŞ"))) -> TUTARLI

Sheet BORDRO
B2: CARİ DÖNEM | D2: =KAYNAK!G2 -> KASIM | E2: =KAYNAK!G3 -> 2023 | F2: GİDER KALEMLERİ ÖZET TABLOSU | P2: Yönerge Doğrultusunda Görevlendirilebilecek Kişilerin Brüt Ücret Üst Oranları ve Ödenebilecek Brüt Ücret Üst Tutarları | W2: PERSONEL GİDERLERİ SONRASI TEMEL GİDER KASA DURUMU
B3: GİDER KALEMİ | F3: Pay | G3: Paydaki Tutar (Oransal) | I3: Kullanılabilir Tutar (Üst Limite Göre) | K3: Net Ödenen Tutar | L3: Temel gİdere Aktarılan
B4: Temel Giderler | F4: 0.33 | G4: =KAYNAK!$G$15/100*33 -> 0 | I4: =G4 -> 0 | K4: =I4 -> 0 | L4: SGK-Vergi | M4: Limit Üstü | V4: 1 | W4: Oransal Pay | X4: =G4 -> 0
B5: Kulüp Yönetim Kurulu Başkanı (Müdür) | F5: 0.07 | G5: =KAYNAK!$G$15/100*7 -> 0 | I5: =SUMIF(E17:E31,KAYNAK!F16,L17:L31) -> 0 | K5: =SUMIF(E17:E31,KAYNAK!F16,X17:X31) -> 0 | L5: =IF(K5=0,0,G5-K5-M5-IF(U17="",0,U17)) -> 0 | M5: =G5-I5 -> 0 | Q5: Müdür - Koord. Öğrt. | R5: Müdür Yardımcısı | S5: Kadrolu Öğretmen | T5: Ücretli Usta Öğretici | U5: Temizlik Muhasebe | V5: 2 | W5: Üst limitlerden Aktarılan | X5: =M10 -> 
B6: Kulüp Yönetim Kurulu Bşk. Yrd. (Müdür Yrd.) | F6: 0.05 | G6: =KAYNAK!$G$15/100*5 -> 0 | I6: =SUMIF(E17:E31,KAYNAK!F17,L17:L31)+SUMIF(E17:E31,KAYNAK!F18,L17:L31) -> 0 | K6: =(IF(KAYNAK!N53>KAYNAK!K45,0,SUM(SUMIF(E17:CEE31,KAYNAK!F17,X17:X31),(SUMIF(E17:E31,KAYNAK!F18,X17:X31))))) ->  | L6: =IF(K6=0,0,I6-K6-IF(U18="",0,U18)) ->  | M6: =IF(K6=0,G6,G6-I6) ->  | V6: 3 | W6: SGK/Vergi Kişi Kesinti | X6: =L10 -> 
B7: Öğretmen-Usta Öğretici-Koordinatör (Toplam) | F7: 0.49 | G7: =KAYNAK!$G$15/100*49 -> 0 | I7: =(SUMIF(E17:E31,KAYNAK!F19,L17:L31)+(SUMIF(BORDRO!E17:E31,KAYNAK!F20,L17:L31)+(SUMIF(BORDRO!E17:E31,KAYNAK!F23,L17:L31)+IF(AND(K6=0,E18=KAYNAK!F17),SUMIF(BORDRO!E17:E31,KAYNAK!F17,L17:L31),0)+IF(AND(K6=0,E18=KAYNAK!F18),SUMIF(BORDRO!E17:E31,KAYNAK!F18,L17:L31))))) ->  | K7: =(SUMIF(E17:E31,KAYNAK!F19,X17:X31)+(SUMIF(BORDRO!E17:E31,KAYNAK!F20,X17:X31)+(SUMIF(BORDRO!E17:E31,KAYNAK!F23,X17:X31)+IF(AND(E18=KAYNAK!F17,KAYNAK!N53>KAYNAK!K45),BORDRO!X18)))) ->  | L7: =SUM(SUMIF(E17:E31,KAYNAK!F19,N17:O31)+SUMIF(E17:E31,KAYNAK!F19,P17:P31)+SUMIF(E17:E31,KAYNAK!F19,Q17:Q31)+SUMIF(E17:E31,KAYNAK!F19,R17:R31))+SUMIF(E17:E31,KAYNAK!F20,BORDRO!N17:O31)+SUMIF(E17:E31,KAYNAK!F20,BORDRO!P17:P31)+SUMIF(E17:E31,KAYNAK!F20,BORDRO!Q17:Q31)+SUMIF(E17:E31,KAYNAK!F20,BORDRO!R17:R31)+SUMIF(E17:E31,KAYNAK!F23,BORDRO!N17:O31)+SUMIF(E17:E31,KAYNAK!F23,BORDRO!P17:P31)+SUMIF(E17:E31,KAYNAK!F23,BORDRO!Q17:Q31)+SUMIF(E17:E31,KAYNAK!F23,BORDRO!R17:R31)+IF(AND(E18=KAYNAK!F17,KAYNAK!N53>KAYNAK!K45),N18,0)+IF(AND(E18=KAYNAK!F17,KAYNAK!N53>KAYNAK!K45),P18,0)+IF(AND(E18=KAYNAK!F17,KAYNAK!N53>KAYNAK!K45),IF(Q18="",0),0)+IF(AND(E18=KAYNAK!F17,KAYNAK!N53>KAYNAK!K45),IF(R18="",0),0)+IF(AND(E18=KAYNAK!F18,KAYNAK!N53>KAYNAK!K45),N18,0)+IF(AND(E18=KAYNAK!F18,KAYNAK!N53>KAYNAK!K45),P18)+IF(AND(E18=KAYNAK!F18,KAYNAK!N53>KAYNAK!K45),IF(Q18="",0),0+IF(AND(E18=KAYNAK!F18,KAYNAK!N53>KAYNAK!K45),IF(R18="",0),0)) ->  | M7: =G7-I7 ->  | P7: Oran | Q7: 1.1 | R7: 0.85 | S7: 1.2 | T7: 2.3 | U7: 0.8 | V7: 4 | W7: Rapor kesinti aktarımı | X7: =SUM(U17:U31) -> 0
B8: Yazışma-Muhasebe İşlerini Yürüten Personel | F8: 0.02 | G8: =KAYNAK!$G$15/100*2 -> 0 | I8: =SUMIF(E17:E31,KAYNAK!F22,L17:L31) -> 0 | K8: =SUMIF(E17:E31,KAYNAK!F22,X17:X31) -> 0 | L8: =SUM(SUMIF(E17:E31,KAYNAK!F22,N17:O31)+SUMIF(E17:E31,KAYNAK!F22,P17:P31)+SUMIF(E17:E31,KAYNAK!F22,Q17:Q31)+SUMIF(E17:E31,KAYNAK!F22,R17:R31)) -> 0 | M8: =G8-I8 -> 0 | W8: ARA TOPLAM | X8: =X4+X5+X6 -> 
B9: Temizlik, Bakım ve Beslenme İşlerini Yürüten Pers. | F9: 0.04 | G9: =KAYNAK!$G$15/100*4 -> 0 | I9: =SUMIF(E17:E31,KAYNAK!F21,L17:L31) -> 0 | K9: =SUMIF(E17:E31,KAYNAK!F21,X17:X31) -> 0 | L9: =SUM(SUMIF(E17:E31,KAYNAK!F21,N17:O31)+SUMIF(E17:E31,KAYNAK!F21,P17:P31)+SUMIF(E17:E31,KAYNAK!F21,Q17:Q31)+SUMIF(E17:E31,KAYNAK!F21,R17:R31)) -> 0 | M9: =G9-I9 -> 0 | V9: 5 | W9: Yaklaşık Vergi ve SGK Ödemeleri (İşçi + İşveren) | X9: =V32+W32-U32 -> 0
B10: TOPLAM | F10: =SUM(F4:F9) -> 1 | G10: =SUM(G4:H9) -> 0 | I10: =SUM(I4:J9) ->  | K10: =SUM(K4:K9) ->  | L10: =SUM(L5:L9) ->  | M10: =SUM(M5:M9) ->  | P10: Tutar | Q10: =KAYNAK!$A$23*1.1 -> 5327.3682 | R10: =KAYNAK!$A$23*0.85 -> 4116.6027 | S10: =KAYNAK!$A$23*1.2 -> 5811.6744 | T10: =KAYNAK!$A$23*2.3 -> 11139.0426 | U10: =KAYNAK!$A$23*0.8 -> 3874.4496
L11: =SUM(L10:M10) ->  | V11: 6 | W11: ÖDEMELER SONRASI KASA | X11: =X8-X9 -> 
L12: TEMEL GİDERE İLAVE
B14: PERSONEL BİLGİLERİ | K14: HAKEDİŞLER | N14: KESİNTİLER | V14: MALİYET TOPLAMI | X14: NET TUTAR
B15: Personel Adı Soyadı | E15: Görevi | F15: Kadro Durumu | G15: Saat | H15: Koordinatör | I15: TOPLAM | J15: GELİR VERGİ DİLİMİ | K15: BRÜT TUTAR (KAZANÇ + İŞVEREN SGK PRİM) | L15: KAZANÇ TOPLAMI (PAY LİMİT HAKEDİŞ) | M15: GELİR VERGİSİ MATRAHI (KAZANÇ - İŞÇİ PRİM) | N15: Damga Vergisi | P15: Gelir Vergisi | Q15: Sgk İşçi Payı | R15: İşs. Sig. İşçi Payı | S15: SGK İşveren Payı | T15: İşs. Sig. İşveren Payı | U15: İzin Rapor Kesintisi | V15: PERSONELDEN KESİNTİ TOPLAMI | W15: TEMEL GİDER KALEMİNDEN İŞVERENE MALİYETİ (%20,5+%2) | X15: NET ÖDENECEK ÜCRET
Q16: 0.14 | R16: 0.01 | S16: 0.205 | T16: 0.02
B17: =KAYNAK!I24 ->  | E17: =KAYNAK!L24 ->  | F17: =KAYNAK!M24 ->  | G17: =_xlfn.IFS(E17=" "," ",BORDRO!E17:E17=KAYNAK!$F$16,"",AND(E17=KAYNAK!$F$17,ANASAYFA!L15>0),0,BORDRO!E17:E17=KAYNAK!$F$17,"",AND(E17=KAYNAK!$F$18,ANASAYFA!L15>0),0,BORDRO!E17:E17=KAYNAK!$F$18,"",BORDRO!E17=KAYNAK!$F$21,"",BORDRO!E17=KAYNAK!$F$22,"",BORDRO!E17=KAYNAK!$F$19,ANASAYFA!K15,BORDRO!E17=KAYNAK!$F$20,ANASAYFA!K15,E17=KAYNAK!$F$23,ANASAYFA!K15) ->  | H17: =_xlfn.IFS(E17=" "," ",BORDRO!E17:E17=KAYNAK!$F$16,"",AND(BORDRO!E17:E17=KAYNAK!$F$17,ANASAYFA!L15=""),"",AND(BORDRO!E17:E17=KAYNAK!$F$17,ANASAYFA!L15>0),ANASAYFA!L15,AND(BORDRO!E17:E17=KAYNAK!$F$17,ANASAYFA!L15<0),0,AND(BORDRO!E17:E17=KAYNAK!$F$17,ANASAYFA!L15=0),0,AND(BORDRO!E17:E17=KAYNAK!$F$18,ANASAYFA!L15=""),"",AND(BORDRO!E17:E17=KAYNAK!$F$18,ANASAYFA!L15>0),ANASAYFA!L15,AND(BORDRO!E17:E17=KAYNAK!$F$18,ANASAYFA!L15<0),0,AND(BORDRO!E17:E17=KAYNAK!$F$18,ANASAYFA!L15=0),0,BORDRO!E17=KAYNAK!$F$21,"",BORDRO!E17=KAYNAK!$F$22,"",BORDRO!E17=KAYNAK!$F$19,ANASAYFA!L15,BORDRO!E17=KAYNAK!$F$20,ANASAYFA!L15,E17=KAYNAK!$F$23,ANASAYFA!L15) ->  | I17: =IFERROR(G17+H17,"") ->  | J17: =IF(ANASAYFA!M15="","",ANASAYFA!M15) ->  | K17: =IFERROR(L17+S17+T17,L17) ->  | L17: =_xlfn.IFS(E17=" "," ",BORDRO!E17=KAYNAK!$F$16,KAYNAK!$K$44,AND(E17=KAYNAK!$F$17,KAYNAK!N52>KAYNAK!K44),KAYNAK!N52,AND(E17=KAYNAK!$F$17,KAYNAK!K44>KAYNAK!N52),KAYNAK!K44,E17=KAYNAK!$F$18,KAYNAK!$K$45,BORDRO!E17=KAYNAK!$F$21,KAYNAK!$M$45,BORDRO!E17=KAYNAK!$F$22,KAYNAK!$K$46,BORDRO!E17=KAYNAK!$F$19,KAYNAK!N52,BORDRO!E17=KAYNAK!$F$20,KAYNAK!N52,E17=KAYNAK!$F$23,KAYNAK!N52) ->  | M17: =IFERROR(L17-Q17-R17,IFERROR(L17-U17,L17)) ->  | N17: =_xlfn.IFS(F17=" "," ",F17=KAYNAK!$G$16,IF(J17=KAYNAK!$F$34,0,(L17*759/100000)),F17=KAYNAK!$G$17,IF(J17=KAYNAK!$F$34,0,BORDRO!L17)/100000*759) ->  | P17: =_xlfn.IFS(J17="","",F17=KAYNAK!$G$16,M17*IF(J17=KAYNAK!$F$34,0,BORDRO!J17),F17=KAYNAK!$G$17,M17*IF(J17=KAYNAK!$F$34,0,BORDRO!J17)) ->  | Q17: =_xlfn.IFS(F17=" "," ",F17=KAYNAK!$G$16,"",F17=KAYNAK!$G$17,CEILING(L17/100*14,0.1)) ->  | R17: =_xlfn.IFS(F17=" "," ",F17=KAYNAK!$G$16,"",F17=KAYNAK!$G$17,CEILING(L17/100*1,0.1)) ->  | S17: =_xlfn.IFS(F17=" "," ",F17=KAYNAK!$G$16,"",F17=KAYNAK!$G$17,CEILING(L17/100*20.5,0.1)) ->  | T17: =_xlfn.IFS(F17=" "," ",F17=KAYNAK!$G$16,"",F17=KAYNAK!$G$17,CEILING(L17/100*2,0.1)) ->  | U17: =IFERROR(_xlfn.IFS(E17=KAYNAK!$F$19,"",E17=KAYNAK!$F$20,"",E17=KAYNAK!$F$23,"",ANASAYFA!N15>0,L17/30*ANASAYFA!N15),"") ->  | V17: =KAYNAK!D184 -> 0 | W17: =IFERROR(S17+T17,"") ->  | X17: =IFERROR(L17-V17,"") -> 
B18: =KAYNAK!I25 ->  | E18: =KAYNAK!L25 ->  | F18: =KAYNAK!M25 ->  | G18: =_xlfn.IFS(E18=" "," ",BORDRO!E18:E18=KAYNAK!$F$16,"",AND(E18=KAYNAK!$F$17,ANASAYFA!L16>0),0,BORDRO!E18:E18=KAYNAK!$F$17,"",AND(E18=KAYNAK!$F$18,ANASAYFA!L16>0),0,BORDRO!E18:E18=KAYNAK!$F$18,"",BORDRO!E18=KAYNAK!$F$21,"",BORDRO!E18=KAYNAK!$F$22,"",BORDRO!E18=KAYNAK!$F$19,ANASAYFA!K16,BORDRO!E18=KAYNAK!$F$20,ANASAYFA!K16,E18=KAYNAK!$F$23,ANASAYFA!K16) ->  | H18: =_xlfn.IFS(E18=" "," ",BORDRO!E18:E18=KAYNAK!$F$16,"",AND(BORDRO!E18:E18=KAYNAK!$F$17,ANASAYFA!L16=""),"",AND(BORDRO!E18:E18=KAYNAK!$F$17,ANASAYFA!L16>0),ANASAYFA!L16,AND(BORDRO!E18:E18=KAYNAK!$F$17,ANASAYFA!L16<0),0,AND(BORDRO!E18:E18=KAYNAK!$F$17,ANASAYFA!L16=0),0,AND(BORDRO!E18:E18=KAYNAK!$F$18,ANASAYFA!L16=""),"",AND(BORDRO!E18:E18=KAYNAK!$F$18,ANASAYFA!L16>0),ANASAYFA!L16,AND(BORDRO!E18:E18=KAYNAK!$F$18,ANASAYFA!L16<0),0,AND(BORDRO!E18:E18=KAYNAK!$F$18,ANASAYFA!L16=0),0,BORDRO!E18=KAYNAK!$F$21,"",BORDRO!E18=KAYNAK!$F$22,"",BORDRO!E18=KAYNAK!$F$19,ANASAYFA!L16,BORDRO!E18=KAYNAK!$F$20,ANASAYFA!L16,E18=KAYNAK!$F$23,ANASAYFA!L16) ->  | I18: =IFERROR(G18+H18,"") ->  | J18: =IF(ANASAYFA!M16="","",ANASAYFA!M16) ->  | K18: =IFERROR(L18+S18+T18,L18) ->  | L18: =_xlfn.IFS(E18=" "," ",BORDRO!E18=KAYNAK!$F$16,KAYNAK!$K$44,AND(E18=KAYNAK!$F$17,KAYNAK!N53>KAYNAK!K45),KAYNAK!N53,AND(E18=KAYNAK!$F$17,KAYNAK!K45>KAYNAK!N53),KAYNAK!K45,AND(E18=KAYNAK!$F$18,KAYNAK!N53>KAYNAK!K45),KAYNAK!N53,AND(E18=KAYNAK!$F$18,KAYNAK!K45>KAYNAK!N53),KAYNAK!K45,BORDRO!E18=KAYNAK!$F$21,KAYNAK!$M$45,BORDRO!E18=KAYNAK!$F$22,KAYNAK!$K$46,BORDRO!E18=KAYNAK!$F$19,KAYNAK!N53,BORDRO!E18=KAYNAK!$F$20,KAYNAK!N53,E18=KAYNAK!$F$23,KAYNAK!N53) ->  | M18: =IFERROR(L18-Q18-R18,IFERROR(L18-U18,L18)) ->  | N18: =_xlfn.IFS(F18=" "," ",F18=KAYNAK!$G$16,IF(J18=KAYNAK!$F$34,0,(L18*759/100000)),F18=KAYNAK!$G$17,IF(J18=KAYNAK!$F$34,0,BORDRO!L18)/100000*759) ->  | P18: =_xlfn.IFS(J18="","",F18=KAYNAK!$G$16,M18*IF(J18=KAYNAK!$F$34,0,BORDRO!J18),F18=KAYNAK!$G$17,M18*IF(J18=KAYNAK!$F$34,0,BORDRO!J18)) ->  | Q18: =_xlfn.IFS(F18=" "," ",F18=KAYNAK!$G$16,"",F18=KAYNAK!$G$17,CEILING(L18/100*14,0.1)) ->  | R18: =_xlfn.IFS(F18=" "," ",F18=KAYNAK!$G$16,"",F18=KAYNAK!$G$17,CEILING(L18/100*1,0.1)) ->  | S18: =_xlfn.IFS(F18=" "," ",F18=KAYNAK!$G$16,"",F18=KAYNAK!$G$17,CEILING(L18/100*20.5,0.1)) ->  | T18: =_xlfn.IFS(F18=" "," ",F18=KAYNAK!$G$16,"",F18=KAYNAK!$G$17,CEILING(L18/100*2,0.1)) ->  | U18: =IFERROR(_xlfn.IFS(E18=KAYNAK!$F$19,"",E18=KAYNAK!$F$20,"",E18=KAYNAK!$F$23,"",AND(KAYNAK!K45>KAYNAK!N53,ANASAYFA!N16>0),L18/30*ANASAYFA!N16),"") ->  | V18: =KAYNAK!D185 -> 0 | X18: =IFERROR(L18-V18,"") -> 
B19: =KAYNAK!I26 ->  | E19: =KAYNAK!L26 ->  | F19: =KAYNAK!M26 ->  | G19: =_xlfn.IFS(E19=" "," ",BORDRO!E19:E19=KAYNAK!$F$16,"",AND(E19=KAYNAK!$F$17,ANASAYFA!L17>0),0,BORDRO!E19:E19=KAYNAK!$F$17,"",AND(E19=KAYNAK!$F$18,ANASAYFA!L17>0),0,BORDRO!E19:E19=KAYNAK!$F$18,"",BORDRO!E19=KAYNAK!$F$21,"",BORDRO!E19=KAYNAK!$F$22,"",BORDRO!E19=KAYNAK!$F$19,ANASAYFA!K17,BORDRO!E19=KAYNAK!$F$20,ANASAYFA!K17,E19=KAYNAK!$F$23,ANASAYFA!K17) ->  | H19: =_xlfn.IFS(E19=" "," ",BORDRO!E19:E19=KAYNAK!$F$16,"",AND(BORDRO!E19:E19=KAYNAK!$F$17,ANASAYFA!L17=""),"",AND(BORDRO!E19:E19=KAYNAK!$F$17,ANASAYFA!L17>0),ANASAYFA!L17,AND(BORDRO!E19:E19=KAYNAK!$F$17,ANASAYFA!L17<0),0,AND(BORDRO!E19:E19=KAYNAK!$F$17,ANASAYFA!L17=0),0,AND(BORDRO!E19:E19=KAYNAK!$F$18,ANASAYFA!L17=""),"",AND(BORDRO!E19:E19=KAYNAK!$F$18,ANASAYFA!L17>0),ANASAYFA!L17,AND(BORDRO!E19:E19=KAYNAK!$F$18,ANASAYFA!L17<0),0,AND(BORDRO!E19:E19=KAYNAK!$F$18,ANASAYFA!L17=0),0,BORDRO!E19=KAYNAK!$F$21,"",BORDRO!E19=KAYNAK!$F$22,"",BORDRO!E19=KAYNAK!$F$19,ANASAYFA!L17,BORDRO!E19=KAYNAK!$F$20,ANASAYFA!L17,E19=KAYNAK!$F$23,ANASAYFA!L17) ->  | J19: =IF(ANASAYFA!M17="","",ANASAYFA!M17) ->  | L19: =_xlfn.IFS(E19=" "," ",BORDRO!E19=KAYNAK!$F$16,KAYNAK!$K$44,AND(E19=KAYNAK!$F$17,KAYNAK!N54>KAYNAK!K46),KAYNAK!N54,AND(E19=KAYNAK!$F$17,KAYNAK!K46>KAYNAK!N54),KAYNAK!K46,E19=KAYNAK!$F$18,KAYNAK!$K$45,BORDRO!E19=KAYNAK!$F$21,KAYNAK!$M$45,BORDRO!E19=KAYNAK!$F$22,KAYNAK!$K$46,BORDRO!E19=KAYNAK!$F$19,KAYNAK!N54,BORDRO!E19=KAYNAK!$F$20,KAYNAK!N54,E19=KAYNAK!$F$23,KAYNAK!N54) ->  | M19: =IFERROR(L19-Q19-R19,IFERROR(L19-U19,L19)) ->  | N19: =_xlfn.IFS(F19=" "," ",F19=KAYNAK!$G$16,IF(J19=KAYNAK!$F$34,0,(L19*759/100000)),F19=KAYNAK!$G$17,IF(J19=KAYNAK!$F$34,0,BORDRO!L19)/100000*759) ->  | P19: =_xlfn.IFS(J19="","",F19=KAYNAK!$G$16,M19*IF(J19=KAYNAK!$F$34,0,BORDRO!J19),F19=KAYNAK!$G$17,M19*IF(J19=KAYNAK!$F$34,0,BORDRO!J19)) ->  | Q19: =_xlfn.IFS(F19=" "," ",F19=KAYNAK!$G$16,"",F19=KAYNAK!$G$17,CEILING(L19/100*14,0.1)) ->  | R19: =_xlfn.IFS(F19=" "," ",F19=KAYNAK!$G$16,"",F19=KAYNAK!$G$17,CEILING(L19/100*1,0.1)) ->  | S19: =_xlfn.IFS(F19=" "," ",F19=KAYNAK!$G$16,"",F19=KAYNAK!$G$17,CEILING(L19/100*20.5,0.1)) ->  | T19: =_xlfn.IFS(F19=" "," ",F19=KAYNAK!$G$16,"",F19=KAYNAK!$G$17,CEILING(L19/100*2,0.1)) ->  | U19: =IFERROR(_xlfn.IFS(E19=KAYNAK!$F$19,"",E19=KAYNAK!$F$20,"",E19=KAYNAK!$F$23,"",ANASAYFA!N17>0,L19/30*ANASAYFA!N17),"") ->  | V19: =KAYNAK!D186 -> 0
B20: =KAYNAK!I27 ->  | E20: =KAYNAK!L27 ->  | F20: =KAYNAK!M27 ->  | G20: =_xlfn.IFS(E20=" "," ",BORDRO!E20:E20=KAYNAK!$F$16,"",AND(E20=KAYNAK!$F$17,ANASAYFA!L18>0),0,BORDRO!E20:E20=KAYNAK!$F$17,"",AND(E20=KAYNAK!$F$18,ANASAYFA!L18>0),0,BORDRO!E20:E20=KAYNAK!$F$18,"",BORDRO!E20=KAYNAK!$F$21,"",BORDRO!E20=KAYNAK!$F$22,"",BORDRO!E20=KAYNAK!$F$19,ANASAYFA!K18,BORDRO!E20=KAYNAK!$F$20,ANASAYFA!K18,E20=KAYNAK!$F$23,ANASAYFA!K18) ->  | H20: =_xlfn.IFS(E20=" "," ",BORDRO!E20:E20=KAYNAK!$F$16,"",AND(BORDRO!E20:E20=KAYNAK!$F$17,ANASAYFA!L18=""),"",AND(BORDRO!E20:E20=KAYNAK!$F$17,ANASAYFA!L18>0),ANASAYFA!L18,AND(BORDRO!E20:E20=KAYNAK!$F$17,ANASAYFA!L18<0),0,AND(BORDRO!E20:E20=KAYNAK!$F$17,ANASAYFA!L18=0),0,AND(BORDRO!E20:E20=KAYNAK!$F$18,ANASAYFA!L18=""),"",AND(BORDRO!E20:E20=KAYNAK!$F$18,ANASAYFA!L18>0),ANASAYFA!L18,AND(BORDRO!E20:E20=KAYNAK!$F$18,ANASAYFA!L18<0),0,AND(BORDRO!E20:E20=KAYNAK!$F$18,ANASAYFA!L18=0),0,BORDRO!E20=KAYNAK!$F$21,"",BORDRO!E20=KAYNAK!$F$22,"",BORDRO!E20=KAYNAK!$F$19,ANASAYFA!L18,BORDRO!E20=KAYNAK!$F$20,ANASAYFA!L18,E20=KAYNAK!$F$23,ANASAYFA!L18) ->  | J20: =IF(ANASAYFA!M18="","",ANASAYFA!M18) ->  | L20: =_xlfn.IFS(E20=" "," ",BORDRO!E20=KAYNAK!$F$16,KAYNAK!$K$44,AND(E20=KAYNAK!$F$17,KAYNAK!N55>KAYNAK!K47),KAYNAK!N55,AND(E20=KAYNAK!$F$17,KAYNAK!K47>KAYNAK!N55),KAYNAK!K47,E20=KAYNAK!$F$18,KAYNAK!$K$45,BORDRO!E20=KAYNAK!$F$21,KAYNAK!$M$45,BORDRO!E20=KAYNAK!$F$22,KAYNAK!$K$46,BORDRO!E20=KAYNAK!$F$19,KAYNAK!N55,BORDRO!E20=KAYNAK!$F$20,KAYNAK!N55,E20=KAYNAK!$F$23,KAYNAK!N55) ->  | N20: =_xlfn.IFS(F20=" "," ",F20=KAYNAK!$G$16,IF(J20=KAYNAK!$F$34,0,(L20*759/100000)),F20=KAYNAK!$G$17,IF(J20=KAYNAK!$F$34,0,BORDRO!L20)/100000*759) ->  | P20: =_xlfn.IFS(J20="","",F20=KAYNAK!$G$16,M20*IF(J20=KAYNAK!$F$34,0,BORDRO!J20),F20=KAYNAK!$G$17,M20*IF(J20=KAYNAK!$F$34,0,BORDRO!J20)) ->  | Q20: =_xlfn.IFS(F20=" "," ",F20=KAYNAK!$G$16,"",F20=KAYNAK!$G$17,CEILING(L20/100*14,0.1)) ->  | R20: =_xlfn.IFS(F20=" "," ",F20=KAYNAK!$G$16,"",F20=KAYNAK!$G$17,CEILING(L20/100*1,0.1)) ->  | S20: =_xlfn.IFS(F20=" "," ",F20=KAYNAK!$G$16,"",F20=KAYNAK!$G$17,CEILING(L20/100*20.5,0.1)) ->  | T20: =_xlfn.IFS(F20=" "," ",F20=KAYNAK!$G$16,"",F20=KAYNAK!$G$17,CEILING(L20/100*2,0.1)) ->  | U20: =IFERROR(_xlfn.IFS(E20=KAYNAK!$F$19,"",E20=KAYNAK!$F$20,"",E20=KAYNAK!$F$23,"",ANASAYFA!N18>0,L20/30*ANASAYFA!N18),"") ->  | V20: =KAYNAK!D187 -> 0
B21: =KAYNAK!I28 ->  | E21: =KAYNAK!L28 ->  | F21: =KAYNAK!M28 ->  | G21: =_xlfn.IFS(E21=" "," ",BORDRO!E21:E21=KAYNAK!$F$16,"",AND(E21=KAYNAK!$F$17,ANASAYFA!L19>0),0,BORDRO!E21:E21=KAYNAK!$F$17,"",AND(E21=KAYNAK!$F$18,ANASAYFA!L19>0),0,BORDRO!E21:E21=KAYNAK!$F$18,"",BORDRO!E21=KAYNAK!$F$21,"",BORDRO!E21=KAYNAK!$F$22,"",BORDRO!E21=KAYNAK!$F$19,ANASAYFA!K19,BORDRO!E21=KAYNAK!$F$20,ANASAYFA!K19,E21=KAYNAK!$F$23,ANASAYFA!K19) ->  | H21: =_xlfn.IFS(E21=" "," ",BORDRO!E21:E21=KAYNAK!$F$16,"",AND(BORDRO!E21:E21=KAYNAK!$F$17,ANASAYFA!L19=""),"",AND(BORDRO!E21:E21=KAYNAK!$F$17,ANASAYFA!L19>0),ANASAYFA!L19,AND(BORDRO!E21:E21=KAYNAK!$F$17,ANASAYFA!L19<0),0,AND(BORDRO!E21:E21=KAYNAK!$F$17,ANASAYFA!L19=0),0,AND(BORDRO!E21:E21=KAYNAK!$F$18,ANASAYFA!L19=""),"",AND(BORDRO!E21:E21=KAYNAK!$F$18,ANASAYFA!L19>0),ANASAYFA!L19,AND(BORDRO!E21:E21=KAYNAK!$F$18,ANASAYFA!L19<0),0,AND(BORDRO!E21:E21=KAYNAK!$F$18,ANASAYFA!L19=0),0,BORDRO!E21=KAYNAK!$F$21,"",BORDRO!E21=KAYNAK!$F$22,"",BORDRO!E21=KAYNAK!$F$19,ANASAYFA!L19,BORDRO!E21=KAYNAK!$F$20,ANASAYFA!L19,E21=KAYNAK!$F$23,ANASAYFA!L19) ->  | J21: =IF(ANASAYFA!M19="","",ANASAYFA!M19) ->  | L21: =_xlfn.IFS(E21=" "," ",BORDRO!E21=KAYNAK!$F$16,KAYNAK!$K$44,AND(E21=KAYNAK!$F$17,KAYNAK!N56>KAYNAK!K48),KAYNAK!N56,AND(E21=KAYNAK!$F$17,KAYNAK!K48>KAYNAK!N56),KAYNAK!K48,E21=KAYNAK!$F$18,KAYNAK!$K$45,BORDRO!E21=KAYNAK!$F$21,KAYNAK!$M$45,BORDRO!E21=KAYNAK!$F$22,KAYNAK!$K$46,BORDRO!E21=KAYNAK!$F$19,KAYNAK!N56,BORDRO!E21=KAYNAK!$F$20,KAYNAK!N56,E21=KAYNAK!$F$23,KAYNAK!N56) ->  | N21: =_xlfn.IFS(F21=" "," ",F21=KAYNAK!$G$16,IF(J21=KAYNAK!$F$34,0,(L21*759/100000)),F21=KAYNAK!$G$17,IF(J21=KAYNAK!$F$34,0,BORDRO!L21)/100000*759) ->  | P21: =_xlfn.IFS(J21="","",F21=KAYNAK!$G$16,M21*IF(J21=KAYNAK!$F$34,0,BORDRO!J21),F21=KAYNAK!$G$17,M21*IF(J21=KAYNAK!$F$34,0,BORDRO!J21)) ->  | Q21: =_xlfn.IFS(F21=" "," ",F21=KAYNAK!$G$16,"",F21=KAYNAK!$G$17,CEILING(L21/100*14,0.1)) ->  | R21: =_xlfn.IFS(F21=" "," ",F21=KAYNAK!$G$16,"",F21=KAYNAK!$G$17,CEILING(L21/100*1,0.1)) ->  | S21: =_xlfn.IFS(F21=" "," ",F21=KAYNAK!$G$16,"",F21=KAYNAK!$G$17,CEILING(L21/100*20.5,0.1)) ->  | T21: =_xlfn.IFS(F21=" "," ",F21=KAYNAK!$G$16,"",F21=KAYNAK!$G$17,CEILING(L21/100*2,0.1)) ->  | U21: =IFERROR(_xlfn.IFS(E21=KAYNAK!$F$19,"",E21=KAYNAK!$F$20,"",E21=KAYNAK!$F$23,"",ANASAYFA!N19>0,L21/30*ANASAYFA!N19),"") ->  | V21: =KAYNAK!D188 -> 0
B22: =KAYNAK!I29 ->  | E22: =KAYNAK!L29 ->  | F22: =KAYNAK!M29 ->  | G22: =_xlfn.IFS(E22=" "," ",BORDRO!E22:E22=KAYNAK!$F$16,"",AND(E22=KAYNAK!$F$17,ANASAYFA!L20>0),0,BORDRO!E22:E22=KAYNAK!$F$17,"",AND(E22=KAYNAK!$F$18,ANASAYFA!L20>0),0,BORDRO!E22:E22=KAYNAK!$F$18,"",BORDRO!E22=KAYNAK!$F$21,"",BORDRO!E22=KAYNAK!$F$22,"",BORDRO!E22=KAYNAK!$F$19,ANASAYFA!K20,BORDRO!E22=KAYNAK!$F$20,ANASAYFA!K20,E22=KAYNAK!$F$23,ANASAYFA!K20) ->  | H22: =_xlfn.IFS(E22=" "," ",BORDRO!E22:E22=KAYNAK!$F$16,"",AND(BORDRO!E22:E22=KAYNAK!$F$17,ANASAYFA!L20=""),"",AND(BORDRO!E22:E22=KAYNAK!$F$17,ANASAYFA!L20>0),ANASAYFA!L20,AND(BORDRO!E22:E22=KAYNAK!$F$17,ANASAYFA!L20<0),0,AND(BORDRO!E22:E22=KAYNAK!$F$17,ANASAYFA!L20=0),0,AND(BORDRO!E22:E22=KAYNAK!$F$18,ANASAYFA!L20=""),"",AND(BORDRO!E22:E22=KAYNAK!$F$18,ANASAYFA!L20>0),ANASAYFA!L20,AND(BORDRO!E22:E22=KAYNAK!$F$18,ANASAYFA!L20<0),0,AND(BORDRO!E22:E22=KAYNAK!$F$18,ANASAYFA!L20=0),0,BORDRO!E22=KAYNAK!$F$21,"",BORDRO!E22=KAYNAK!$F$22,"",BORDRO!E22=KAYNAK!$F$19,ANASAYFA!L20,BORDRO!E22=KAYNAK!$F$20,ANASAYFA!L20,E22=KAYNAK!$F$23,ANASAYFA!L20) ->  | J22: =IF(ANASAYFA!M20="","",ANASAYFA!M20) ->  | L22: =_xlfn.IFS(E22=" "," ",BORDRO!E22=KAYNAK!$F$16,KAYNAK!$K$44,AND(E22=KAYNAK!$F$17,KAYNAK!N57>KAYNAK!K49),KAYNAK!N57,AND(E22=KAYNAK!$F$17,KAYNAK!K49>KAYNAK!N57),KAYNAK!K49,E22=KAYNAK!$F$18,KAYNAK!$K$45,BORDRO!E22=KAYNAK!$F$21,KAYNAK!$M$45,BORDRO!E22=KAYNAK!$F$22,KAYNAK!$K$46,BORDRO!E22=KAYNAK!$F$19,KAYNAK!N57,BORDRO!E22=KAYNAK!$F$20,KAYNAK!N57,E22=KAYNAK!$F$23,KAYNAK!N57) ->  | N22: =_xlfn.IFS(F22=" "," ",F22=KAYNAK!$G$16,IF(J22=KAYNAK!$F$34,0,(L22*759/100000)),F22=KAYNAK!$G$17,IF(J22=KAYNAK!$F$34,0,BORDRO!L22)/100000*759) ->  | P22: =_xlfn.IFS(J22="","",F22=KAYNAK!$G$16,M22*IF(J22=KAYNAK!$F$34,0,BORDRO!J22),F22=KAYNAK!$G$17,M22*IF(J22=KAYNAK!$F$34,0,BORDRO!J22)) ->  | Q22: =_xlfn.IFS(F22=" "," ",F22=KAYNAK!$G$16,"",F22=KAYNAK!$G$17,CEILING(L22/100*14,0.1)) ->  | R22: =_xlfn.IFS(F22=" "," ",F22=KAYNAK!$G$16,"",F22=KAYNAK!$G$17,CEILING(L22/100*1,0.1)) ->  | S22: =_xlfn.IFS(F22=" "," ",F22=KAYNAK!$G$16,"",F22=KAYNAK!$G$17,CEILING(L22/100*20.5,0.1)) ->  | T22: =_xlfn.IFS(F22=" "," ",F22=KAYNAK!$G$16,"",F22=KAYNAK!$G$17,CEILING(L22/100*2,0.1)) ->  | U22: =IFERROR(_xlfn.IFS(E22=KAYNAK!$F$19,"",E22=KAYNAK!$F$20,"",E22=KAYNAK!$F$23,"",ANASAYFA!N20>0,L22/30*ANASAYFA!N20),"") ->  | V22: =KAYNAK!D189 -> 0
B23: =KAYNAK!I30 ->  | E23: =KAYNAK!L30 ->  | F23: =KAYNAK!M30 ->  | G23: =_xlfn.IFS(E23=" "," ",BORDRO!E23:E23=KAYNAK!$F$16,"",AND(E23=KAYNAK!$F$17,ANASAYFA!L21>0),0,BORDRO!E23:E23=KAYNAK!$F$17,"",AND(E23=KAYNAK!$F$18,ANASAYFA!L21>0),0,BORDRO!E23:E23=KAYNAK!$F$18,"",BORDRO!E23=KAYNAK!$F$21,"",BORDRO!E23=KAYNAK!$F$22,"",BORDRO!E23=KAYNAK!$F$19,ANASAYFA!K21,BORDRO!E23=KAYNAK!$F$20,ANASAYFA!K21,E23=KAYNAK!$F$23,ANASAYFA!K21) ->  | H23: =_xlfn.IFS(E23=" "," ",BORDRO!E23:E23=KAYNAK!$F$16,"",AND(BORDRO!E23:E23=KAYNAK!$F$17,ANASAYFA!L21=""),"",AND(BORDRO!E23:E23=KAYNAK!$F$17,ANASAYFA!L21>0),ANASAYFA!L21,AND(BORDRO!E23:E23=KAYNAK!$F$17,ANASAYFA!L21<0),0,AND(BORDRO!E23:E23=KAYNAK!$F$17,ANASAYFA!L21=0),0,AND(BORDRO!E23:E23=KAYNAK!$F$18,ANASAYFA!L21=""),"",AND(BORDRO!E23:E23=KAYNAK!$F$18,ANASAYFA!L21>0),ANASAYFA!L21,AND(BORDRO!E23:E23=KAYNAK!$F$18,ANASAYFA!L21<0),0,AND(BORDRO!E23:E23=KAYNAK!$F$18,ANASAYFA!L21=0),0,BORDRO!E23=KAYNAK!$F$21,"",BORDRO!E23=KAYNAK!$F$22,"",BORDRO!E23=KAYNAK!$F$19,ANASAYFA!L21,BORDRO!E23=KAYNAK!$F$20,ANASAYFA!L21,E23=KAYNAK!$F$23,ANASAYFA!L21) ->  | J23: =IF(ANASAYFA!M21="","",ANASAYFA!M21) ->  | L23: =_xlfn.IFS(E23=" "," ",BORDRO!E23=KAYNAK!$F$16,KAYNAK!$K$44,AND(E23=KAYNAK!$F$17,KAYNAK!N58>KAYNAK!K50),KAYNAK!N58,AND(E23=KAYNAK!$F$17,KAYNAK!K50>KAYNAK!N58),KAYNAK!K50,E23=KAYNAK!$F$18,KAYNAK!$K$45,BORDRO!E23=KAYNAK!$F$21,KAYNAK!$M$45,BORDRO!E23=KAYNAK!$F$22,KAYNAK!$K$46,BORDRO!E23=KAYNAK!$F$19,KAYNAK!N58,BORDRO!E23=KAYNAK!$F$20,KAYNAK!N58,E23=KAYNAK!$F$23,KAYNAK!N58) ->  | N23: =_xlfn.IFS(F23=" "," ",F23=KAYNAK!$G$16,IF(J23=KAYNAK!$F$34,0,(L23*759/100000)),F23=KAYNAK!$G$17,IF(J23=KAYNAK!$F$34,0,BORDRO!L23)/100000*759) ->  | P23: =_xlfn.IFS(J23="","",F23=KAYNAK!$G$16,M23*IF(J23=KAYNAK!$F$34,0,BORDRO!J23),F23=KAYNAK!$G$17,M23*IF(J23=KAYNAK!$F$34,0,BORDRO!J23)) ->  | Q23: =_xlfn.IFS(F23=" "," ",F23=KAYNAK!$G$16,"",F23=KAYNAK!$G$17,CEILING(L23/100*14,0.1)) ->  | R23: =_xlfn.IFS(F23=" "," ",F23=KAYNAK!$G$16,"",F23=KAYNAK!$G$17,CEILING(L23/100*1,0.1)) ->  | S23: =_xlfn.IFS(F23=" "," ",F23=KAYNAK!$G$16,"",F23=KAYNAK!$G$17,CEILING(L23/100*20.5,0.1)) ->  | T23: =_xlfn.IFS(F23=" "," ",F23=KAYNAK!$G$16,"",F23=KAYNAK!$G$17,CEILING(L23/100*2,0.1)) ->  | U23: =IFERROR(_xlfn.IFS(E23=KAYNAK!$F$19,"",E23=KAYNAK!$F$20,"",E23=KAYNAK!$F$23,"",ANASAYFA!N21>0,L23/30*ANASAYFA!N21),"") ->  | V23: =KAYNAK!D190 -> 0
B24: =KAYNAK!I31 ->  | E24: =KAYNAK!L31 ->  | F24: =KAYNAK!M31 ->  | G24: =_xlfn.IFS(E24=" "," ",BORDRO!E24:E24=KAYNAK!$F$16,"",AND(E24=KAYNAK!$F$17,ANASAYFA!L22>0),0,BORDRO!E24:E24=KAYNAK!$F$17,"",AND(E24=KAYNAK!$F$18,ANASAYFA!L22>0),0,BORDRO!E24:E24=KAYNAK!$F$18,"",BORDRO!E24=KAYNAK!$F$21,"",BORDRO!E24=KAYNAK!$F$22,"",BORDRO!E24=KAYNAK!$F$19,ANASAYFA!K22,BORDRO!E24=KAYNAK!$F$20,ANASAYFA!K22,E24=KAYNAK!$F$23,ANASAYFA!K22) ->  | H24: =_xlfn.IFS(E24=" "," ",BORDRO!E24:E24=KAYNAK!$F$16,"",AND(BORDRO!E24:E24=KAYNAK!$F$17,ANASAYFA!L22=""),"",AND(BORDRO!E24:E24=KAYNAK!$F$17,ANASAYFA!L22>0),ANASAYFA!L22,AND(BORDRO!E24:E24=KAYNAK!$F$17,ANASAYFA!L22<0),0,AND(BORDRO!E24:E24=KAYNAK!$F$17,ANASAYFA!L22=0),0,AND(BORDRO!E24:E24=KAYNAK!$F$18,ANASAYFA!L22=""),"",AND(BORDRO!E24:E24=KAYNAK!$F$18,ANASAYFA!L22>0),ANASAYFA!L22,AND(BORDRO!E24:E24=KAYNAK!$F$18,ANASAYFA!L22<0),0,AND(BORDRO!E24:E24=KAYNAK!$F$18,ANASAYFA!L22=0),0,BORDRO!E24=KAYNAK!$F$21,"",BORDRO!E24=KAYNAK!$F$22,"",BORDRO!E24=KAYNAK!$F$19,ANASAYFA!L22,BORDRO!E24=KAYNAK!$F$20,ANASAYFA!L22,E24=KAYNAK!$F$23,ANASAYFA!L22) ->  | J24: =IF(ANASAYFA!M22="","",ANASAYFA!M22) ->  | L24: =_xlfn.IFS(E24=" "," ",BORDRO!E24=KAYNAK!$F$16,KAYNAK!$K$44,AND(E24=KAYNAK!$F$17,KAYNAK!N59>KAYNAK!K51),KAYNAK!N59,AND(E24=KAYNAK!$F$17,KAYNAK!K51>KAYNAK!N59),KAYNAK!K51,E24=KAYNAK!$F$18,KAYNAK!$K$45,BORDRO!E24=KAYNAK!$F$21,KAYNAK!$M$45,BORDRO!E24=KAYNAK!$F$22,KAYNAK!$K$46,BORDRO!E24=KAYNAK!$F$19,KAYNAK!N59,BORDRO!E24=KAYNAK!$F$20,KAYNAK!N59,E24=KAYNAK!$F$23,KAYNAK!N59) ->  | N24: =_xlfn.IFS(F24=" "," ",F24=KAYNAK!$G$16,IF(J24=KAYNAK!$F$34,0,(L24*759/100000)),F24=KAYNAK!$G$17,IF(J24=KAYNAK!$F$34,0,BORDRO!L24)/100000*759) ->  | P24: =_xlfn.IFS(J24="","",F24=KAYNAK!$G$16,M24*IF(J24=KAYNAK!$F$34,0,BORDRO!J24),F24=KAYNAK!$G$17,M24*IF(J24=KAYNAK!$F$34,0,BORDRO!J24)) ->  | Q24: =_xlfn.IFS(F24=" "," ",F24=KAYNAK!$G$16,"",F24=KAYNAK!$G$17,CEILING(L24/100*14,0.1)) ->  | R24: =_xlfn.IFS(F24=" "," ",F24=KAYNAK!$G$16,"",F24=KAYNAK!$G$17,CEILING(L24/100*1,0.1)) ->  | S24: =_xlfn.IFS(F24=" "," ",F24=KAYNAK!$G$16,"",F24=KAYNAK!$G$17,CEILING(L24/100*20.5,0.1)) ->  | T24: =_xlfn.IFS(F24=" "," ",F24=KAYNAK!$G$16,"",F24=KAYNAK!$G$17,CEILING(L24/100*2,0.1)) ->  | U24: =IFERROR(_xlfn.IFS(E24=KAYNAK!$F$19,"",E24=KAYNAK!$F$20,"",E24=KAYNAK!$F$23,"",ANASAYFA!N22>0,L24/30*ANASAYFA!N22),"") ->  | V24: =KAYNAK!D191 -> 0
B25: =KAYNAK!I32 ->  | E25: =KAYNAK!L32 ->  | F25: =KAYNAK!M32 ->  | G25: =_xlfn.IFS(E25=" "," ",BORDRO!E25:E25=KAYNAK!$F$16,"",AND(E25=KAYNAK!$F$17,ANASAYFA!L23>0),0,BORDRO!E25:E25=KAYNAK!$F$17,"",AND(E25=KAYNAK!$F$18,ANASAYFA!L23>0),0,BORDRO!E25:E25=KAYNAK!$F$18,"",BORDRO!E25=KAYNAK!$F$21,"",BORDRO!E25=KAYNAK!$F$22,"",BORDRO!E25=KAYNAK!$F$19,ANASAYFA!K23,BORDRO!E25=KAYNAK!$F$20,ANASAYFA!K23,E25=KAYNAK!$F$23,ANASAYFA!K23) ->  | H25: =_xlfn.IFS(E25=" "," ",BORDRO!E25:E25=KAYNAK!$F$16,"",AND(BORDRO!E25:E25=KAYNAK!$F$17,ANASAYFA!L23=""),"",AND(BORDRO!E25:E25=KAYNAK!$F$17,ANASAYFA!L23>0),ANASAYFA!L23,AND(BORDRO!E25:E25=KAYNAK!$F$17,ANASAYFA!L23<0),0,AND(BORDRO!E25:E25=KAYNAK!$F$17,ANASAYFA!L23=0),0,AND(BORDRO!E25:E25=KAYNAK!$F$18,ANASAYFA!L23=""),"",AND(BORDRO!E25:E25=KAYNAK!$F$18,ANASAYFA!L23>0),ANASAYFA!L23,AND(BORDRO!E25:E25=KAYNAK!$F$18,ANASAYFA!L23<0),0,AND(BORDRO!E25:E25=KAYNAK!$F$18,ANASAYFA!L23=0),0,BORDRO!E25=KAYNAK!$F$21,"",BORDRO!E25=KAYNAK!$F$22,"",BORDRO!E25=KAYNAK!$F$19,ANASAYFA!L23,BORDRO!E25=KAYNAK!$F$20,ANASAYFA!L23,E25=KAYNAK!$F$23,ANASAYFA!L23) ->  | J25: =IF(ANASAYFA!M23="","",ANASAYFA!M23) ->  | L25: =_xlfn.IFS(E25=" "," ",BORDRO!E25=KAYNAK!$F$16,KAYNAK!$K$44,AND(E25=KAYNAK!$F$17,KAYNAK!N60>KAYNAK!K52),KAYNAK!N60,AND(E25=KAYNAK!$F$17,KAYNAK!K52>KAYNAK!N60),KAYNAK!K52,E25=KAYNAK!$F$18,KAYNAK!$K$45,BORDRO!E25=KAYNAK!$F$21,KAYNAK!$M$45,BORDRO!E25=KAYNAK!$F$22,KAYNAK!$K$46,BORDRO!E25=KAYNAK!$F$19,KAYNAK!N60,BORDRO!E25=KAYNAK!$F$20,KAYNAK!N60,E25=KAYNAK!$F$23,KAYNAK!N60) ->  | N25: =_xlfn.IFS(F25=" "," ",F25=KAYNAK!$G$16,IF(J25=KAYNAK!$F$34,0,(L25*759/100000)),F25=KAYNAK!$G$17,IF(J25=KAYNAK!$F$34,0,BORDRO!L25)/100000*759) ->  | P25: =_xlfn.IFS(J25="","",F25=KAYNAK!$G$16,M25*IF(J25=KAYNAK!$F$34,0,BORDRO!J25),F25=KAYNAK!$G$17,M25*IF(J25=KAYNAK!$F$34,0,BORDRO!J25)) ->  | Q25: =_xlfn.IFS(F25=" "," ",F25=KAYNAK!$G$16,"",F25=KAYNAK!$G$17,CEILING(L25/100*14,0.1)) ->  | R25: =_xlfn.IFS(F25=" "," ",F25=KAYNAK!$G$16,"",F25=KAYNAK!$G$17,CEILING(L25/100*1,0.1)) ->  | S25: =_xlfn.IFS(F25=" "," ",F25=KAYNAK!$G$16,"",F25=KAYNAK!$G$17,CEILING(L25/100*20.5,0.1)) ->  | T25: =_xlfn.IFS(F25=" "," ",F25=KAYNAK!$G$16,"",F25=KAYNAK!$G$17,CEILING(L25/100*2,0.1)) ->  | U25: =IFERROR(_xlfn.IFS(E25=KAYNAK!$F$19,"",E25=KAYNAK!$F$20,"",E25=KAYNAK!$F$23,"",ANASAYFA!N23>0,L25/30*ANASAYFA!N23),"") ->  | V25: =KAYNAK!D192 -> 0
B26: =KAYNAK!I33 ->  | E26: =KAYNAK!L33 ->  | F26: =KAYNAK!M33 ->  | G26: =_xlfn.IFS(E26=" "," ",BORDRO!E26:E26=KAYNAK!$F$16,"",AND(E26=KAYNAK!$F$17,ANASAYFA!L24>0),0,BORDRO!E26:E26=KAYNAK!$F$17,"",AND(E26=KAYNAK!$F$18,ANASAYFA!L24>0),0,BORDRO!E26:E26=KAYNAK!$F$18,"",BORDRO!E26=KAYNAK!$F$21,"",BORDRO!E26=KAYNAK!$F$22,"",BORDRO!E26=KAYNAK!$F$19,ANASAYFA!K24,BORDRO!E26=KAYNAK!$F$20,ANASAYFA!K24,E26=KAYNAK!$F$23,ANASAYFA!K24) ->  | H26: =_xlfn.IFS(E26=" "," ",BORDRO!E26:E26=KAYNAK!$F$16,"",AND(BORDRO!E26:E26=KAYNAK!$F$17,ANASAYFA!L24=""),"",AND(BORDRO!E26:E26=KAYNAK!$F$17,ANASAYFA!L24>0),ANASAYFA!L24,AND(BORDRO!E26:E26=KAYNAK!$F$17,ANASAYFA!L24<0),0,AND(BORDRO!E26:E26=KAYNAK!$F$17,ANASAYFA!L24=0),0,AND(BORDRO!E26:E26=KAYNAK!$F$18,ANASAYFA!L24=""),"",AND(BORDRO!E26:E26=KAYNAK!$F$18,ANASAYFA!L24>0),ANASAYFA!L24,AND(BORDRO!E26:E26=KAYNAK!$F$18,ANASAYFA!L24<0),0,AND(BORDRO!E26:E26=KAYNAK!$F$18,ANASAYFA!L24=0),0,BORDRO!E26=KAYNAK!$F$21,"",BORDRO!E26=KAYNAK!$F$22,"",BORDRO!E26=KAYNAK!$F$19,ANASAYFA!L24,BORDRO!E26=KAYNAK!$F$20,ANASAYFA!L24,E26=KAYNAK!$F$23,ANASAYFA!L24) ->  | J26: =IF(ANASAYFA!M24="","",ANASAYFA!M24) ->  | L26: =_xlfn.IFS(E26=" "," ",BORDRO!E26=KAYNAK!$F$16,KAYNAK!$K$44,AND(E26=KAYNAK!$F$17,KAYNAK!N61>KAYNAK!K53),KAYNAK!N61,AND(E26=KAYNAK!$F$17,KAYNAK!K53>KAYNAK!N61),KAYNAK!K53,E26=KAYNAK!$F$18,KAYNAK!$K$45,BORDRO!E26=KAYNAK!$F$21,KAYNAK!$M$45,BORDRO!E26=KAYNAK!$F$22,KAYNAK!$K$46,BORDRO!E26=KAYNAK!$F$19,KAYNAK!N61,BORDRO!E26=KAYNAK!$F$20,KAYNAK!N61,E26=KAYNAK!$F$23,KAYNAK!N61) ->  | N26: =_xlfn.IFS(F26=" "," ",F26=KAYNAK!$G$16,IF(J26=KAYNAK!$F$34,0,(L26*759/100000)),F26=KAYNAK!$G$17,IF(J26=KAYNAK!$F$34,0,BORDRO!L26)/100000*759) ->  | P26: =_xlfn.IFS(J26="","",F26=KAYNAK!$G$16,M26*IF(J26=KAYNAK!$F$34,0,BORDRO!J26),F26=KAYNAK!$G$17,M26*IF(J26=KAYNAK!$F$34,0,BORDRO!J26)) ->  | Q26: =_xlfn.IFS(F26=" "," ",F26=KAYNAK!$G$16,"",F26=KAYNAK!$G$17,CEILING(L26/100*14,0.1)) ->  | R26: =_xlfn.IFS(F26=" "," ",F26=KAYNAK!$G$16,"",F26=KAYNAK!$G$17,CEILING(L26/100*1,0.1)) ->  | S26: =_xlfn.IFS(F26=" "," ",F26=KAYNAK!$G$16,"",F26=KAYNAK!$G$17,CEILING(L26/100*20.5,0.1)) ->  | T26: =_xlfn.IFS(F26=" "," ",F26=KAYNAK!$G$16,"",F26=KAYNAK!$G$17,CEILING(L26/100*2,0.1)) ->  | U26: =IFERROR(_xlfn.IFS(E26=KAYNAK!$F$19,"",E26=KAYNAK!$F$20,"",E26=KAYNAK!$F$23,"",ANASAYFA!N24>0,L26/30*ANASAYFA!N24),"") ->  | V26: =KAYNAK!D193 -> 0
B27: =KAYNAK!I34 ->  | E27: =KAYNAK!L34 ->  | F27: =KAYNAK!M34 ->  | G27: =_xlfn.IFS(E27=" "," ",BORDRO!E27:E27=KAYNAK!$F$16,"",AND(E27=KAYNAK!$F$17,ANASAYFA!L25>0),0,BORDRO!E27:E27=KAYNAK!$F$17,"",AND(E27=KAYNAK!$F$18,ANASAYFA!L25>0),0,BORDRO!E27:E27=KAYNAK!$F$18,"",BORDRO!E27=KAYNAK!$F$21,"",BORDRO!E27=KAYNAK!$F$22,"",BORDRO!E27=KAYNAK!$F$19,ANASAYFA!K25,BORDRO!E27=KAYNAK!$F$20,ANASAYFA!K25,E27=KAYNAK!$F$23,ANASAYFA!K25) ->  | H27: =_xlfn.IFS(E27=" "," ",BORDRO!E27:E27=KAYNAK!$F$16,"",AND(BORDRO!E27:E27=KAYNAK!$F$17,ANASAYFA!L25=""),"",AND(BORDRO!E27:E27=KAYNAK!$F$17,ANASAYFA!L25>0),ANASAYFA!L25,AND(BORDRO!E27:E27=KAYNAK!$F$17,ANASAYFA!L25<0),"",AND(BORDRO!E27:E27=KAYNAK!$F$17,ANASAYFA!L25=0),"",AND(BORDRO!E27:E27=KAYNAK!$F$18,ANASAYFA!L25=""),"",AND(BORDRO!E27:E27=KAYNAK!$F$18,ANASAYFA!L25>0),ANASAYFA!L25,AND(BORDRO!E27:E27=KAYNAK!$F$18,ANASAYFA!L25<0),0,AND(BORDRO!E27:E27=KAYNAK!$F$18,ANASAYFA!L25=0),0,BORDRO!E27=KAYNAK!$F$21,"",BORDRO!E27=KAYNAK!$F$22,"",BORDRO!E27=KAYNAK!$F$19,ANASAYFA!L25,BORDRO!E27=KAYNAK!$F$20,ANASAYFA!L25,E27=KAYNAK!$F$23,ANASAYFA!L25) ->  | J27: =IF(ANASAYFA!M25="","",ANASAYFA!M25) ->  | L27: =_xlfn.IFS(E27=" "," ",BORDRO!E27=KAYNAK!$F$16,KAYNAK!$K$44,AND(E27=KAYNAK!$F$17,KAYNAK!N62>KAYNAK!K54),KAYNAK!N62,AND(E27=KAYNAK!$F$17,KAYNAK!K54>KAYNAK!N62),KAYNAK!K54,E27=KAYNAK!$F$18,KAYNAK!$K$45,BORDRO!E27=KAYNAK!$F$21,KAYNAK!$M$45,BORDRO!E27=KAYNAK!$F$22,KAYNAK!$K$46,BORDRO!E27=KAYNAK!$F$19,KAYNAK!N62,BORDRO!E27=KAYNAK!$F$20,KAYNAK!N62,E27=KAYNAK!$F$23,KAYNAK!N62) ->  | N27: =_xlfn.IFS(F27=" "," ",F27=KAYNAK!$G$16,IF(J27=KAYNAK!$F$34,0,(L27*759/100000)),F27=KAYNAK!$G$17,IF(J27=KAYNAK!$F$34,0,BORDRO!L27)/100000*759) ->  | P27: =_xlfn.IFS(J27="","",F27=KAYNAK!$G$16,M27*IF(J27=KAYNAK!$F$34,0,BORDRO!J27),F27=KAYNAK!$G$17,M27*IF(J27=KAYNAK!$F$34,0,BORDRO!J27)) ->  | Q27: =_xlfn.IFS(F27=" "," ",F27=KAYNAK!$G$16,"",F27=KAYNAK!$G$17,CEILING(L27/100*14,0.1)) ->  | R27: =_xlfn.IFS(F27=" "," ",F27=KAYNAK!$G$16,"",F27=KAYNAK!$G$17,CEILING(L27/100*1,0.1)) ->  | S27: =_xlfn.IFS(F27=" "," ",F27=KAYNAK!$G$16,"",F27=KAYNAK!$G$17,CEILING(L27/100*20.5,0.1)) ->  | T27: =_xlfn.IFS(F27=" "," ",F27=KAYNAK!$G$16,"",F27=KAYNAK!$G$17,CEILING(L27/100*2,0.1)) ->  | U27: =IFERROR(_xlfn.IFS(E27=KAYNAK!$F$19,"",E27=KAYNAK!$F$20,"",E27=KAYNAK!$F$23,"",ANASAYFA!N25>0,L27/30*ANASAYFA!N25),"") ->  | V27: =KAYNAK!D194 -> 0
B28: =KAYNAK!I35 ->  | E28: =KAYNAK!L35 ->  | F28: =KAYNAK!M35 ->  | G28: =_xlfn.IFS(E28=" "," ",BORDRO!E28:E28=KAYNAK!$F$16,"",AND(E28=KAYNAK!$F$17,ANASAYFA!L26>0),0,BORDRO!E28:E28=KAYNAK!$F$17,"",AND(E28=KAYNAK!$F$18,ANASAYFA!L26>0),0,BORDRO!E28:E28=KAYNAK!$F$18,"",BORDRO!E28=KAYNAK!$F$21,"",BORDRO!E28=KAYNAK!$F$22,"",BORDRO!E28=KAYNAK!$F$19,ANASAYFA!K26,BORDRO!E28=KAYNAK!$F$20,ANASAYFA!K26,E28=KAYNAK!$F$23,ANASAYFA!K26) ->  | H28: =_xlfn.IFS(E28=" "," ",BORDRO!E28:E28=KAYNAK!$F$16,"",AND(BORDRO!E28:E28=KAYNAK!$F$17,ANASAYFA!L26=""),"",AND(BORDRO!E28:E28=KAYNAK!$F$17,ANASAYFA!L26>0),ANASAYFA!L26,AND(BORDRO!E28:E28=KAYNAK!$F$17,ANASAYFA!L26<0),"",AND(BORDRO!E28:E28=KAYNAK!$F$17,ANASAYFA!L26=0),"",AND(BORDRO!E28:E28=KAYNAK!$F$18,ANASAYFA!L26=""),"",AND(BORDRO!E28:E28=KAYNAK!$F$18,ANASAYFA!L26>0),ANASAYFA!L26,AND(BORDRO!E28:E28=KAYNAK!$F$18,ANASAYFA!L26<0),0,AND(BORDRO!E28:E28=KAYNAK!$F$18,ANASAYFA!L26=0),0,BORDRO!E28=KAYNAK!$F$21,"",BORDRO!E28=KAYNAK!$F$22,"",BORDRO!E28=KAYNAK!$F$19,ANASAYFA!L26,BORDRO!E28=KAYNAK!$F$20,ANASAYFA!L26,E28=KAYNAK!$F$23,ANASAYFA!L26) ->  | J28: =IF(ANASAYFA!M26="","",ANASAYFA!M26) ->  | L28: =_xlfn.IFS(E28=" "," ",BORDRO!E28=KAYNAK!$F$16,KAYNAK!$K$44,AND(E28=KAYNAK!$F$17,KAYNAK!N63>KAYNAK!K55),KAYNAK!N63,AND(E28=KAYNAK!$F$17,KAYNAK!K55>KAYNAK!N63),KAYNAK!K55,E28=KAYNAK!$F$18,KAYNAK!$K$45,BORDRO!E28=KAYNAK!$F$21,KAYNAK!$M$45,BORDRO!E28=KAYNAK!$F$22,KAYNAK!$K$46,BORDRO!E28=KAYNAK!$F$19,KAYNAK!N63,BORDRO!E28=KAYNAK!$F$20,KAYNAK!N63,E28=KAYNAK!$F$23,KAYNAK!N63) ->  | N28: =_xlfn.IFS(F28=" "," ",F28=KAYNAK!$G$16,IF(J28=KAYNAK!$F$34,0,(L28*759/100000)),F28=KAYNAK!$G$17,IF(J28=KAYNAK!$F$34,0,BORDRO!L28)/100000*759) ->  | P28: =_xlfn.IFS(J28="","",F28=KAYNAK!$G$16,M28*IF(J28=KAYNAK!$F$34,0,BORDRO!J28),F28=KAYNAK!$G$17,M28*IF(J28=KAYNAK!$F$34,0,BORDRO!J28)) ->  | Q28: =_xlfn.IFS(F28=" "," ",F28=KAYNAK!$G$16,"",F28=KAYNAK!$G$17,CEILING(L28/100*14,0.1)) ->  | R28: =_xlfn.IFS(F28=" "," ",F28=KAYNAK!$G$16,"",F28=KAYNAK!$G$17,CEILING(L28/100*1,0.1)) ->  | S28: =_xlfn.IFS(F28=" "," ",F28=KAYNAK!$G$16,"",F28=KAYNAK!$G$17,CEILING(L28/100*20.5,0.1)) ->  | T28: =_xlfn.IFS(F28=" "," ",F28=KAYNAK!$G$16,"",F28=KAYNAK!$G$17,CEILING(L28/100*2,0.1)) ->  | U28: =IFERROR(_xlfn.IFS(E28=KAYNAK!$F$19,"",E28=KAYNAK!$F$20,"",E28=KAYNAK!$F$23,"",ANASAYFA!N26>0,L28/30*ANASAYFA!N26),"") ->  | V28: =KAYNAK!D195 -> 0
B29: =KAYNAK!I36 ->  | E29: =KAYNAK!L36 ->  | F29: =KAYNAK!M36 ->  | G29: =_xlfn.IFS(E29=" "," ",BORDRO!E29:E29=KAYNAK!$F$16,"",AND(E29=KAYNAK!$F$17,ANASAYFA!L27>0),0,BORDRO!E29:E29=KAYNAK!$F$17,"",AND(E29=KAYNAK!$F$18,ANASAYFA!L27>0),0,BORDRO!E29:E29=KAYNAK!$F$18,"",BORDRO!E29=KAYNAK!$F$21,"",BORDRO!E29=KAYNAK!$F$22,"",BORDRO!E29=KAYNAK!$F$19,ANASAYFA!K27,BORDRO!E29=KAYNAK!$F$20,ANASAYFA!K27,E29=KAYNAK!$F$23,ANASAYFA!K27) ->  | H29: =_xlfn.IFS(E29=" "," ",BORDRO!E29:E29=KAYNAK!$F$16,"",AND(BORDRO!E29:E29=KAYNAK!$F$17,ANASAYFA!L27=""),"",AND(BORDRO!E29:E29=KAYNAK!$F$17,ANASAYFA!L27>0),ANASAYFA!L27,AND(BORDRO!E29:E29=KAYNAK!$F$17,ANASAYFA!L27<0),"",AND(BORDRO!E29:E29=KAYNAK!$F$17,ANASAYFA!L27=0),"",AND(BORDRO!E29:E29=KAYNAK!$F$18,ANASAYFA!L27=""),"",AND(BORDRO!E29:E29=KAYNAK!$F$18,ANASAYFA!L27>0),ANASAYFA!L27,AND(BORDRO!E29:E29=KAYNAK!$F$18,ANASAYFA!L27<0),0,AND(BORDRO!E29:E29=KAYNAK!$F$18,ANASAYFA!L27=0),0,BORDRO!E29=KAYNAK!$F$21,"",BORDRO!E29=KAYNAK!$F$22,"",BORDRO!E29=KAYNAK!$F$19,ANASAYFA!L27,BORDRO!E29=KAYNAK!$F$20,ANASAYFA!L27,E29=KAYNAK!$F$23,ANASAYFA!L27) ->  | J29: =IF(ANASAYFA!M27="","",ANASAYFA!M27) ->  | L29: =_xlfn.IFS(E29=" "," ",BORDRO!E29=KAYNAK!$F$16,KAYNAK!$K$44,AND(E29=KAYNAK!$F$17,KAYNAK!N64>KAYNAK!K56),KAYNAK!N64,AND(E29=KAYNAK!$F$17,KAYNAK!K56>KAYNAK!N64),KAYNAK!K56,E29=KAYNAK!$F$18,KAYNAK!$K$45,BORDRO!E29=KAYNAK!$F$21,KAYNAK!$M$45,BORDRO!E29=KAYNAK!$F$22,KAYNAK!$K$46,BORDRO!E29=KAYNAK!$F$19,KAYNAK!N64,BORDRO!E29=KAYNAK!$F$20,KAYNAK!N64,E29=KAYNAK!$F$23,KAYNAK!N64) ->  | N29: =_xlfn.IFS(F29=" "," ",F29=KAYNAK!$G$16,IF(J29=KAYNAK!$F$34,0,(L29*759/100000)),F29=KAYNAK!$G$17,IF(J29=KAYNAK!$F$34,0,BORDRO!L29)/100000*759) ->  | P29: =_xlfn.IFS(J29="","",F29=KAYNAK!$G$16,M29*IF(J29=KAYNAK!$F$34,0,BORDRO!J29),F29=KAYNAK!$G$17,M29*IF(J29=KAYNAK!$F$34,0,BORDRO!J29)) ->  | Q29: =_xlfn.IFS(F29=" "," ",F29=KAYNAK!$G$16,"",F29=KAYNAK!$G$17,CEILING(L29/100*14,0.1)) ->  | R29: =_xlfn.IFS(F29=" "," ",F29=KAYNAK!$G$16,"",F29=KAYNAK!$G$17,CEILING(L29/100*1,0.1)) ->  | S29: =_xlfn.IFS(F29=" "," ",F29=KAYNAK!$G$16,"",F29=KAYNAK!$G$17,CEILING(L29/100*20.5,0.1)) ->  | T29: =_xlfn.IFS(F29=" "," ",F29=KAYNAK!$G$16,"",F29=KAYNAK!$G$17,CEILING(L29/100*2,0.1)) ->  | U29: =IFERROR(_xlfn.IFS(E29=KAYNAK!$F$19,"",E29=KAYNAK!$F$20,"",E29=KAYNAK!$F$23,"",ANASAYFA!N27>0,L29/30*ANASAYFA!N27),"") ->  | V29: =KAYNAK!D196 -> 0
B30: =KAYNAK!I37 ->  | E30: =KAYNAK!L37 ->  | F30: =KAYNAK!M37 ->  | G30: =_xlfn.IFS(E30=" "," ",BORDRO!E30:E30=KAYNAK!$F$16,"",AND(E30=KAYNAK!$F$17,ANASAYFA!L28>0),0,BORDRO!E30:E30=KAYNAK!$F$17,"",AND(E30=KAYNAK!$F$18,ANASAYFA!L28>0),0,BORDRO!E30:E30=KAYNAK!$F$18,"",BORDRO!E30=KAYNAK!$F$21,"",BORDRO!E30=KAYNAK!$F$22,"",BORDRO!E30=KAYNAK!$F$19,ANASAYFA!K28,BORDRO!E30=KAYNAK!$F$20,ANASAYFA!K28,E30=KAYNAK!$F$23,ANASAYFA!K28) ->  | H30: =_xlfn.IFS(E30=" "," ",BORDRO!E30:E30=KAYNAK!$F$16,"",AND(BORDRO!E30:E30=KAYNAK!$F$17,ANASAYFA!L28=""),"",AND(BORDRO!E30:E30=KAYNAK!$F$17,ANASAYFA!L28>0),ANASAYFA!L28,AND(BORDRO!E30:E30=KAYNAK!$F$17,ANASAYFA!L28<0),"",AND(BORDRO!E30:E30=KAYNAK!$F$17,ANASAYFA!L28=0),"",AND(BORDRO!E30:E30=KAYNAK!$F$18,ANASAYFA!L28=""),"",AND(BORDRO!E30:E30=KAYNAK!$F$18,ANASAYFA!L28>0),ANASAYFA!L28,AND(BORDRO!E30:E30=KAYNAK!$F$18,ANASAYFA!L28<0),0,AND(BORDRO!E30:E30=KAYNAK!$F$18,ANASAYFA!L28=0),0,BORDRO!E30=KAYNAK!$F$21,"",BORDRO!E30=KAYNAK!$F$22,"",BORDRO!E30=KAYNAK!$F$19,ANASAYFA!L28,BORDRO!E30=KAYNAK!$F$20,ANASAYFA!L28,E30=KAYNAK!$F$23,ANASAYFA!L28) ->  | J30: =IF(ANASAYFA!M28="","",ANASAYFA!M28) ->  | L30: =_xlfn.IFS(E30=" "," ",BORDRO!E30=KAYNAK!$F$16,KAYNAK!$K$44,AND(E30=KAYNAK!$F$17,KAYNAK!N65>KAYNAK!K57),KAYNAK!N65,AND(E30=KAYNAK!$F$17,KAYNAK!K57>KAYNAK!N65),KAYNAK!K57,E30=KAYNAK!$F$18,KAYNAK!$K$45,BORDRO!E30=KAYNAK!$F$21,KAYNAK!$M$45,BORDRO!E30=KAYNAK!$F$22,KAYNAK!$K$46,BORDRO!E30=KAYNAK!$F$19,KAYNAK!N65,BORDRO!E30=KAYNAK!$F$20,KAYNAK!N65,E30=KAYNAK!$F$23,KAYNAK!N65) ->  | N30: =_xlfn.IFS(F30=" "," ",F30=KAYNAK!$G$16,IF(J30=KAYNAK!$F$34,0,(L30*759/100000)),F30=KAYNAK!$G$17,IF(J30=KAYNAK!$F$34,0,BORDRO!L30)/100000*759) ->  | P30: =_xlfn.IFS(J30="","",F30=KAYNAK!$G$16,M30*IF(J30=KAYNAK!$F$34,0,BORDRO!J30),F30=KAYNAK!$G$17,M30*IF(J30=KAYNAK!$F$34,0,BORDRO!J30)) ->  | Q30: =_xlfn.IFS(F30=" "," ",F30=KAYNAK!$G$16,"",F30=KAYNAK!$G$17,CEILING(L30/100*14,0.1)) ->  | R30: =_xlfn.IFS(F30=" "," ",F30=KAYNAK!$G$16,"",F30=KAYNAK!$G$17,CEILING(L30/100*1,0.1)) ->  | S30: =_xlfn.IFS(F30=" "," ",F30=KAYNAK!$G$16,"",F30=KAYNAK!$G$17,CEILING(L30/100*20.5,0.1)) ->  | T30: =_xlfn.IFS(F30=" "," ",F30=KAYNAK!$G$16,"",F30=KAYNAK!$G$17,CEILING(L30/100*2,0.1)) ->  | U30: =IFERROR(_xlfn.IFS(E30=KAYNAK!$F$19,"",E30=KAYNAK!$F$20,"",E30=KAYNAK!$F$23,"",ANASAYFA!N28>0,L30/30*ANASAYFA!N28),"") ->  | V30: =KAYNAK!D197 -> 0
B31: =KAYNAK!I38 ->  | E31: =KAYNAK!L38 ->  | F31: =KAYNAK!M38 ->  | G31: =_xlfn.IFS(E31=" "," ",BORDRO!E31:E31=KAYNAK!$F$16,"",AND(E31=KAYNAK!$F$17,ANASAYFA!L29>0),0,BORDRO!E31:E31=KAYNAK!$F$17,"",AND(E31=KAYNAK!$F$18,ANASAYFA!L29>0),0,BORDRO!E31:E31=KAYNAK!$F$18,"",BORDRO!E31=KAYNAK!$F$21,"",BORDRO!E31=KAYNAK!$F$22,"",BORDRO!E31=KAYNAK!$F$19,ANASAYFA!K29,BORDRO!E31=KAYNAK!$F$20,ANASAYFA!K29,E31=KAYNAK!$F$23,ANASAYFA!K29) ->  | H31: =_xlfn.IFS(E31=" "," ",BORDRO!E31:E31=KAYNAK!$F$16,"",AND(BORDRO!E31:E31=KAYNAK!$F$17,ANASAYFA!L29=""),"",AND(BORDRO!E31:E31=KAYNAK!$F$17,ANASAYFA!L29>0),ANASAYFA!L29,AND(BORDRO!E31:E31=KAYNAK!$F$17,ANASAYFA!L29<0),"",AND(BORDRO!E31:E31=KAYNAK!$F$17,ANASAYFA!L29=0),"",AND(BORDRO!E31:E31=KAYNAK!$F$18,ANASAYFA!L29=""),"",AND(BORDRO!E31:E31=KAYNAK!$F$18,ANASAYFA!L29>0),ANASAYFA!L29,AND(BORDRO!E31:E31=KAYNAK!$F$18,ANASAYFA!L29<0),0,AND(BORDRO!E31:E31=KAYNAK!$F$18,ANASAYFA!L29=0),0,BORDRO!E31=KAYNAK!$F$21,"",BORDRO!E31=KAYNAK!$F$22,"",BORDRO!E31=KAYNAK!$F$19,ANASAYFA!L29,BORDRO!E31=KAYNAK!$F$20,ANASAYFA!L29,E31=KAYNAK!$F$23,ANASAYFA!L29) ->  | J31: =IF(ANASAYFA!M29="","",ANASAYFA!M29) ->  | L31: =_xlfn.IFS(E31=" "," ",BORDRO!E31=KAYNAK!$F$16,KAYNAK!$K$44,AND(E31=KAYNAK!$F$17,KAYNAK!N66>KAYNAK!K58),KAYNAK!N66,AND(E31=KAYNAK!$F$17,KAYNAK!K58>KAYNAK!N66),KAYNAK!K58,E31=KAYNAK!$F$18,KAYNAK!$K$45,BORDRO!E31=KAYNAK!$F$21,KAYNAK!$M$45,BORDRO!E31=KAYNAK!$F$22,KAYNAK!$K$46,BORDRO!E31=KAYNAK!$F$19,KAYNAK!N66,BORDRO!E31=KAYNAK!$F$20,KAYNAK!N66,E31=KAYNAK!$F$23,KAYNAK!N66) ->  | N31: =_xlfn.IFS(F31=" "," ",F31=KAYNAK!$G$16,IF(J31=KAYNAK!$F$34,0,(L31*759/100000)),F31=KAYNAK!$G$17,IF(J31=KAYNAK!$F$34,0,BORDRO!L31)/100000*759) ->  | P31: =_xlfn.IFS(J31="","",F31=KAYNAK!$G$16,M31*IF(J31=KAYNAK!$F$34,0,BORDRO!J31),F31=KAYNAK!$G$17,M31*IF(J31=KAYNAK!$F$34,0,BORDRO!J31)) ->  | Q31: =_xlfn.IFS(F31=" "," ",F31=KAYNAK!$G$16,"",F31=KAYNAK!$G$17,CEILING(L31/100*14,0.1)) ->  | R31: =_xlfn.IFS(F31=" "," ",F31=KAYNAK!$G$16,"",F31=KAYNAK!$G$17,CEILING(L31/100*1,0.1)) ->  | S31: =_xlfn.IFS(F31=" "," ",F31=KAYNAK!$G$16,"",F31=KAYNAK!$G$17,CEILING(L31/100*20.5,0.1)) ->  | T31: =_xlfn.IFS(F31=" "," ",F31=KAYNAK!$G$16,"",F31=KAYNAK!$G$17,CEILING(L31/100*2,0.1)) ->  | U31: =IFERROR(_xlfn.IFS(E31=KAYNAK!$F$19,"",E31=KAYNAK!$F$20,"",E31=KAYNAK!$F$23,"",ANASAYFA!N29>0,L31/30*ANASAYFA!N29),"") ->  | V31: =KAYNAK!D198 -> 0
B32: TOPLAMLAR | L32: =SUM(L17:L31) -> 0 | M32: =SUM(M17:M31) -> 0 | N32: =IFERROR(SUM(N17:N31),"") -> 0 | P32: =IFERROR(SUM(P17:P31),"") -> 0 | Q32: 0 | R32: =IFERROR(SUM(R17:R31),"") -> 0 | S32: 0 | T32: =IFERROR(SUM(T17:T31),"") -> 0 | U32: 0 | V32: =IFERROR(SUM(V17:V31),"") -> 0 | W32: =IFERROR(SUM(W17:W31),"") -> 0 | X32: =IFERROR(SUM(X17:X31),"") -> 0
H34: =IF(KAYNAK!M350>0,"ANASAYFA ÜZERİNDE PERSONEL ADI - GÖREVİ - KADRO DURUMU - DERS SAATİ - VERGİ DİLİMİ ALANLARININ DOĞRULUĞUNU KONTROL EDİNİZ.","") -> 
C35: =IF(KAYNAK!H101="0"," ",KAYNAK!H101) ->  | S35: =IF(KAYNAK!H102="0"," ",KAYNAK!H102) -> 
C36: =IF(KAYNAK!H101="0"," ",KAYNAK!I101) ->  | S36: =IF(KAYNAK!H102="0"," ",KAYNAK!I102) -> 

Sheet BANKA LİSTESİ
C2: T.C.
C3: =CONCATENATE(KAYNAK!N106," ","KAYMAKAMLIĞI") -> KÖYCEĞİZ KAYMAKAMLIĞI
C4: =KAYNAK!L106 -> KÖYCEĞİZ ANAOKULU
C5: =CONCATENATE(KAYNAK!G3," ","YILI"," ",KAYNAK!G2," ","AYI"," ","ÇOCUK KULÜBÜ"," ","BANKA LİSTESİ") -> 2023 YILI KASIM AYI ÇOCUK KULÜBÜ BANKA LİSTESİ
B6: S.N. | C6: PERSONEL ADI | G6: IBAN | J6: Tutar
B7: 1 | C7: =IF(ISBLANK(KAYNAK!I24),"",KAYNAK!I24) ->  | G7: =CONCATENATE(ANASAYFA!Q15) ->  | J7: =BORDRO!X17 -> 
B8: 2 | C8: =IF(ISBLANK(KAYNAK!I25),"",KAYNAK!I25) ->  | G8: =CONCATENATE(ANASAYFA!Q16) ->  | J8: =BORDRO!X18 -> 
B9: 3 | C9: =IF(ISBLANK(KAYNAK!I26),"",KAYNAK!I26) ->  | G9: =CONCATENATE(ANASAYFA!Q17) ->  | J9: =BORDRO!X19 -> 
B10: 4 | C10: =IF(ISBLANK(KAYNAK!I27),"",KAYNAK!I27) ->  | G10: =CONCATENATE(ANASAYFA!Q18) ->  | J10: =BORDRO!X20 -> 
B11: 5 | C11: =IF(ISBLANK(KAYNAK!I28),"",KAYNAK!I28) ->  | G11: =CONCATENATE(ANASAYFA!Q19) ->  | J11: =BORDRO!X21 -> 
B12: 6 | C12: =IF(ISBLANK(KAYNAK!I29),"",KAYNAK!I29) ->  | G12: =CONCATENATE(ANASAYFA!Q20) ->  | J12: =BORDRO!X22 -> 
B13: 7 | C13: =IF(ISBLANK(KAYNAK!I30),"",KAYNAK!I30) ->  | G13: =CONCATENATE(ANASAYFA!Q21) ->  | J13: =BORDRO!X23 -> 
B14: 8 | C14: =IF(ISBLANK(KAYNAK!I31),"",KAYNAK!I31) ->  | G14: =CONCATENATE(ANASAYFA!Q22) ->  | J14: =BORDRO!X24 -> 
B15: 9 | C15: =IF(ISBLANK(KAYNAK!I32),"",KAYNAK!I32) ->  | G15: =CONCATENATE(ANASAYFA!Q23) ->  | J15: =BORDRO!X25 -> 
B16: 10 | C16: =IF(ISBLANK(KAYNAK!I33),"",KAYNAK!I33) ->  | G16: =CONCATENATE(ANASAYFA!Q24) ->  | J16: =BORDRO!X26 -> 
B17: 11 | C17: =IF(ISBLANK(KAYNAK!I34),"",KAYNAK!I34) ->  | G17: =CONCATENATE(ANASAYFA!Q25) ->  | J17: =BORDRO!X27 -> 
B18: 12 | C18: =IF(ISBLANK(KAYNAK!I35),"",KAYNAK!I35) ->  | G18: =CONCATENATE(ANASAYFA!Q26) ->  | J18: =BORDRO!X28 -> 
B19: 13 | C19: =IF(ISBLANK(KAYNAK!I36),"",KAYNAK!I36) ->  | G19: =CONCATENATE(ANASAYFA!Q27) ->  | J19: =BORDRO!X29 -> 
B20: 14 | C20: =IF(ISBLANK(KAYNAK!I37),"",KAYNAK!I37) ->  | G20: =CONCATENATE(ANASAYFA!Q28) ->  | J20: =BORDRO!X30 -> 
B21: 15 | C21: =IF(ISBLANK(KAYNAK!I38),"",KAYNAK!I38) ->  | G21: =CONCATENATE(ANASAYFA!Q29) ->  | J21: =BORDRO!X31 -> 
B22: TOPLAM TUTAR | J22: =SUM(J7:K21) -> 0
C25: =IF(KAYNAK!H101="0"," ",KAYNAK!H101) ->  | H25: =IF(KAYNAK!H102="0"," ",KAYNAK!H102) -> 
C26: =IF(KAYNAK!H101="0"," ",KAYNAK!I101) ->  | H26: =IF(KAYNAK!H102="0"," ",KAYNAK!I102) -> 

Sheet BİLANÇO
C1: =BORDRO!D2 -> KASIM | E1: =BORDRO!E2 -> 2023
C2: T.C.
C3: =CONCATENATE(KAYNAK!N106," ","KAYMAKAMLIĞI") -> KÖYCEĞİZ KAYMAKAMLIĞI
C4: =KAYNAK!L106 -> KÖYCEĞİZ ANAOKULU
C5: =CONCATENATE(KAYNAK!G3," ","YILI"," ",KAYNAK!G2," ","AYI"," ","ÇOCUK"," ","KULÜBÜ"," ","BİLANÇOSU") -> 2023 YILI KASIM AYI ÇOCUK KULÜBÜ BİLANÇOSU
C7: Maaş Aylık Katsayısı | E7: Gündüz Öğretimi Göstergesi | G7: En Yüksek Devlet Memuru Brüt Aylığı | I7: Brüt Asgari Ücret | K7: Belirlenebilecek En Düşük Saat Ücreti | M7: Belirlenebilecek En Yüksek Saat Ücreti
C9: =KAYNAK!H159 -> 0,509796 | E9: =KAYNAK!J159 -> 140 | G9: =KAYNAK!L159 -> 4843,062 | I9: =KAYNAK!N159 -> 13414,5 | K9: =KAYNAK!H163 -> 7,137144 | M9: =KAYNAK!J163 -> 17,84286
C11: Öğrenci Sayısı | E11: Grup Sayısı | G11: Belirlenen 1 Saatlik Ücret | I11: İşgünü Sayısı | K11: Aylık Toplam Saat Sayısı | M11: Aylık Ücret Toplamı
C13: =ANASAYFA!Q6 -> 0 | E13: =ANASAYFA!P6 -> 0 | G13: =ANASAYFA!J10 -> 17.84 | I13: =ANASAYFA!O6 -> 0 | K13: =ANASAYFA!D11 -> 0 | M13: =KAYNAK!P167 -> 0
C15: CARİ AY ORANSAL PAY DAĞILIMI
C16: GİDER KALEMİ | K16: ORAN | M16: PAY
C17: AYLIK TAHAKKUK TOPLAMI | K17: 1 | M17: =KAYNAK!L186 -> 0
C18: Temel Giderler | K18: =BORDRO!F4 -> 0.33 | M18: =KAYNAK!N172 -> 0
C19: Öğretmen, Ücretli Öğretmen, Koordinatör | K19: =BORDRO!F7 -> 0.49 | M19: =KAYNAK!L183 -> 0
C20: Kulüp Yönetim Kurulu Başkanı (Okul Müdürü) | K20: =BORDRO!F5 -> 0.07 | M20: =KAYNAK!L181 -> 0
C21: Kulüp Yönetim Kurulu Üye (Müdür Yardımcısı) | K21: =BORDRO!F6 -> 0.05 | M21: =KAYNAK!L182 -> 0
C22: Muhasebe Memuru | K22: =BORDRO!F8 -> 0.02 | M22: =KAYNAK!L176 -> 0
C23: Temizlik Personelleri | K23: =BORDRO!F9 -> 0.04 | M23: =KAYNAK!L177 -> 0
C25: CARİ AY HESAP BİLANÇOSU
C26: GİDER KALEMİ | H26: PAY TUTARI | J26: GERÇEKLEŞEN | L26: Temel Gidere Aktarılan SGK ve Vergi Kesintileri | N26: Temel Gidere Aktarılan Limit Üstü
C27: Öğretmen,Usta Öğretici, Koordinatör (%49) | H27: =M19 -> 0 | J27: =KAYNAK!N183 ->  | L27: =BORDRO!L7 ->  | N27: =BORDRO!M7 -> 
C28: Kulüp Yönetim Kurulu Bşk. (Okul Müdürü-%7) | H28: =M20 -> 0 | J28: =KAYNAK!N181 -> 0 | L28: =BORDRO!L5 -> 0 | N28: =BORDRO!M5 -> 0
C29: Kulüp Yönetim Kurulu Üyesi (%5) | H29: =M21 -> 0 | J29: =KAYNAK!N182 -> 0 | L29: =BORDRO!L6 ->  | N29: =BORDRO!M6 -> 
C30: Muhasebe Memuru (%2) | H30: =M22 -> 0 | J30: =KAYNAK!N184 -> 0 | L30: =BORDRO!L8 -> 0 | N30: =BORDRO!M8 -> 0
C31: Temizlik Personelleri (%4) | H31: =M23 -> 0 | J31: =KAYNAK!N185 -> 0 | L31: =BORDRO!L9 -> 0 | N31: =BORDRO!M9 -> 0
C32: Personel Gelir Vergisi, Damga Vergisi ve İşveren SGK Primleri İçin Temel Gider'e Aktarılan | L32: =BORDRO!X6 ->  | N32: =SUM(N27:N31) -> 
C33: İzin/Rapor Nedeniyle Müdür-Md.Yard-Hizmetli/Aşçı-Memur kalemlerinden aktarılan | L33: =BORDRO!X7 -> 0
C35: TOPLAM TEMEL GİDERE AKTARILAN | L35: =L32+N32+L33 -> 
C36: TEMEL GİDER ORANSAL PAY TUTARI (%33) | L36: =M18 -> 0
C37: AKTARIM SONRASI TEMEL GİDER KASASI | L37: =L36+L35 -> 
C38: Personelden kesilen SGK, Gelir vergisi, Damga Vergisi tutarları | L38: =BORDRO!V32-BORDRO!U32 -> 0
C39: İşveren SGK Payları (%20,5+%2) | L39: =BORDRO!W32 -> 0
C40: TOPLAM YAKLAŞIK SGK VE MUHTASAR ÖDEMELERİ (Stopaj vb. hariç) | L40: =L38+L39 -> 0
C41: SGK VE VERGİ ÖDEMELERİ SONRASI TEMEL GİDER KASASI | L41: =L37-L40 -> 
C43: TEMEL GİDER HESAP DÖKÜMÜ
C44: Temizlik, Beslenme, Materyal ve Okulun Diğer Giderleri Harcamaları | L44: =ANASAYFA!U16 -> 0
C45: Yaklaşık Tutara Göre Stopaj vb. kalemlerle Fazla/Eksik Ödenen SGK ve Vergiler | L45: =IF(ANASAYFA!V29="",0,ANASAYFA!V29-ANASAYFA!U29) -> 0
C46: Yönerge 16/2 maddesince temel gider kasasından personel giderine aktarılan tutar | L46: =ANASAYFA!U22 -> 0
C47: HARCAMALAR TOPLAMI | L47: =L44+L45+L46 -> 0
C48: HARACAMALAR SONRASI TEMEL GİDER KASASI | L48: =L41-L47 -> 
C51: =IF(KAYNAK!H101="0"," ",KAYNAK!H101) ->  | K51: =IF(KAYNAK!H102="0"," ",KAYNAK!H102) -> 
C52: =IF(KAYNAK!H101="0"," ",KAYNAK!I101) ->  | K52: =IF(KAYNAK!H102="0"," ",KAYNAK!I102) -> 

Sheet KİŞİ BORDRO
B2: BORDRO DÖNEMİ | D2: =KAYNAK!G3 -> 2023 | E2: =KAYNAK!G2 -> KASIM
C5: T.C.
C6: =CONCATENATE(KAYNAK!N106," ","KAYMAKAMLIĞI") -> KÖYCEĞİZ KAYMAKAMLIĞI
C7: =KAYNAK!L106 -> KÖYCEĞİZ ANAOKULU
C8: =CONCATENATE(KAYNAK!G3," ","YILI"," ",KAYNAK!G2," ","AYI"," ","ÇOCUK"," ","KULÜBÜ"," ","ÜCRET"," ","BORDROSU") -> 2023 YILI KASIM AYI ÇOCUK KULÜBÜ ÜCRET BORDROSU
C10: PERSONEL ADI | F10: =CONCATENATE(" ",L12) -> ŞENGÜL KAYA | L10: BORDROSU ALINACAK KİŞİ
C11: GÖREVİ | F11: =CONCATENATE(" ",VLOOKUP(L12,BORDRO!B17:X31,4,FALSE)) -> 
C12: AYLIK GİRDİĞİ DERS SAATİ | F12: =CONCATENATE(" ",VLOOKUP(L12,BORDRO!B17:X31,8,FALSE)) ->  | L12: ŞENGÜL KAYA | O12: =VLOOKUP(L12,ANASAYFA!C15:H29,5,0) -> 
C13: BİRİM DERS SAAT ÜCRETİ | F13: =IFERROR(F16/F12,"") -> 
C15: BRÜT ÜCRETLER TOPLAMI | F15: =VLOOKUP(L12,BORDRO!B17:X31,10,FALSE) -> 
C16: TAHAKKUK (HAKEDİŞ) TOPLAMI | F16: =VLOOKUP(L12,BORDRO!B17:X31,11,FALSE) -> 
C17: GELİR VERGİSİ MATRAHI | F17: =VLOOKUP(L12,BORDRO!B17:X31,12,FALSE) ->  | O17: =IF(VLOOKUP(L12,ANASAYFA!C15:H29,5,0)=KAYNAK!F16,KAYNAK!O44, IF(AND(VLOOKUP(L12,ANASAYFA!C15:H29,5,0)=KAYNAK!F17,BORDRO!K6=0),BORDRO!G6,IF(VLOOKUP(L12,ANASAYFA!C15:H29,5,0)=KAYNAK!F17,KAYNAK!O45, IF(AND(VLOOKUP(L12,ANASAYFA!C15:H29,5,0)=KAYNAK!F18,BORDRO!K6=0),BORDRO!G6,IF(VLOOKUP(L12,ANASAYFA!C15:H29,5,0)=KAYNAK!F18,KAYNAK!O45, IF(VLOOKUP(L12,ANASAYFA!C15:H29,5,0)=KAYNAK!F22,KAYNAK!O46, IF(VLOOKUP(L12,ANASAYFA!C15:H29,5,0)=KAYNAK!F21,KAYNAK!O47, IF(VLOOKUP(L12,ANASAYFA!C15:H29,5,0)=KAYNAK!F23,KAYNAK!O50, IF(VLOOKUP(L12,ANASAYFA!C15:H29,5,0)=KAYNAK!F19,VLOOKUP(L12,KAYNAK!G52:O66,9,0), IF(VLOOKUP(L12,ANASAYFA!C15:H29,5,0)=KAYNAK!F20,VLOOKUP(L12,KAYNAK!G52:O66,9,0))))))))))) -> 
C18: GELİR VERGİSİ ORANI | F18: =VLOOKUP(L12,BORDRO!B17:X31,9,FALSE) -> 
C19: GELİR VERGİSİ KESİNTİSİ | F19: =VLOOKUP(L12,BORDRO!B17:X31,15,FALSE) -> 
C20: DAMGA VERGİSİ KESİNTİSİ | F20: =VLOOKUP(L12,BORDRO!B17:X31,13,FALSE) -> 
C21: SGK (KİŞİ) %14 | F21: =VLOOKUP(L12,BORDRO!B17:X31,16,FALSE) -> 
C22: SGK (İŞVEREN) %20,5 | F22: =VLOOKUP(L12,BORDRO!B17:X31,18,FALSE) -> 
C23: İŞSİZLİK SİG. PRİ. (KİŞİ) %1 | F23: =VLOOKUP(L12,BORDRO!B17:X31,18,FALSE) -> 
C24: İŞSİZLİK SİG. PRİ. (İŞVEREN) %2 | F24: =VLOOKUP(L12,BORDRO!B17:X31,19,FALSE) -> 
C25: TEMEL GİDERE AKTARILAN KESİNTİLER TOPLAMI | F25: =IF(F26="",F27,IF(F27="",F26,F26+F27)) -> 
C26: İZİN/RAPOR KESİNTİSİ | F26: =VLOOKUP(L12,BORDRO!B17:X31,20,FALSE) -> 
C27: ÖDENEBİLECEK LİMİT ÜSTÜ KESİNTİSİ | F27: =O17 -> 
C28: KİŞİ VERGİ-SGK-İZİN KESİNTİ TOPLAMI | F28: =VLOOKUP(L12,BORDRO!B17:X31,21,FALSE) -> 
C29: İŞVERENCE KARŞILANAN PRİM TOPLAMI | F29: =IF(F22="",F24,IF(F24="",F22,F22+F24)) -> 
C30: NET ÖDENEN | F30: =VLOOKUP(L12,BORDRO!B17:X31,23,FALSE) -> 
C33: =IF(KAYNAK!H101="0"," ",KAYNAK!H101) ->  | H33: =IF(KAYNAK!H102="0"," ",KAYNAK!H102) -> 
C34: =IF(KAYNAK!H101="0"," ",KAYNAK!I101) ->  | H34: =IF(KAYNAK!H102="0"," ",KAYNAK!I102) -> 

Sheet VERGİ MATRAH
B2: MATRAH DÖNEMİ | E2: =KAYNAK!G3 -> 2023 | F2: =KAYNAK!G2 -> KASIM
B5: T.C.
B6: =CONCATENATE(KAYNAK!N106," ","KAYMAKAMLIĞI") -> KÖYCEĞİZ KAYMAKAMLIĞI
B7: =KAYNAK!L106 -> KÖYCEĞİZ ANAOKULU
B8: =CONCATENATE(KAYNAK!G3," ","YILI"," ",KAYNAK!G2," ","AYI"," ","ÇOCUK"," ","KULÜBÜNDE"," ","GÖREVLİ"," ","KADROLU/SÖZLEŞMELİ"," ","PERSONELE"," ","AİT"," ","İLGİLİ"," ","DÖNEM"," ","GELİR"," ","VERGİSİ"," ","MATRAH"," ","TUTARLARI") -> 2023 YILI KASIM AYI ÇOCUK KULÜBÜNDE GÖREVLİ KADROLU/SÖZLEŞMELİ PERSONELE AİT İLGİLİ DÖNEM GELİR VERGİSİ MATRAH TUTARLARI
B11: S.N. | C11: PERSONEL ADI VE SOYADI | F11: T.C. KİMLİK NO | I11: AYLIK VERGİ MATRAHI | K11: KESİLEN GELİR VERGİSİ
B13: 1 | C13: =IFERROR(VLOOKUP(KAYNAK!$Z409,KAYNAK!$X$385:$AH$400,4,FALSE),"") ->  | F13: =IFERROR(VLOOKUP(KAYNAK!$Z409,KAYNAK!$X$385:$AH$400,11,FALSE),"") ->  | I13: =IFERROR(VLOOKUP(KAYNAK!$Z409,KAYNAK!$X$385:$AH$400,10,FALSE),"") ->  | K13: =IFERROR(VLOOKUP(KAYNAK!$Z409,KAYNAK!X386:AJ400,12,FALSE),"") -> 
B14: 2 | C14: =IFERROR(VLOOKUP(KAYNAK!$Z410,KAYNAK!$X$385:$AH$400,4,FALSE),"") ->  | F14: =IFERROR(VLOOKUP(KAYNAK!$Z410,KAYNAK!$X$385:$AH$400,11,FALSE),"") ->  | I14: =IFERROR(VLOOKUP(KAYNAK!$Z410,KAYNAK!$X$385:$AH$400,10,FALSE),"") ->  | K14: =IFERROR(VLOOKUP(KAYNAK!$Z410,KAYNAK!X387:AJ401,12,FALSE),"") -> 
B15: 3 | C15: =IFERROR(VLOOKUP(KAYNAK!$Z411,KAYNAK!$X$385:$AH$400,4,FALSE),"") ->  | F15: =IFERROR(VLOOKUP(KAYNAK!$Z411,KAYNAK!$X$385:$AH$400,11,FALSE),"") ->  | I15: =IFERROR(VLOOKUP(KAYNAK!$Z411,KAYNAK!$X$385:$AH$400,10,FALSE),"") ->  | K15: =IFERROR(VLOOKUP(KAYNAK!$Z411,KAYNAK!X388:AJ402,12,FALSE),"") -> 
B16: 4 | C16: =IFERROR(VLOOKUP(KAYNAK!$Z412,KAYNAK!$X$385:$AH$400,4,FALSE),"") ->  | F16: =IFERROR(VLOOKUP(KAYNAK!$Z412,KAYNAK!$X$385:$AH$400,11,FALSE),"") ->  | I16: =IFERROR(VLOOKUP(KAYNAK!$Z412,KAYNAK!$X$385:$AH$400,10,FALSE),"") ->  | K16: =IFERROR(VLOOKUP(KAYNAK!$Z412,KAYNAK!X389:AJ403,12,FALSE),"") -> 
B17: 5 | C17: =IFERROR(VLOOKUP(KAYNAK!$Z413,KAYNAK!$X$385:$AH$400,4,FALSE),"") ->  | F17: =IFERROR(VLOOKUP(KAYNAK!$Z413,KAYNAK!$X$385:$AH$400,11,FALSE),"") ->  | I17: =IFERROR(VLOOKUP(KAYNAK!$Z413,KAYNAK!$X$385:$AH$400,10,FALSE),"") ->  | K17: =IFERROR(VLOOKUP(KAYNAK!$Z413,KAYNAK!X390:AJ404,12,FALSE),"") -> 
B18: 6 | C18: =IFERROR(VLOOKUP(KAYNAK!$Z414,KAYNAK!$X$385:$AH$400,4,FALSE),"") ->  | F18: =IFERROR(VLOOKUP(KAYNAK!$Z414,KAYNAK!$X$385:$AH$400,11,FALSE),"") ->  | I18: =IFERROR(VLOOKUP(KAYNAK!$Z414,KAYNAK!$X$385:$AH$400,10,FALSE),"") ->  | K18: =IFERROR(VLOOKUP(KAYNAK!$Z414,KAYNAK!X391:AJ405,12,FALSE),"") -> 
B19: 7 | C19: =IFERROR(VLOOKUP(KAYNAK!$Z415,KAYNAK!$X$385:$AH$400,4,FALSE),"") ->  | F19: =IFERROR(VLOOKUP(KAYNAK!$Z415,KAYNAK!$X$385:$AH$400,11,FALSE),"") ->  | I19: =IFERROR(VLOOKUP(KAYNAK!$Z415,KAYNAK!$X$385:$AH$400,10,FALSE),"") ->  | K19: =IFERROR(VLOOKUP(KAYNAK!$Z415,KAYNAK!X392:AJ406,12,FALSE),"") -> 
B20: 8 | C20: =IFERROR(VLOOKUP(KAYNAK!$Z416,KAYNAK!$X$385:$AH$400,4,FALSE),"") ->  | F20: =IFERROR(VLOOKUP(KAYNAK!$Z416,KAYNAK!$X$385:$AH$400,11,FALSE),"") ->  | I20: =IFERROR(VLOOKUP(KAYNAK!$Z416,KAYNAK!$X$385:$AH$400,10,FALSE),"") ->  | K20: =IFERROR(VLOOKUP(KAYNAK!$Z416,KAYNAK!X393:AJ407,12,FALSE),"") -> 
B21: 9 | C21: =IFERROR(VLOOKUP(KAYNAK!$Z417,KAYNAK!$X$385:$AH$400,4,FALSE),"") ->  | F21: =IFERROR(VLOOKUP(KAYNAK!$Z417,KAYNAK!$X$385:$AH$400,11,FALSE),"") ->  | I21: =IFERROR(VLOOKUP(KAYNAK!$Z417,KAYNAK!$X$385:$AH$400,10,FALSE),"") ->  | K21: =IFERROR(VLOOKUP(KAYNAK!$Z417,KAYNAK!X394:AJ408,12,FALSE),"") -> 
B22: 10 | C22: =IFERROR(VLOOKUP(KAYNAK!$Z418,KAYNAK!$X$385:$AH$400,4,FALSE),"") ->  | F22: =IFERROR(VLOOKUP(KAYNAK!$Z418,KAYNAK!$X$385:$AH$400,11,FALSE),"") ->  | I22: =IFERROR(VLOOKUP(KAYNAK!$Z418,KAYNAK!$X$385:$AH$400,10,FALSE),"") ->  | K22: =IFERROR(VLOOKUP(KAYNAK!$Z418,KAYNAK!X395:AJ409,12,FALSE),"") -> 
B23: 11 | C23: =IFERROR(VLOOKUP(KAYNAK!$Z419,KAYNAK!$X$385:$AH$400,4,FALSE),"") ->  | F23: =IFERROR(VLOOKUP(KAYNAK!$Z419,KAYNAK!$X$385:$AH$400,11,FALSE),"") ->  | I23: =IFERROR(VLOOKUP(KAYNAK!$Z419,KAYNAK!$X$385:$AH$400,10,FALSE),"") ->  | K23: =IFERROR(VLOOKUP(KAYNAK!$Z419,KAYNAK!X396:AJ410,12,FALSE),"") -> 
B24: 12 | C24: =IFERROR(VLOOKUP(KAYNAK!$Z420,KAYNAK!$X$385:$AH$400,4,FALSE),"") ->  | F24: =IFERROR(VLOOKUP(KAYNAK!$Z420,KAYNAK!$X$385:$AH$400,11,FALSE),"") ->  | I24: =IFERROR(VLOOKUP(KAYNAK!$Z420,KAYNAK!$X$385:$AH$400,10,FALSE),"") ->  | K24: =IFERROR(VLOOKUP(KAYNAK!$Z420,KAYNAK!X397:AJ411,12,FALSE),"") -> 
B25: 13 | C25: =IFERROR(VLOOKUP(KAYNAK!$Z421,KAYNAK!$X$385:$AH$400,4,FALSE),"") ->  | F25: =IFERROR(VLOOKUP(KAYNAK!$Z421,KAYNAK!$X$385:$AH$400,11,FALSE),"") ->  | I25: =IFERROR(VLOOKUP(KAYNAK!$Z421,KAYNAK!$X$385:$AH$400,10,FALSE),"") ->  | K25: =IFERROR(VLOOKUP(KAYNAK!$Z421,KAYNAK!X398:AJ412,12,FALSE),"") -> 
B26: 14 | C26: =IFERROR(VLOOKUP(KAYNAK!$Z422,KAYNAK!$X$385:$AH$400,4,FALSE),"") ->  | F26: =IFERROR(VLOOKUP(KAYNAK!$Z422,KAYNAK!$X$385:$AH$400,11,FALSE),"") ->  | I26: =IFERROR(VLOOKUP(KAYNAK!$Z422,KAYNAK!$X$385:$AH$400,10,FALSE),"") ->  | K26: =IFERROR(VLOOKUP(KAYNAK!$Z422,KAYNAK!X399:AJ413,12,FALSE),"") -> 
B27: 15 | C27: =IFERROR(VLOOKUP(KAYNAK!$Z423,KAYNAK!$X$385:$AH$400,4,FALSE),"") ->  | F27: =IFERROR(VLOOKUP(KAYNAK!$Z423,KAYNAK!$X$385:$AH$400,11,FALSE),"") ->  | I27: =IFERROR(VLOOKUP(KAYNAK!$Z423,KAYNAK!$X$385:$AH$400,10,FALSE),"") ->  | K27: =IFERROR(VLOOKUP(KAYNAK!$Z423,KAYNAK!X400:AJ414,12,FALSE),"") -> 
B31: =CONCATENATE(KAYNAK!X347," ",KAYNAK!X348," ",KAYNAK!X349," ",KAYNAK!X350," ",KAYNAK!X351) -> Okulumuz Çocuk Kulübünde görevli olup, kadrolu ve sözleşmeli devlet memuru olarak görev yapan personele ait 2023 yılı KASIM dönemi aylık vergi matrahı bildirimi tablosudur.
H35: =IF(KAYNAK!H102="0"," ",KAYNAK!H102) -> 
H36: =IF(KAYNAK!H102="0"," ",KAYNAK!I102) -> 

Sheet DEVAM TAKİP
B2: =KAYNAK!L106 -> KÖYCEĞİZ ANAOKULU | D2: ÇOCUK KULÜBÜ AYLIK İCMALİ | AF2: DÖNEMİ | AQ2: =KAYNAK!G3 -> 2023 | AR2: =BORDRO!D2 -> KASIM
AQ3: BÜTÇE YILI | AR3: =BORDRO!E2 -> 2023
B4: Sıra No | C4: Öğretmenin | D4: =CONCATENATE(AQ2," ","YILI"," ",AR2," ","DÖNEMİ"," ",C2," ","ÇOCUK KULÜBÜ"," ","AYLIK İCMALİ") -> 2023 YILI KASIM DÖNEMİ ÇOCUK KULÜBÜ AYLIK İCMALİ | AQ4: Aylık Okuttuğu Ders Toplamı | AR4: İmzası
C6: Adı Soyadı | D6: Görevi | E6: =TAKVİM!I2 -> 2023-11-01 | F6: =IF(E6<VLOOKUP(TAKVİM!$F$2,TAKVİM!$F$6:$H$101,3,0),'DEVAM TAKİP'!E6+1,"") -> 2023-11-02 | G6: =IF(F6<VLOOKUP(TAKVİM!$F$2,TAKVİM!$F$6:$H$101,3,0),'DEVAM TAKİP'!F6+1,"") -> 2023-11-03 | H6: =IF(G6<VLOOKUP(TAKVİM!$F$2,TAKVİM!$F$6:$H$101,3,0),'DEVAM TAKİP'!G6+1,"") -> 2023-11-04 | I6: =IF(H6<VLOOKUP(TAKVİM!$F$2,TAKVİM!$F$6:$H$101,3,0),'DEVAM TAKİP'!H6+1,"") -> 2023-11-05 | J6: =IF(I6<VLOOKUP(TAKVİM!$F$2,TAKVİM!$F$6:$H$101,3,0),'DEVAM TAKİP'!I6+1,"") -> 2023-11-06 | K6: =IF(J6<VLOOKUP(TAKVİM!$F$2,TAKVİM!$F$6:$H$101,3,0),'DEVAM TAKİP'!J6+1,"") -> 2023-11-07 | L6: =IF(K6<VLOOKUP(TAKVİM!$F$2,TAKVİM!$F$6:$H$101,3,0),'DEVAM TAKİP'!K6+1,"") -> 2023-11-08 | M6: =IF(L6<VLOOKUP(TAKVİM!$F$2,TAKVİM!$F$6:$H$101,3,0),'DEVAM TAKİP'!L6+1,"") -> 2023-11-09 | N6: =IF(M6<VLOOKUP(TAKVİM!$F$2,TAKVİM!$F$6:$H$101,3,0),'DEVAM TAKİP'!M6+1,"") -> 2023-11-10 | O6: =IF(N6<VLOOKUP(TAKVİM!$F$2,TAKVİM!$F$6:$H$101,3,0),'DEVAM TAKİP'!N6+1,"") -> 2023-11-11 | P6: =IF(O6<VLOOKUP(TAKVİM!$F$2,TAKVİM!$F$6:$H$101,3,0),'DEVAM TAKİP'!O6+1,"") -> 2023-11-12 | Q6: =IF(P6<VLOOKUP(TAKVİM!$F$2,TAKVİM!$F$6:$H$101,3,0),'DEVAM TAKİP'!P6+1,"") -> 2023-11-13 | R6: =IF(Q6<VLOOKUP(TAKVİM!$F$2,TAKVİM!$F$6:$H$101,3,0),'DEVAM TAKİP'!Q6+1,"") -> 2023-11-14 | S6: =IF(R6<VLOOKUP(TAKVİM!$F$2,TAKVİM!$F$6:$H$101,3,0),'DEVAM TAKİP'!R6+1,"") -> 2023-11-15 | T6: =IF(S6<VLOOKUP(TAKVİM!$F$2,TAKVİM!$F$6:$H$101,3,0),'DEVAM TAKİP'!S6+1,"") -> 2023-11-16 | U6: =IF(T6<VLOOKUP(TAKVİM!$F$2,TAKVİM!$F$6:$H$101,3,0),'DEVAM TAKİP'!T6+1,"") -> 2023-11-17 | V6: =IF(U6<VLOOKUP(TAKVİM!$F$2,TAKVİM!$F$6:$H$101,3,0),'DEVAM TAKİP'!U6+1,"") -> 2023-11-18 | W6: =IF(V6<VLOOKUP(TAKVİM!$F$2,TAKVİM!$F$6:$H$101,3,0),'DEVAM TAKİP'!V6+1,"") -> 2023-11-19 | X6: =IF(W6<VLOOKUP(TAKVİM!$F$2,TAKVİM!$F$6:$H$101,3,0),'DEVAM TAKİP'!W6+1,"") -> 2023-11-20 | Y6: =IF(X6<VLOOKUP(TAKVİM!$F$2,TAKVİM!$F$6:$H$101,3,0),'DEVAM TAKİP'!X6+1,"") -> 2023-11-21 | Z6: =IF(Y6<VLOOKUP(TAKVİM!$F$2,TAKVİM!$F$6:$H$101,3,0),'DEVAM TAKİP'!Y6+1,"") -> 2023-11-22 | AA6: =IF(Z6<VLOOKUP(TAKVİM!$F$2,TAKVİM!$F$6:$H$101,3,0),'DEVAM TAKİP'!Z6+1,"") -> 2023-11-23 | AB6: =IF(AA6<VLOOKUP(TAKVİM!$F$2,TAKVİM!$F$6:$H$101,3,0),'DEVAM TAKİP'!AA6+1,"") -> 2023-11-24 | AC6: =IF(AB6<VLOOKUP(TAKVİM!$F$2,TAKVİM!$F$6:$H$101,3,0),'DEVAM TAKİP'!AB6+1,"") -> 2023-11-25 | AD6: =IF(AC6<VLOOKUP(TAKVİM!$F$2,TAKVİM!$F$6:$H$101,3,0),'DEVAM TAKİP'!AC6+1,"") -> 2023-11-26 | AE6: =IF(AD6<VLOOKUP(TAKVİM!$F$2,TAKVİM!$F$6:$H$101,3,0),'DEVAM TAKİP'!AD6+1,"") -> 2023-11-27 | AF6: =IF(AE6<VLOOKUP(TAKVİM!$F$2,TAKVİM!$F$6:$H$101,3,0),'DEVAM TAKİP'!AE6+1,"") -> 2023-11-28 | AG6: =IF(AF6<VLOOKUP(TAKVİM!$F$2,TAKVİM!$F$6:$H$101,3,0),'DEVAM TAKİP'!AF6+1,"0") -> 2023-11-29 | AH6: =IF(AG6<VLOOKUP(TAKVİM!$F$2,TAKVİM!$F$6:$H$101,3,0),'DEVAM TAKİP'!AG6+1,"0") -> 2023-11-30 | AI6: =IF(AH6<VLOOKUP(TAKVİM!$F$2,TAKVİM!$F$6:$H$101,3,0),'DEVAM TAKİP'!AH6+1,"0") -> 0 | AJ6: =IF(AI6<VLOOKUP(TAKVİM!$F$2,TAKVİM!$F$6:$H$101,3,0),'DEVAM TAKİP'!AI6+1,"0") -> 0 | AK6: =IF(AJ6<VLOOKUP(TAKVİM!$F$2,TAKVİM!$F$6:$H$101,3,0),'DEVAM TAKİP'!AJ6+1,"0") -> 0 | AL6: =IF(AK6<VLOOKUP(TAKVİM!$F$2,TAKVİM!$F$6:$H$101,3,0),'DEVAM TAKİP'!AK6+1,"0") -> 0 | AM6: =IF(AL6<VLOOKUP(TAKVİM!$F$2,TAKVİM!$F$6:$H$101,3,0),'DEVAM TAKİP'!AL6+1,"0") -> 0 | AN6: =IF(AM6<VLOOKUP(TAKVİM!$F$2,TAKVİM!$F$6:$H$101,3,0),'DEVAM TAKİP'!AM6+1,"0") -> 0 | AO6: =IF(AN6<VLOOKUP(TAKVİM!$F$2,TAKVİM!$F$6:$H$101,3,0),'DEVAM TAKİP'!AN6+1,"0") -> 0 | AP6: =IF(AO6<VLOOKUP(TAKVİM!$F$2,TAKVİM!$F$6:$H$101,3,0),'DEVAM TAKİP'!AO6+1,"0") -> 0
B7: =IFERROR(VLOOKUP(KAYNAK!$Z409,KAYNAK!AF438:AY452,20,FALSE),"") ->  | C7: =IFERROR(VLOOKUP(KAYNAK!$Z409,KAYNAK!AF438:AN452,9,FALSE),"") ->  | D7: =IFERROR(VLOOKUP(KAYNAK!$Z409,KAYNAK!$AF$438:$AK$452,6,FALSE),"") ->  | E7: =IF(WEEKDAY($E$6,2)=1,"",IF(WEEKDAY($E$6,2)=2,"",IF(WEEKDAY($E$6,2)=3,"",IF(WEEKDAY($E$6,2)=4,"",IF(WEEKDAY($E$6,2)=5,"",IF(WEEKDAY($E$6,2)=6,"X",IF(WEEKDAY($E$6,2)=7,"X"))))))) ->  | F7: =IF(WEEKDAY($F$6,2)=1,"",IF(WEEKDAY($F$6,2)=2,"",IF(WEEKDAY($F$6,2)=3,"",IF(WEEKDAY($F$6,2)=4,"",IF(WEEKDAY($F$6,2)=5,"",IF(WEEKDAY($F$6,2)=6,"X",IF(WEEKDAY($F$6,2)=7,"X"))))))) ->  | G7: =IF(WEEKDAY(G$6,2)=1,"",IF(WEEKDAY(G$6,2)=2,"",IF(WEEKDAY(G$6,2)=3,"",IF(WEEKDAY(G$6,2)=4,"",IF(WEEKDAY(G$6,2)=5,"",IF(WEEKDAY(G$6,2)=6,"X",IF(WEEKDAY(G$6,2)=7,"X"))))))) ->  | H7: =IF(WEEKDAY(H$6,2)=1,"",IF(WEEKDAY(H$6,2)=2,"",IF(WEEKDAY(H$6,2)=3,"",IF(WEEKDAY(H$6,2)=4,"",IF(WEEKDAY(H$6,2)=5,"",IF(WEEKDAY(H$6,2)=6,"X",IF(WEEKDAY(H$6,2)=7,"X"))))))) -> X | I7: X | O7: X | P7: X | V7: X | W7: X | AC7: X | AD7: X | AI7: X | AJ7: =IF(WEEKDAY(AJ$6,2)=1,"",IF(WEEKDAY(AJ$6,2)=2,"",IF(WEEKDAY(AJ$6,2)=3,"",IF(WEEKDAY(AJ$6,2)=4,"",IF(WEEKDAY(AJ$6,2)=5,"",IF(WEEKDAY(AJ$6,2)=6,"X",IF(WEEKDAY(AJ$6,2)=7,"X"))))))) -> X | AK7: X | AL7: X | AM7: X | AN7: X | AO7: X | AP7: X | AQ7: =IFERROR(VLOOKUP(KAYNAK!$Z409,KAYNAK!AF438:AT452,15,FALSE),"") ->  | AX7: =IF(D7=KAYNAK!$F$16,"DOĞRU",IF('DEVAM TAKİP'!D7=KAYNAK!$F$17,"DOĞRU",IF('DEVAM TAKİP'!D7=KAYNAK!$F$18,"DOĞRU",IF('DEVAM TAKİP'!D7=KAYNAK!$F$21,"DOĞRU",IF('DEVAM TAKİP'!D7=KAYNAK!$F$22,"DOĞRU",IF(SUM(E7:AI7)<>AQ7,"HATALI","DOĞRU")))))) -> HATALI | CB7: =IF(WEEKDAY($E$6,2)=1,"",IF(WEEKDAY($E$6,2)=2,"",IF(WEEKDAY($E$6,2)=3,"",IF(WEEKDAY($E$6,2)=4,"",IF(WEEKDAY($E$6,2)=5,"",IF(WEEKDAY($E$6,2)=6,"X",IF(WEEKDAY($E$6,2)=7,"X"))))))) ->  | CC7: =IF(WEEKDAY($F$6,2)=1,"",IF(WEEKDAY($F$6,2)=2,"",IF(WEEKDAY($F$6,2)=3,"",IF(WEEKDAY($F$6,2)=4,"",IF(WEEKDAY($F$6,2)=5,"",IF(WEEKDAY($F$6,2)=6,"X",IF(WEEKDAY($F$6,2)=7,"X"))))))) ->  | CD7: =IF(WEEKDAY(CD$6,2)=1,"",IF(WEEKDAY(CD$6,2)=2,"",IF(WEEKDAY(CD$6,2)=3,"",IF(WEEKDAY(CD$6,2)=4,"",IF(WEEKDAY(CD$6,2)=5,"",IF(WEEKDAY(CD$6,2)=6,"X",IF(WEEKDAY(CD$6,2)=7,"X"))))))) -> X | CE7: =IF(WEEKDAY(CE$6,2)=1,"",IF(WEEKDAY(CE$6,2)=2,"",IF(WEEKDAY(CE$6,2)=3,"",IF(WEEKDAY(CE$6,2)=4,"",IF(WEEKDAY(CE$6,2)=5,"",IF(WEEKDAY(CE$6,2)=6,"X",IF(WEEKDAY(CE$6,2)=7,"X"))))))) -> X | CF7: X | CG7: X | CH7: X | CI7: X | CJ7: X | CK7: X | CL7: X | CM7: X | CN7: X | CO7: X | CP7: X | CQ7: X | CR7: X | CS7: X | CT7: X | CU7: X | CV7: X | CW7: X | CX7: X | CY7: X | CZ7: X | DA7: X | DB7: X | DC7: X | DD7: X | DE7: X | DF7: X
B8: =IFERROR(VLOOKUP(KAYNAK!$Z410,KAYNAK!AF439:AY453,20,FALSE),"") ->  | C8: =IFERROR(VLOOKUP(KAYNAK!$Z410,KAYNAK!AF439:AN453,9,FALSE),"") ->  | D8: =IFERROR(VLOOKUP(KAYNAK!$Z410,KAYNAK!$AF$438:$AK$452,6,FALSE),"") ->  | E8: =IF(WEEKDAY($E$6,2)=1,"",IF(WEEKDAY($E$6,2)=2,"",IF(WEEKDAY($E$6,2)=3,"",IF(WEEKDAY($E$6,2)=4,"",IF(WEEKDAY($E$6,2)=5,"",IF(WEEKDAY($E$6,2)=6,"X",IF(WEEKDAY($E$6,2)=7,"X"))))))) ->  | F8: =IF(WEEKDAY($F$6,2)=1,"",IF(WEEKDAY($F$6,2)=2,"",IF(WEEKDAY($F$6,2)=3,"",IF(WEEKDAY($F$6,2)=4,"",IF(WEEKDAY($F$6,2)=5,"",IF(WEEKDAY($F$6,2)=6,"X",IF(WEEKDAY($F$6,2)=7,"X"))))))) ->  | G8: =IF(WEEKDAY(G$6,2)=1,"",IF(WEEKDAY(G$6,2)=2,"",IF(WEEKDAY(G$6,2)=3,"",IF(WEEKDAY(G$6,2)=4,"",IF(WEEKDAY(G$6,2)=5,"",IF(WEEKDAY(G$6,2)=6,"X",IF(WEEKDAY(G$6,2)=7,"X"))))))) ->  | H8: =IF(WEEKDAY(H$6,2)=1,"",IF(WEEKDAY(H$6,2)=2,"",IF(WEEKDAY(H$6,2)=3,"",IF(WEEKDAY(H$6,2)=4,"",IF(WEEKDAY(H$6,2)=5,"",IF(WEEKDAY(H$6,2)=6,"X",IF(WEEKDAY(H$6,2)=7,"X"))))))) -> X | I8: X | O8: X | P8: X | V8: X | W8: X | AC8: X | AD8: X | AI8: X | AQ8: =IFERROR(VLOOKUP(KAYNAK!$Z410,KAYNAK!AF439:AT453,15,FALSE),"") ->  | AX8: =IF(D8=KAYNAK!$F$16,"DOĞRU",IF('DEVAM TAKİP'!D8=KAYNAK!$F$17,"DOĞRU",IF('DEVAM TAKİP'!D8=KAYNAK!$F$18,"DOĞRU",IF('DEVAM TAKİP'!D8=KAYNAK!$F$21,"DOĞRU",IF('DEVAM TAKİP'!D8=KAYNAK!$F$22,"DOĞRU",IF(SUM(E8:AI8)<>AQ8,"HATALI","DOĞRU")))))) -> HATALI | CB8: =IF(WEEKDAY($E$6,2)=1,"",IF(WEEKDAY($E$6,2)=2,"",IF(WEEKDAY($E$6,2)=3,"",IF(WEEKDAY($E$6,2)=4,"",IF(WEEKDAY($E$6,2)=5,"",IF(WEEKDAY($E$6,2)=6,"X",IF(WEEKDAY($E$6,2)=7,"X"))))))) ->  | CC8: =IF(WEEKDAY($F$6,2)=1,"",IF(WEEKDAY($F$6,2)=2,"",IF(WEEKDAY($F$6,2)=3,"",IF(WEEKDAY($F$6,2)=4,"",IF(WEEKDAY($F$6,2)=5,"",IF(WEEKDAY($F$6,2)=6,"X",IF(WEEKDAY($F$6,2)=7,"X"))))))) ->  | CD8: =IF(WEEKDAY(CD$6,2)=1,"",IF(WEEKDAY(CD$6,2)=2,"",IF(WEEKDAY(CD$6,2)=3,"",IF(WEEKDAY(CD$6,2)=4,"",IF(WEEKDAY(CD$6,2)=5,"",IF(WEEKDAY(CD$6,2)=6,"X",IF(WEEKDAY(CD$6,2)=7,"X"))))))) -> X | CE8: X | CF8: X | CG8: X | CH8: X | CI8: X | CJ8: X | CK8: X | CL8: X | CM8: X | CN8: X | CO8: X | CP8: X | CQ8: X | CR8: X | CS8: X | CT8: X | CU8: X | CV8: X | CW8: X | CX8: X | CY8: X | CZ8: X | DA8: X | DB8: X | DC8: X | DD8: X | DE8: X | DF8: X
B9: =IFERROR(VLOOKUP(KAYNAK!$Z411,KAYNAK!AF440:AY454,20,FALSE),"") ->  | C9: =IFERROR(VLOOKUP(KAYNAK!$Z411,KAYNAK!AF440:AN454,9,FALSE),"") ->  | D9: =IFERROR(VLOOKUP(KAYNAK!$Z411,KAYNAK!$AF$438:$AK$452,6,FALSE),"") ->  | H9: X | I9: =IF(WEEKDAY(I$6,2)=1,"",IF(WEEKDAY(I$6,2)=2,"",IF(WEEKDAY(I$6,2)=3,"",IF(WEEKDAY(I$6,2)=4,"",IF(WEEKDAY(I$6,2)=5,"",IF(WEEKDAY(I$6,2)=6,"X",IF(WEEKDAY(I$6,2)=7,"X"))))))) -> X | O9: X | P9: X | V9: X | W9: X | AC9: X | AD9: X | AI9: X | AQ9: =IFERROR(VLOOKUP(KAYNAK!$Z411,KAYNAK!AF440:AT454,15,FALSE),"") ->  | AX9: =IF(D9=KAYNAK!$F$16,"DOĞRU",IF('DEVAM TAKİP'!D9=KAYNAK!$F$17,"DOĞRU",IF('DEVAM TAKİP'!D9=KAYNAK!$F$18,"DOĞRU",IF('DEVAM TAKİP'!D9=KAYNAK!$F$21,"DOĞRU",IF('DEVAM TAKİP'!D9=KAYNAK!$F$22,"DOĞRU",IF(SUM(E9:AI9)<>AQ9,"HATALI","DOĞRU")))))) -> HATALI | BS9: İ/R | CD9: X | CE9: X | CF9: =IF(WEEKDAY(CF$6,2)=1,"",IF(WEEKDAY(CF$6,2)=2,"",IF(WEEKDAY(CF$6,2)=3,"",IF(WEEKDAY(CF$6,2)=4,"",IF(WEEKDAY(CF$6,2)=5,"",IF(WEEKDAY(CF$6,2)=6,"X",IF(WEEKDAY(CF$6,2)=7,"X"))))))) -> X | CG9: X | CH9: X | CI9: X | CJ9: X | CK9: X | CL9: X | CM9: X | CN9: X | CO9: X | CP9: X | CQ9: X | CR9: X | CS9: X | CT9: X | CU9: X | CV9: X | CW9: X | CX9: X | CY9: X | CZ9: X | DA9: X | DB9: X | DC9: X | DD9: X | DE9: X | DF9: X
B10: =IFERROR(VLOOKUP(KAYNAK!$Z412,KAYNAK!AF441:AY455,20,FALSE),"") ->  | C10: =IFERROR(VLOOKUP(KAYNAK!$Z412,KAYNAK!AF441:AN455,9,FALSE),"") ->  | D10: =IFERROR(VLOOKUP(KAYNAK!$Z412,KAYNAK!$AF$438:$AK$452,6,FALSE),"") ->  | H10: X | I10: X | O10: X | P10: X | V10: X | W10: X | AC10: X | AD10: X | AI10: X | AQ10: =IFERROR(VLOOKUP(KAYNAK!$Z412,KAYNAK!AF441:AT455,15,FALSE),"") ->  | AX10: =IF(D10=KAYNAK!$F$16,"DOĞRU",IF('DEVAM TAKİP'!D10=KAYNAK!$F$17,"DOĞRU",IF('DEVAM TAKİP'!D10=KAYNAK!$F$18,"DOĞRU",IF('DEVAM TAKİP'!D10=KAYNAK!$F$21,"DOĞRU",IF('DEVAM TAKİP'!D10=KAYNAK!$F$22,"DOĞRU",IF(SUM(E10:AI10)<>AQ10,"HATALI","DOĞRU")))))) -> HATALI | BS10: X | CD10: X | CE10: X | CF10: X | CG10: X | CH10: X | CI10: X | CJ10: X | CK10: X | CL10: X | CM10: X | CN10: X | CO10: X | CP10: X | CQ10: X | CR10: X | CS10: X | CT10: X | CU10: X | CV10: X | CW10: X | CX10: X | CY10: X | CZ10: X | DA10: X | DB10: X | DC10: X | DD10: X | DE10: X | DF10: X
B11: =IFERROR(VLOOKUP(KAYNAK!$Z413,KAYNAK!AF442:AY456,20,FALSE),"") ->  | C11: =IFERROR(VLOOKUP(KAYNAK!$Z413,KAYNAK!AF442:AN456,9,FALSE),"") ->  | D11: =IFERROR(VLOOKUP(KAYNAK!$Z413,KAYNAK!$AF$438:$AK$452,6,FALSE),"") ->  | H11: X | I11: X | O11: X | P11: X | V11: X | W11: X | AC11: X | AD11: X | AI11: X | AQ11: =IFERROR(VLOOKUP(KAYNAK!$Z413,KAYNAK!AF442:AT456,15,FALSE),"") ->  | AX11: =IF(D11=KAYNAK!$F$16,"DOĞRU",IF('DEVAM TAKİP'!D11=KAYNAK!$F$17,"DOĞRU",IF('DEVAM TAKİP'!D11=KAYNAK!$F$18,"DOĞRU",IF('DEVAM TAKİP'!D11=KAYNAK!$F$21,"DOĞRU",IF('DEVAM TAKİP'!D11=KAYNAK!$F$22,"DOĞRU",IF(SUM(E11:AI11)<>AQ11,"HATALI","DOĞRU")))))) -> HATALI | BS11: 1 | CD11: X | CE11: X | CF11: X | CH11: X | CI11: X | CJ11: X | CK11: X | CL11: X | CM11: X | CN11: X | CO11: X | CP11: X | CQ11: X | CR11: X | CS11: X | CT11: X | CU11: X | CV11: X | CW11: X | CX11: X | CY11: X | CZ11: X | DA11: X | DB11: X | DC11: X | DD11: X | DE11: X | DF11: X
B12: =IFERROR(VLOOKUP(KAYNAK!$Z414,KAYNAK!AF443:AY457,20,FALSE),"") ->  | C12: =IFERROR(VLOOKUP(KAYNAK!$Z414,KAYNAK!AF443:AN457,9,FALSE),"") ->  | D12: =IFERROR(VLOOKUP(KAYNAK!$Z414,KAYNAK!$AF$438:$AK$452,6,FALSE),"") ->  | H12: X | I12: X | O12: X | P12: X | V12: X | W12: X | AC12: X | AD12: X | AI12: X | AQ12: =IFERROR(VLOOKUP(KAYNAK!$Z414,KAYNAK!AF443:AT457,15,FALSE),"") ->  | AX12: =IF(D12=KAYNAK!$F$16,"DOĞRU",IF('DEVAM TAKİP'!D12=KAYNAK!$F$17,"DOĞRU",IF('DEVAM TAKİP'!D12=KAYNAK!$F$18,"DOĞRU",IF('DEVAM TAKİP'!D12=KAYNAK!$F$21,"DOĞRU",IF('DEVAM TAKİP'!D12=KAYNAK!$F$22,"DOĞRU",IF(SUM(E12:AI12)<>AQ12,"HATALI","DOĞRU")))))) -> HATALI | BS12: 2 | CD12: X | CE12: X | CF12: X | CG12: X | CH12: X | CI12: X | CJ12: X | CK12: X | CL12: X | CM12: X | CN12: X | CO12: X | CP12: X | CQ12: X | CR12: X | CS12: X | CT12: X | CU12: X | CV12: X | CW12: X | CX12: X | CY12: X | CZ12: X | DA12: X | DB12: X | DC12: X | DD12: X | DE12: X | DF12: X
B13: =IFERROR(VLOOKUP(KAYNAK!$Z415,KAYNAK!AF444:AY458,20,FALSE),"") ->  | C13: =IFERROR(VLOOKUP(KAYNAK!$Z415,KAYNAK!AF444:AN458,9,FALSE),"") ->  | D13: =IFERROR(VLOOKUP(KAYNAK!$Z415,KAYNAK!$AF$438:$AK$452,6,FALSE),"") ->  | H13: X | I13: X | O13: X | P13: X | V13: X | W13: X | AC13: X | AD13: X | AI13: X | AQ13: =IFERROR(VLOOKUP(KAYNAK!$Z415,KAYNAK!AF444:AT458,15,FALSE),"") ->  | AX13: =IF(D13=KAYNAK!$F$16,"DOĞRU",IF('DEVAM TAKİP'!D13=KAYNAK!$F$17,"DOĞRU",IF('DEVAM TAKİP'!D13=KAYNAK!$F$18,"DOĞRU",IF('DEVAM TAKİP'!D13=KAYNAK!$F$21,"DOĞRU",IF('DEVAM TAKİP'!D13=KAYNAK!$F$22,"DOĞRU",IF(SUM(E13:AI13)<>AQ13,"HATALI","DOĞRU")))))) -> HATALI | BS13: 3 | CD13: X | CE13: X | CF13: X | CG13: X | CH13: X | CI13: X | CJ13: X | CK13: X | CL13: X | CM13: X | CN13: X | CO13: X | CP13: X | CQ13: X | CR13: X | CS13: X | CT13: X | CU13: X | CV13: X | CW13: X | CX13: X | CY13: X | CZ13: X | DA13: X | DB13: X | DC13: X | DD13: X | DE13: X | DF13: X
B14: =IFERROR(VLOOKUP(KAYNAK!$Z416,KAYNAK!AF445:AY459,20,FALSE),"") ->  | C14: =IFERROR(VLOOKUP(KAYNAK!$Z416,KAYNAK!AF445:AN459,9,FALSE),"") ->  | D14: =IFERROR(VLOOKUP(KAYNAK!$Z416,KAYNAK!$AF$438:$AK$452,6,FALSE),"") ->  | H14: X | I14: X | O14: X | P14: X | V14: X | W14: X | AC14: X | AD14: X | AI14: X | AQ14: =IFERROR(VLOOKUP(KAYNAK!$Z416,KAYNAK!AF445:AT459,15,FALSE),"") ->  | AX14: =IF(D14=KAYNAK!$F$16,"DOĞRU",IF('DEVAM TAKİP'!D14=KAYNAK!$F$17,"DOĞRU",IF('DEVAM TAKİP'!D14=KAYNAK!$F$18,"DOĞRU",IF('DEVAM TAKİP'!D14=KAYNAK!$F$21,"DOĞRU",IF('DEVAM TAKİP'!D14=KAYNAK!$F$22,"DOĞRU",IF(SUM(E14:AI14)<>AQ14,"HATALI","DOĞRU")))))) -> HATALI | BS14: 4 | CD14: X | CE14: X | CF14: X | CG14: X | CH14: X | CI14: X | CJ14: X | CK14: X | CL14: X | CM14: X | CN14: X | CO14: X | CP14: X | CQ14: X | CR14: X | CS14: X | CT14: X | CU14: X | CV14: X | CW14: X | CX14: X | CY14: X | CZ14: X | DA14: X | DB14: X | DC14: X | DD14: X | DE14: X | DF14: X
B15: =IFERROR(VLOOKUP(KAYNAK!$Z417,KAYNAK!AF446:AY460,20,FALSE),"") ->  | C15: =IFERROR(VLOOKUP(KAYNAK!$Z417,KAYNAK!AF446:AN460,9,FALSE),"") ->  | D15: =IFERROR(VLOOKUP(KAYNAK!$Z417,KAYNAK!$AF$438:$AK$452,6,FALSE),"") ->  | H15: X | I15: X | O15: X | P15: X | V15: X | W15: X | AC15: X | AD15: X | AI15: X | AQ15: =IFERROR(VLOOKUP(KAYNAK!$Z417,KAYNAK!AF446:AT460,15,FALSE),"") ->  | AX15: =IF(D15=KAYNAK!$F$16,"DOĞRU",IF('DEVAM TAKİP'!D15=KAYNAK!$F$17,"DOĞRU",IF('DEVAM TAKİP'!D15=KAYNAK!$F$18,"DOĞRU",IF('DEVAM TAKİP'!D15=KAYNAK!$F$21,"DOĞRU",IF('DEVAM TAKİP'!D15=KAYNAK!$F$22,"DOĞRU",IF(SUM(E15:AI15)<>AQ15,"HATALI","DOĞRU")))))) -> HATALI | BS15: 5 | CD15: X | CE15: X | CF15: X | CG15: X | CH15: X | CI15: X | CJ15: X | CK15: X | CL15: X | CM15: X | CN15: X | CO15: X | CP15: X | CQ15: X | CR15: X | CS15: X | CT15: X | CU15: X | CV15: X | CW15: X | CX15: X | CY15: X | CZ15: X | DA15: X | DB15: X | DC15: X | DD15: X | DE15: X | DF15: X
B16: =IFERROR(VLOOKUP(KAYNAK!$Z418,KAYNAK!AF447:AY461,20,FALSE),"") ->  | C16: =IFERROR(VLOOKUP(KAYNAK!$Z418,KAYNAK!AF447:AN461,9,FALSE),"") ->  | D16: =IFERROR(VLOOKUP(KAYNAK!$Z418,KAYNAK!$AF$438:$AK$452,6,FALSE),"") ->  | E16: x | F16: =IF(WEEKDAY($F$6,2)=1,"",IF(WEEKDAY($F$6,2)=2,"",IF(WEEKDAY($F$6,2)=3,"",IF(WEEKDAY($F$6,2)=4,"",IF(WEEKDAY($F$6,2)=5,"",IF(WEEKDAY($F$6,2)=6,"X",IF(WEEKDAY($F$6,2)=7,"X"))))))) ->  | G16: =IF(WEEKDAY(G$6,2)=1,"",IF(WEEKDAY(G$6,2)=2,"",IF(WEEKDAY(G$6,2)=3,"",IF(WEEKDAY(G$6,2)=4,"",IF(WEEKDAY(G$6,2)=5,"",IF(WEEKDAY(G$6,2)=6,"X",IF(WEEKDAY(G$6,2)=7,"X"))))))) ->  | H16: =IF(WEEKDAY(H$6,2)=1,"",IF(WEEKDAY(H$6,2)=2,"",IF(WEEKDAY(H$6,2)=3,"",IF(WEEKDAY(H$6,2)=4,"",IF(WEEKDAY(H$6,2)=5,"",IF(WEEKDAY(H$6,2)=6,"X",IF(WEEKDAY(H$6,2)=7,"X"))))))) -> X | I16: X | M16: =IF(WEEKDAY(M$6,2)=1,"",IF(WEEKDAY(M$6,2)=2,"",IF(WEEKDAY(M$6,2)=3,"",IF(WEEKDAY(M$6,2)=4,"",IF(WEEKDAY(M$6,2)=5,"",IF(WEEKDAY(M$6,2)=6,"X",IF(WEEKDAY(M$6,2)=7,"X"))))))) ->  | O16: X | P16: X | V16: X | W16: X | AC16: X | AD16: X | AI16: X | AQ16: =IFERROR(VLOOKUP(KAYNAK!$Z418,KAYNAK!AF447:AT461,15,FALSE),"") ->  | AX16: =IF(D16=KAYNAK!$F$16,"DOĞRU",IF('DEVAM TAKİP'!D16=KAYNAK!$F$17,"DOĞRU",IF('DEVAM TAKİP'!D16=KAYNAK!$F$18,"DOĞRU",IF('DEVAM TAKİP'!D16=KAYNAK!$F$21,"DOĞRU",IF('DEVAM TAKİP'!D16=KAYNAK!$F$22,"DOĞRU",IF(SUM(E16:AI16)<>AQ16,"HATALI","DOĞRU")))))) -> HATALI | BS16: 6 | CD16: X | CE16: X | CF16: X | CG16: X | CH16: X | CI16: X | CJ16: =IF(WEEKDAY(CJ$6,2)=1,"",IF(WEEKDAY(CJ$6,2)=2,"",IF(WEEKDAY(CJ$6,2)=3,"",IF(WEEKDAY(CJ$6,2)=4,"",IF(WEEKDAY(CJ$6,2)=5,"",IF(WEEKDAY(CJ$6,2)=6,"X",IF(WEEKDAY(CJ$6,2)=7,"X"))))))) -> X | CK16: X | CL16: X | CM16: X | CN16: X | CO16: X | CP16: X | CQ16: X | CR16: X | CS16: X | CT16: X | CU16: X | CV16: X | CW16: X | CX16: X | CY16: X | CZ16: X | DA16: X | DB16: X | DC16: X | DD16: X | DE16: X | DF16: X
B17: =IFERROR(VLOOKUP(KAYNAK!$Z419,KAYNAK!AF448:AY462,20,FALSE),"") ->  | C17: =IFERROR(VLOOKUP(KAYNAK!$Z419,KAYNAK!AF448:AN462,9,FALSE),"") ->  | D17: =IFERROR(VLOOKUP(KAYNAK!$Z419,KAYNAK!$AF$438:$AK$452,6,FALSE),"") ->  | E17: =IF(WEEKDAY($E$6,2)=1,"",IF(WEEKDAY($E$6,2)=2,"",IF(WEEKDAY($E$6,2)=3,"",IF(WEEKDAY($E$6,2)=4,"",IF(WEEKDAY($E$6,2)=5,"",IF(WEEKDAY($E$6,2)=6,"X",IF(WEEKDAY($E$6,2)=7,"X"))))))) ->  | F17: =IF(WEEKDAY($F$6,2)=1,"",IF(WEEKDAY($F$6,2)=2,"",IF(WEEKDAY($F$6,2)=3,"",IF(WEEKDAY($F$6,2)=4,"",IF(WEEKDAY($F$6,2)=5,"",IF(WEEKDAY($F$6,2)=6,"X",IF(WEEKDAY($F$6,2)=7,"X"))))))) ->  | G17: =IF(WEEKDAY(G$6,2)=1,"",IF(WEEKDAY(G$6,2)=2,"",IF(WEEKDAY(G$6,2)=3,"",IF(WEEKDAY(G$6,2)=4,"",IF(WEEKDAY(G$6,2)=5,"",IF(WEEKDAY(G$6,2)=6,"X",IF(WEEKDAY(G$6,2)=7,"X"))))))) ->  | H17: X | I17: X | O17: X | P17: X | V17: X | W17: =IF(WEEKDAY(W$6,2)=1,"",IF(WEEKDAY(W$6,2)=2,"",IF(WEEKDAY(W$6,2)=3,"",IF(WEEKDAY(W$6,2)=4,"",IF(WEEKDAY(W$6,2)=5,"",IF(WEEKDAY(W$6,2)=6,"X",IF(WEEKDAY(W$6,2)=7,"X"))))))) -> X | AC17: X | AD17: X | AI17: X | AQ17: =IFERROR(VLOOKUP(KAYNAK!$Z419,KAYNAK!AF448:AT462,15,FALSE),"") ->  | AX17: =IF(D17=KAYNAK!$F$16,"DOĞRU",IF('DEVAM TAKİP'!D17=KAYNAK!$F$17,"DOĞRU",IF('DEVAM TAKİP'!D17=KAYNAK!$F$18,"DOĞRU",IF('DEVAM TAKİP'!D17=KAYNAK!$F$21,"DOĞRU",IF('DEVAM TAKİP'!D17=KAYNAK!$F$22,"DOĞRU",IF(SUM(E17:AI17)<>AQ17,"HATALI","DOĞRU")))))) -> HATALI | BS17: 7 | CD17: X | CE17: X | CF17: X | CG17: X | CH17: X | CI17: X | CJ17: X | CK17: X | CL17: X | CM17: X | CN17: X | CO17: X | CP17: X | CQ17: X | CR17: X | CS17: X | CT17: X | CU17: X | CV17: X | CW17: X | CX17: X | CY17: X | CZ17: X | DA17: X | DB17: X | DC17: X | DD17: X | DE17: X | DF17: X
B18: =IFERROR(VLOOKUP(KAYNAK!$Z420,KAYNAK!AF449:AY463,20,FALSE),"") ->  | C18: =IFERROR(VLOOKUP(KAYNAK!$Z420,KAYNAK!AF449:AN463,9,FALSE),"") ->  | D18: =IFERROR(VLOOKUP(KAYNAK!$Z420,KAYNAK!$AF$438:$AK$452,6,FALSE),"") ->  | H18: X | I18: X | O18: X | P18: X | V18: X | W18: X | AC18: X | AD18: X | AI18: X | AQ18: =IFERROR(VLOOKUP(KAYNAK!$Z420,KAYNAK!AF449:AT463,15,FALSE),"") ->  | AX18: =IF(D18=KAYNAK!$F$16,"DOĞRU",IF('DEVAM TAKİP'!D18=KAYNAK!$F$17,"DOĞRU",IF('DEVAM TAKİP'!D18=KAYNAK!$F$18,"DOĞRU",IF('DEVAM TAKİP'!D18=KAYNAK!$F$21,"DOĞRU",IF('DEVAM TAKİP'!D18=KAYNAK!$F$22,"DOĞRU",IF(SUM(E18:AI18)<>AQ18,"HATALI","DOĞRU")))))) -> HATALI | BS18: 8 | CD18: X | CE18: X | CF18: X | CG18: X | CH18: X | CI18: X | CJ18: X | CK18: X | CL18: X | CM18: X | CN18: X | CO18: X | CP18: X | CQ18: X | CR18: X | CS18: X | CT18: X | CU18: X | CV18: X | CW18: X | CX18: X | CY18: X | CZ18: X | DA18: X | DB18: X | DC18: X | DD18: X | DE18: X | DF18: X
B19: =IFERROR(VLOOKUP(KAYNAK!$Z421,KAYNAK!AF450:AY464,20,FALSE),"") ->  | C19: =IFERROR(VLOOKUP(KAYNAK!$Z421,KAYNAK!AF450:AN464,9,FALSE),"") ->  | D19: =IFERROR(VLOOKUP(KAYNAK!$Z421,KAYNAK!$AF$438:$AK$452,6,FALSE),"") ->  | H19: X | I19: X | O19: X | P19: X | V19: X | W19: X | AC19: X | AD19: X | AI19: X | AQ19: =IFERROR(VLOOKUP(KAYNAK!$Z421,KAYNAK!AF450:AT464,15,FALSE),"") ->  | AX19: =IF(D19=KAYNAK!$F$16,"DOĞRU",IF('DEVAM TAKİP'!D19=KAYNAK!$F$17,"DOĞRU",IF('DEVAM TAKİP'!D19=KAYNAK!$F$18,"DOĞRU",IF('DEVAM TAKİP'!D19=KAYNAK!$F$21,"DOĞRU",IF('DEVAM TAKİP'!D19=KAYNAK!$F$22,"DOĞRU",IF(SUM(E19:AI19)<>AQ19,"HATALI","DOĞRU")))))) -> HATALI | BS19: 9 | CD19: X | CE19: X | CF19: X | CG19: X | CH19: X | CI19: X | CJ19: X | CK19: X | CL19: X | CM19: X | CN19: X | CO19: X | CP19: X | CQ19: X | CR19: X | CS19: X | CT19: X | CU19: X | CV19: X | CW19: X | CX19: X | CY19: X | CZ19: X | DA19: X | DB19: X | DC19: X | DD19: X | DE19: X | DF19: X
B20: =IFERROR(VLOOKUP(KAYNAK!$Z422,KAYNAK!AF451:AY465,20,FALSE),"") ->  | C20: =IFERROR(VLOOKUP(KAYNAK!$Z422,KAYNAK!AF451:AN465,9,FALSE),"") ->  | D20: =IFERROR(VLOOKUP(KAYNAK!$Z422,KAYNAK!$AF$438:$AK$452,6,FALSE),"") ->  | H20: X | I20: X | O20: X | P20: X | V20: X | W20: X | AC20: X | AD20: X | AI20: X | AQ20: =IFERROR(VLOOKUP(KAYNAK!$Z422,KAYNAK!AF451:AT465,15,FALSE),"") ->  | AX20: =IF(D20=KAYNAK!$F$16,"DOĞRU",IF('DEVAM TAKİP'!D20=KAYNAK!$F$17,"DOĞRU",IF('DEVAM TAKİP'!D20=KAYNAK!$F$18,"DOĞRU",IF('DEVAM TAKİP'!D20=KAYNAK!$F$21,"DOĞRU",IF('DEVAM TAKİP'!D20=KAYNAK!$F$22,"DOĞRU",IF(SUM(E20:AI20)<>AQ20,"HATALI","DOĞRU")))))) -> HATALI | BS20: 10 | CD20: X | CE20: X | CF20: X | CG20: X | CH20: X | CI20: X | CJ20: X | CK20: X | CL20: X | CM20: X | CN20: X | CO20: X | CP20: X | CQ20: X | CR20: X | CS20: X | CT20: X | CU20: X | CV20: X | CW20: X | CX20: X | CY20: X | CZ20: X | DA20: X | DB20: X | DC20: X | DD20: X | DE20: X | DF20: X
B21: =IFERROR(VLOOKUP(KAYNAK!$Z423,KAYNAK!AF452:AY466,20,FALSE),"") ->  | C21: =IFERROR(VLOOKUP(KAYNAK!$Z423,KAYNAK!AF452:AN466,9,FALSE),"") ->  | D21: =IFERROR(VLOOKUP(KAYNAK!$Z423,KAYNAK!$AF$438:$AK$452,6,FALSE),"") ->  | H21: X | I21: X | O21: X | P21: X | V21: X | W21: X | AC21: X | AD21: X | AI21: X | AQ21: =IFERROR(VLOOKUP(KAYNAK!$Z423,KAYNAK!AF452:AT466,15,FALSE),"") ->  | AX21: =IF(D21=KAYNAK!$F$16,"DOĞRU",IF('DEVAM TAKİP'!D21=KAYNAK!$F$17,"DOĞRU",IF('DEVAM TAKİP'!D21=KAYNAK!$F$18,"DOĞRU",IF('DEVAM TAKİP'!D21=KAYNAK!$F$21,"DOĞRU",IF('DEVAM TAKİP'!D21=KAYNAK!$F$22,"DOĞRU",IF(SUM(E21:AI21)<>AQ21,"HATALI","DOĞRU")))))) -> HATALI | CD21: X | CE21: X | CF21: X | CG21: X | CH21: X | CI21: X | CJ21: X | CK21: X | CL21: X | CM21: X | CN21: X | CO21: X | CP21: X | CQ21: X | CR21: X | CS21: X | CT21: X | CU21: X | CV21: X | CW21: X | CX21: X | CY21: X | CZ21: X | DA21: X | DB21: X | DC21: X | DD21: X | DE21: X | DF21: X
B22: =CONCATENATE(B2," ","ÇOCUK KULÜBÜ'NDE"," ","GÖREVLİ ÖĞRETMEN / USTA ÖĞRETİCİLERCE"," ",AR3," ","YILI"," ",AR2," ","DÖNEMİNDE","TOPLAM"," ",AQ22," ","SAAT ETKİNLİK GERÇEKLEŞTİRİLMİŞTİR.") -> KÖYCEĞİZ ANAOKULU ÇOCUK KULÜBÜ'NDE GÖREVLİ ÖĞRETMEN / USTA ÖĞRETİCİLERCE 2023 YILI KASIM DÖNEMİNDETOPLAM 0 SAAT ETKİNLİK GERÇEKLEŞTİRİLMİŞTİR. | AB22: TOPLAM | AQ22: =SUM(AQ7:AQ21) -> 0
C24: =IF(KAYNAK!H101="0"," ",KAYNAK!H101) ->  | AD24: =IF(KAYNAK!H102="0"," ",KAYNAK!H102) -> 
C25: =IF(KAYNAK!H101="0"," ",KAYNAK!I101) ->  | AD25: =IF(KAYNAK!H102="0"," ",KAYNAK!I102) -> 
D28: İZİNLİ / RAPORLU | E28: İ/R | I28: TATİL GÜNLERİ İÇİN | O28: X | T28: GİRİLEN SAAT İÇİN | Y28: SAAT SEÇİNİZ

Sheet KAYNAK (hidden)
C1: 0 | D1: 0 | G1: SEÇİLİ AY | I1: BU SAYFADA DEĞİŞİKLİK YAPMAYINIZ. | AB1: 0
B2: Evet | C2: 1 | D2: 1 | F2: EYLÜL | G2: =ANASAYFA!N6 -> KASIM | AB2: 1
B3: Hayır | C3: 2 | D3: 2 | F3: EKİM | G3: =CONCATENATE(ANASAYFA!N5) -> 2023 | AB3: 2
C4: 3 | D4: 3 | F4: KASIM | AB4: 3
A5: =IF(ANASAYFA!J6:K6=KAYNAK!B2,4,IF(ANASAYFA!J6:K6=KAYNAK!B3,6)) -> 4 | B5: FALSE | C5: 4 | D5: 4 | F5: ARALIK | G5: SEÇİLİ AY İŞ GÜNÜ | J5: Öğretmen Listesi ayrı | AB5: 4
C6: 5 | D6: 5 | F6: OCAK | G6: =ANASAYFA!O6 -> 0 | AB6: 5 | AQ6: ghs-yhs ders saatleri
C7: 6 | D7: 6 | F7: ŞUBAT | J7: =IF(ISBLANK(ANASAYFA!C15:F15)," ",ANASAYFA!C15:F15) ->  | N7: =IF(ISBLANK(ANASAYFA!G15:H15)," ",ANASAYFA!G15:H15) ->  | P7: =IF(ISBLANK(ANASAYFA!I15:J15)," ",ANASAYFA!I15:J15) ->  | R7: =IF(ISBLANK(ANASAYFA!K15)," ",ANASAYFA!K15) ->  | T7: =TEXT(J7,0) ->  | X7: =TEXT(N7,0) ->  | Z7: =TEXT(P7,0) ->  | AB7: 6 | AF7: =CONCATENATE(T7) ->  | AK7: =X7 ->  | AN7: =Z7 ->  | AR7: =IF(AK7=$F$16,(ANASAYFA!K15+ANASAYFA!L15),IF(AK7=$F$17,ANASAYFA!K15,IF(AK7=$F$18,ANASAYFA!K15,IF(KAYNAK!AK7=KAYNAK!$F$21,ANASAYFA!K15+ANASAYFA!L15,IF(KAYNAK!AK7=KAYNAK!$F$22,ANASAYFA!K15+ANASAYFA!L15,0))))) -> 0
C8: 7 | D8: 7 | F8: MART | G8: AYLIK TOPLAM BÜTÇE | J8: =IF(ISBLANK(ANASAYFA!C16:F16)," ",ANASAYFA!C16:F16) ->  | N8: =IF(ISBLANK(ANASAYFA!G16:H16)," ",ANASAYFA!G16:H16) ->  | P8: =IF(ISBLANK(ANASAYFA!I16:J16)," ",ANASAYFA!I16:J16) ->  | R8: =IF(ISBLANK(ANASAYFA!K16)," ",ANASAYFA!K16) ->  | T8: =TEXT(J8,0) ->  | X8: =TEXT(N8,0) ->  | Z8: =TEXT(P8,0) ->  | AB8: 7 | AF8: =CONCATENATE(T8) ->  | AK8: =X8 ->  | AN8: =Z8 ->  | AR8: =IF(AK8=$F$16,(ANASAYFA!K16+ANASAYFA!L16),IF(AK8=$F$17,ANASAYFA!K16,IF(AK8=$F$18,ANASAYFA!K16,IF(KAYNAK!AK8=KAYNAK!$F$21,ANASAYFA!K16+ANASAYFA!L16,IF(KAYNAK!AK8=KAYNAK!$F$22,ANASAYFA!K16+ANASAYFA!L16,0))))) -> 0
C9: 8 | D9: 8 | F9: NİSAN | G9: =(G11-G13-(G12/2))*ANASAYFA!J10*ANASAYFA!L6:M6*KAYNAK!G6 -> 0 | H9: 0 | J9: =IF(ISBLANK(ANASAYFA!C17:F17)," ",ANASAYFA!C17:F17) ->  | N9: =IF(ISBLANK(ANASAYFA!G17:H17)," ",ANASAYFA!G17:H17) ->  | P9: =IF(ISBLANK(ANASAYFA!I17:J17)," ",ANASAYFA!I17:J17) ->  | R9: =IF(ISBLANK(ANASAYFA!K17)," ",ANASAYFA!K17) ->  | X9: =TEXT(N9,0) ->  | AB9: 8 | AR9: =IF(AK9=$F$16,(ANASAYFA!K17+ANASAYFA!L17),IF(AK9=$F$17,ANASAYFA!K17,IF(AK9=$F$18,ANASAYFA!K17,IF(KAYNAK!AK9=KAYNAK!$F$21,ANASAYFA!K17+ANASAYFA!L17,IF(KAYNAK!AK9=KAYNAK!$F$22,ANASAYFA!K17+ANASAYFA!L17,0))))) -> 0
B10: FARKLI | C10: 9 | D10: 9 | F10: MAYIS | G10: =CONCATENATE(G9) -> 0 | J10: =IF(ISBLANK(ANASAYFA!C18:F18)," ",ANASAYFA!C18:F18) ->  | N10: =IF(ISBLANK(ANASAYFA!G18:H18)," ",ANASAYFA!G18:H18) ->  | P10: =IF(ISBLANK(ANASAYFA!I18:J18)," ",ANASAYFA!I18:J18) ->  | R10: =IF(ISBLANK(ANASAYFA!K18)," ",ANASAYFA!K18) ->  | AB10: 9 | AR10: =IF(AK10=$F$16,(ANASAYFA!K18+ANASAYFA!L18),IF(AK10=$F$17,ANASAYFA!K18,IF(AK10=$F$18,ANASAYFA!K18,IF(KAYNAK!AK10=KAYNAK!$F$21,ANASAYFA!K18+ANASAYFA!L18,IF(KAYNAK!AK10=KAYNAK!$F$22,ANASAYFA!K18+ANASAYFA!L18,0))))) -> 0
B11: AYNI | C11: 10 | D11: 10 | F11: HAZİRAN | G11: =ANASAYFA!Q6 -> 0 | H11: toplam | J11: =IF(ISBLANK(ANASAYFA!C19:F19)," ",ANASAYFA!C19:F19) ->  | N11: =IF(ISBLANK(ANASAYFA!G19:H19)," ",ANASAYFA!G19:H19) ->  | P11: =IF(ISBLANK(ANASAYFA!I19:J19)," ",ANASAYFA!I19:J19) ->  | R11: =IF(ISBLANK(ANASAYFA!K19)," ",ANASAYFA!K19) ->  | AB11: 10 | AR11: =IF(AK11=$F$16,(ANASAYFA!K19+ANASAYFA!L19),IF(AK11=$F$17,ANASAYFA!K19,IF(AK11=$F$18,ANASAYFA!K19,IF(KAYNAK!AK11=KAYNAK!$F$21,ANASAYFA!K19+ANASAYFA!L19,IF(KAYNAK!AK11=KAYNAK!$F$22,ANASAYFA!K19+ANASAYFA!L19,0))))) -> 0
D12: 11 | F12: TEMMUZ | G12: =ANASAYFA!R6 -> 0 | H12: %50 indirim | J12: =IF(ISBLANK(ANASAYFA!C20:F20)," ",ANASAYFA!C20:F20) ->  | N12: =IF(ISBLANK(ANASAYFA!G20:H20)," ",ANASAYFA!G20:H20) ->  | P12: =IF(ISBLANK(ANASAYFA!I20:J20)," ",ANASAYFA!I20:J20) ->  | R12: =IF(ISBLANK(ANASAYFA!K20)," ",ANASAYFA!K20) ->  | AB12: 11 | AR12: =IF(AK12=$F$16,(ANASAYFA!K20+ANASAYFA!L20),IF(AK12=$F$17,ANASAYFA!K20,IF(AK12=$F$18,ANASAYFA!K20,IF(KAYNAK!AK12=KAYNAK!$F$21,ANASAYFA!K20+ANASAYFA!L20,IF(KAYNAK!AK12=KAYNAK!$F$22,ANASAYFA!K20+ANASAYFA!L20,0))))) -> 0
D13: 12 | F13: AĞUSTOS | G13: =ANASAYFA!S6 -> 0 | H13: ücretsiz | J13: =IF(ISBLANK(ANASAYFA!C21:F21)," ",ANASAYFA!C21:F21) ->  | N13: =IF(ISBLANK(ANASAYFA!G21:H21)," ",ANASAYFA!G21:H21) ->  | P13: =IF(ISBLANK(ANASAYFA!I21:J21)," ",ANASAYFA!I21:J21) ->  | R13: =IF(ISBLANK(ANASAYFA!K21)," ",ANASAYFA!K21) ->  | AB13: 12 | AR13: =IF(AK13=$F$16,(ANASAYFA!K21+ANASAYFA!L21),IF(AK13=$F$17,ANASAYFA!K21,IF(AK13=$F$18,ANASAYFA!K21,IF(KAYNAK!AK13=KAYNAK!$F$21,ANASAYFA!K21+ANASAYFA!L21,IF(KAYNAK!AK13=KAYNAK!$F$22,ANASAYFA!K21+ANASAYFA!L21,0))))) -> 0
D14: 13 | J14: =IF(ISBLANK(ANASAYFA!C22:F22)," ",ANASAYFA!C22:F22) ->  | N14: =IF(ISBLANK(ANASAYFA!G22:H22)," ",ANASAYFA!G22:H22) ->  | P14: =IF(ISBLANK(ANASAYFA!I22:J22)," ",ANASAYFA!I22:J22) ->  | R14: =IF(ISBLANK(ANASAYFA!K22)," ",ANASAYFA!K22) ->  | AB14: 13 | AR14: =IF(AK14=$F$16,(ANASAYFA!K22+ANASAYFA!L22),IF(AK14=$F$17,ANASAYFA!K22,IF(AK14=$F$18,ANASAYFA!K22,IF(KAYNAK!AK14=KAYNAK!$F$21,ANASAYFA!K22+ANASAYFA!L22,IF(KAYNAK!AK14=KAYNAK!$F$22,ANASAYFA!K22+ANASAYFA!L22,0))))) -> 0
D15: 14 | F15: DÖNEM BÜTÇESİ!!! | G15: =IF(ANASAYFA!L10=B10,H20,G9) -> 0 | J15: =IF(ISBLANK(ANASAYFA!C23:F23)," ",ANASAYFA!C23:F23) ->  | N15: =IF(ISBLANK(ANASAYFA!G23:H23)," ",ANASAYFA!G23:H23) ->  | P15: =IF(ISBLANK(ANASAYFA!I23:J23)," ",ANASAYFA!I23:J23) ->  | R15: =IF(ISBLANK(ANASAYFA!K23)," ",ANASAYFA!K23) ->  | AB15: 14 | AR15: =IF(AK15=$F$16,(ANASAYFA!K23+ANASAYFA!L23),IF(AK15=$F$17,ANASAYFA!K23,IF(AK15=$F$18,ANASAYFA!K23,IF(KAYNAK!AK15=KAYNAK!$F$21,ANASAYFA!K23+ANASAYFA!L23,IF(KAYNAK!AK15=KAYNAK!$F$22,ANASAYFA!K23+ANASAYFA!L23,0))))) -> 0
A16: SEÇİLİ AY | D16: 15 | F16: Okul Müdürü | G16: Kadrolu | H16: Hesaplanan Bütçe | J16: =IF(ISBLANK(ANASAYFA!C24:F24)," ",ANASAYFA!C24:F24) ->  | N16: =IF(ISBLANK(ANASAYFA!G24:H24)," ",ANASAYFA!G24:H24) ->  | P16: =IF(ISBLANK(ANASAYFA!I24:J24)," ",ANASAYFA!I24:J24) ->  | R16: =IF(ISBLANK(ANASAYFA!K24)," ",ANASAYFA!K24) ->  | AB16: 15 | AR16: =IF(AK16=$F$16,(ANASAYFA!K24+ANASAYFA!L24),IF(AK16=$F$17,ANASAYFA!K24,IF(AK16=$F$18,ANASAYFA!K24,IF(KAYNAK!AK16=KAYNAK!$F$21,ANASAYFA!K24+ANASAYFA!L24,IF(KAYNAK!AK16=KAYNAK!$F$22,ANASAYFA!K24+ANASAYFA!L24,0))))) -> 0
A17: =CONCATENATE(ANASAYFA!L11:M11) ->  | D17: 16 | F17: Müdür Yardımcısı | G17: SGK'lı | H17: Toplanan Miktar | J17: =IF(ISBLANK(ANASAYFA!C25:F25)," ",ANASAYFA!C25:F25) ->  | N17: =IF(ISBLANK(ANASAYFA!G25:H25)," ",ANASAYFA!G25:H25) ->  | P17: =IF(ISBLANK(ANASAYFA!I25:J25)," ",ANASAYFA!I25:J25) ->  | R17: =IF(ISBLANK(ANASAYFA!K25)," ",ANASAYFA!K25) ->  | AB17: 16 | AR17: =IF(AK17=$F$16,(ANASAYFA!K25+ANASAYFA!L25),IF(AK17=$F$17,ANASAYFA!K25,IF(AK17=$F$18,ANASAYFA!K25,IF(KAYNAK!AK17=KAYNAK!$F$21,ANASAYFA!K25+ANASAYFA!L25,IF(KAYNAK!AK17=KAYNAK!$F$22,ANASAYFA!K25+ANASAYFA!L25,0))))) -> 0
A18: =A17 ->  | D18: 17 | F18: Md. Yrd. (Yerine Üye Öğr.) | J18: =IF(ISBLANK(ANASAYFA!C26:F26)," ",ANASAYFA!C26:F26) ->  | N18: =IF(ISBLANK(ANASAYFA!G26:H26)," ",ANASAYFA!G26:H26) ->  | P18: =IF(ISBLANK(ANASAYFA!I26:J26)," ",ANASAYFA!I26:J26) ->  | R18: =IF(ISBLANK(ANASAYFA!K26)," ",ANASAYFA!K26) ->  | AB18: 17 | AR18: =IF(AK18=$F$16,(ANASAYFA!K26+ANASAYFA!L26),IF(AK18=$F$17,ANASAYFA!K26,IF(AK18=$F$18,ANASAYFA!K26,IF(KAYNAK!AK18=KAYNAK!$F$21,ANASAYFA!K26+ANASAYFA!L26,IF(KAYNAK!AK18=KAYNAK!$F$22,ANASAYFA!K26+ANASAYFA!L26,0))))) -> 0
D19: 18 | F19: Öğretmen | J19: =IF(ISBLANK(ANASAYFA!C27:F27)," ",ANASAYFA!C27:F27) ->  | N19: =IF(ISBLANK(ANASAYFA!G27:H27)," ",ANASAYFA!G27:H27) ->  | P19: =IF(ISBLANK(ANASAYFA!I27:J27)," ",ANASAYFA!I27:J27) ->  | R19: =IF(ISBLANK(ANASAYFA!K27)," ",ANASAYFA!K27) ->  | AB19: 18 | AR19: =IF(AK19=$F$16,(ANASAYFA!K27+ANASAYFA!L27),IF(AK19=$F$17,ANASAYFA!K27,IF(AK19=$F$18,ANASAYFA!K27,IF(KAYNAK!AK19=KAYNAK!$F$21,ANASAYFA!K27+ANASAYFA!L27,IF(KAYNAK!AK19=KAYNAK!$F$22,ANASAYFA!K27+ANASAYFA!L27,0))))) -> 0
D20: 19 | F20: Ücretli Usta Öğretici | G20: toplanan para | H20: =ANASAYFA!M10 -> 0 | J20: =IF(ISBLANK(ANASAYFA!C28:F28)," ",ANASAYFA!C28:F28) ->  | N20: =IF(ISBLANK(ANASAYFA!G28:H28)," ",ANASAYFA!G28:H28) ->  | P20: =IF(ISBLANK(ANASAYFA!I28:J28)," ",ANASAYFA!I28:J28) ->  | R20: =IF(ISBLANK(ANASAYFA!K28)," ",ANASAYFA!K28) ->  | AB20: 19 | AR20: =IF(AK20=$F$16,(ANASAYFA!K28+ANASAYFA!L28),IF(AK20=$F$17,ANASAYFA!K28,IF(AK20=$F$18,ANASAYFA!K28,IF(KAYNAK!AK20=KAYNAK!$F$21,ANASAYFA!K28+ANASAYFA!L28,IF(KAYNAK!AK20=KAYNAK!$F$22,ANASAYFA!K28+ANASAYFA!L28,0))))) -> 0
A21: EN YÜKSEK BRÜT AYLIK | D21: 20 | F21: Hizmetli/Aşçı | J21: =IF(ISBLANK(ANASAYFA!C29:F29)," ",ANASAYFA!C29:F29) ->  | N21: =IF(ISBLANK(ANASAYFA!G29:H29)," ",ANASAYFA!G29:H29) ->  | P21: =IF(ISBLANK(ANASAYFA!I29:J29)," ",ANASAYFA!I29:J29) ->  | R21: =IF(ISBLANK(ANASAYFA!K29)," ",ANASAYFA!K29) ->  | AB21: 20 | AR21: =IF(AK21=$F$16,(ANASAYFA!K29+ANASAYFA!L29),IF(AK21=$F$17,ANASAYFA!K29,IF(AK21=$F$18,ANASAYFA!K29,IF(KAYNAK!AK21=KAYNAK!$F$21,ANASAYFA!K29+ANASAYFA!L29,IF(KAYNAK!AK21=KAYNAK!$F$22,ANASAYFA!K29+ANASAYFA!L29,0))))) -> 0
A22: =ANASAYFA!D6:E6 -> 4843.062 | B22: 0 | D22: 21 | F22: Memur | P22: İLLER | R22: İLÇELER | AB22: 21
A23: =CONCATENATE(A22) -> 4843,062 | D23: 22 | F23: Koordinatör | G23: LİSTE SAY | I23: personel listesi birleşik | P23: ADANA | R23: ABANA | X23: VERGİ DİLİMLERİ | AB23: 22 | AQ23: toplam | AR23: =SUM(AR7:AR21) -> 0
D24: 23 | G24: =COUNTIF($I$24:$I$38,KAYNAK!I24) -> 15 | I24: =T7 ->  | L24: =X7 ->  | M24: =Z7 ->  | N24: =AB7 -> 6 | P24: ADIYAMAN | R24: ACIGÖL | X24: 0 | AB24: 23
A25: MEMUR KATSAYI | D25: 24 | G25: =COUNTIF($I$24:$I$38,KAYNAK!I25) -> 15 | I25: =T8 ->  | L25: =X8 ->  | N25: =AB8 -> 7 | P25: AFYON | R25: ACIPAYAM | X25: 0.15 | AB25: 24
A26: =ANASAYFA!B6:C6 -> 0.509796 | B26: 0 | D26: 25 | G26: =COUNTIF($I$24:$I$38,KAYNAK!I26) -> 15 | N26: 8 | P26: AĞRI | R26: ADAKLI | X26: 0.2 | AB26: 25
A27: =VALUE(A26) -> 0.509796 | D27: 26 | G27: =COUNTIF($I$24:$I$38,KAYNAK!I27) -> 15 | N27: 9 | P27: AMASYA | R27: ADALAR | X27: 0.27 | AB27: 26
D28: 27 | F28: VERGİ DİLİMLERİ | G28: =COUNTIF($I$24:$I$38,KAYNAK!I28) -> 15 | N28: 10 | P28: ANKARA | R28: ADAPAZARI | X28: 0.35 | AB28: 27
D29: 28 | F29: 0 | G29: =COUNTIF($I$24:$I$38,KAYNAK!I29) -> 15 | N29: 11 | P29: ANTALYA | R29: ADIYAMAN MERKEZ | X29: Muafiyetli | AB29: 28
D30: 29 | F30: 0.15 | G30: =COUNTIF($I$24:$I$38,KAYNAK!I30) -> 15 | N30: 12 | P30: ARTVİN | R30: ADİLCEVAZ | AB30: 29
D31: 30 | F31: 0.2 | G31: =COUNTIF($I$24:$I$38,KAYNAK!I31) -> 15 | N31: 13 | P31: AYDIN | R31: AFŞİN | AB31: 30
D32: 31 | F32: 0.27 | G32: =COUNTIF($I$24:$I$38,KAYNAK!I32) -> 15 | N32: 14 | P32: BALIKESİR | R32: AFYON MERKEZ | AB32: 31
D33: 32 | F33: 0.35 | G33: =COUNTIF($I$24:$I$38,KAYNAK!I33) -> 15 | N33: 15 | P33: BİLECİK | R33: AĞAÇÖREN | AB33: 32
D34: 33 | F34: Muafiyetli | G34: =COUNTIF($I$24:$I$38,KAYNAK!I34) -> 15 | N34: 16 | P34: BİNGÖL | R34: AĞIN | AB34: 33
D35: 34 | G35: =COUNTIF($I$24:$I$38,KAYNAK!I35) -> 15 | N35: 17 | P35: BİTLİS | R35: AĞLASUN | AB35: 34
D36: 35 | F36: Evet | G36: =COUNTIF($I$24:$I$38,KAYNAK!I36) -> 15 | N36: 18 | P36: BOLU | R36: AĞLI | AB36: 35
D37: 36 | F37: Hayır | G37: =COUNTIF($I$24:$I$38,KAYNAK!I37) -> 15 | N37: 19 | P37: BURDUR | R37: AĞRI MERKEZ | AB37: 36
D38: 37 | G38: =COUNTIF($I$24:$I$38,KAYNAK!I38) -> 15 | N38: 20 | P38: BURSA | R38: AHIRLI | AB38: 37
C39: müdür | D39: 38 | E39: =CONCATENATE(BORDRO!G5:H5) -> 0 | P39: ÇANAKKALE | R39: AHLAT | AB39: 38
C40: md yard | D40: 39 | E40: =CONCATENATE(BORDRO!G6:H6) -> 0 | M40: NET ASGARİ | N40: =ANASAYFA!F6-(ANASAYFA!F6/100*15) -> 11402.325 | P40: ÇANKIRI | R40: AHMETLİ | AB40: 39
C41: öğrttplm | D41: 40 | E41: =CONCATENATE(BORDRO!G7:H7) -> 0 | P41: ÇORUM | R41: AKÇAABAT | AB41: 40
C42: memur | E42: =CONCATENATE(BORDRO!G8:H8) -> 0 | G42: HESAPLAMALAR | P42: DENİZLİ | R42: AKÇADAĞ | AB42: 41
C43: hizme | E43: =CONCATENATE(BORDRO!G9:H9) -> 0 | G43: KİŞİ | H43: PAY TUTAR | I43: MAX TUTAR | J43: yüksekse | K43: ÖDENECEK | L43: sayıçevir | M43: TOPLAM | N43: PAY | O43: LİMİT ÜST | P43: DİYARBAKIR | Q43: LİMİT ÜST | R43: AKÇAKALE | AB43: 42 | AM43: =IF(WEEKDAY($E$6,2)=1,"",IF(WEEKDAY($E$6,2)=2,"",IF(WEEKDAY($E$6,2)=3,"",IF(WEEKDAY($E$6,2)=4,"",IF(WEEKDAY($E$6,2)=5,"",IF(WEEKDAY($E$6,2)=6,"X",IF(WEEKDAY($E$6,2)=7,"X"))))))) -> X | AN43: =IF(WEEKDAY($F$6,2)=1,"",IF(WEEKDAY($F$6,2)=2,"",IF(WEEKDAY($F$6,2)=3,"",IF(WEEKDAY($F$6,2)=4,"",IF(WEEKDAY($F$6,2)=5,"",IF(WEEKDAY($F$6,2)=6,"X",IF(WEEKDAY($F$6,2)=7,"X"))))))) ->  | AO43: =IF(WEEKDAY(AO$6,2)=1,"",IF(WEEKDAY(AO$6,2)=2,"",IF(WEEKDAY(AO$6,2)=3,"",IF(WEEKDAY(AO$6,2)=4,"",IF(WEEKDAY(AO$6,2)=5,"",IF(WEEKDAY(AO$6,2)=6,"X",IF(WEEKDAY(AO$6,2)=7,"X"))))))) -> X | AP43: =IF(WEEKDAY(AP$6,2)=1,"",IF(WEEKDAY(AP$6,2)=2,"",IF(WEEKDAY(AP$6,2)=3,"",IF(WEEKDAY(AP$6,2)=4,"",IF(WEEKDAY(AP$6,2)=5,"",IF(WEEKDAY(AP$6,2)=6,"X",IF(WEEKDAY(AP$6,2)=7,"X"))))))) -> X | AR43: X | AS43: X | AT43: X | AU43: X | AV43: X | AW43: X | AX43: X | AY43: X | AZ43: X | BA43: X | BB43: X | BC43: X | BD43: X | BE43: X | BF43: X | BG43: X | BH43: X | BI43: X | BJ43: X | BK43: X | BL43: X | BM43: X | BN43: X | BO43: X | BP43: X | BQ43: X
C44: toplam | E44: =CONCATENATE(BORDRO!G10:H10) -> 0 | G44: OKUL MÜDÜRÜ | H44: =L44 -> 0 | I44: =VALUE(A46) -> 5327.3682 | K44: =IF(H44>I44,I44,H44) -> 0 | L44: =VALUE(E39) -> 0 | O44: =IF(Q44<0,0,Q44) -> 0 | P44: EDİRNE | Q44: =IF(H44="","",H44-I44) -> -5327.3682 | R44: AKÇAKENT | AB44: 43 | AM44: =IF(WEEKDAY($E$6,2)=1,"",IF(WEEKDAY($E$6,2)=2,"",IF(WEEKDAY($E$6,2)=3,"",IF(WEEKDAY($E$6,2)=4,"",IF(WEEKDAY($E$6,2)=5,"",IF(WEEKDAY($E$6,2)=6,"X",IF(WEEKDAY($E$6,2)=7,"X"))))))) -> X | AN44: =IF(WEEKDAY($F$6,2)=1,"",IF(WEEKDAY($F$6,2)=2,"",IF(WEEKDAY($F$6,2)=3,"",IF(WEEKDAY($F$6,2)=4,"",IF(WEEKDAY($F$6,2)=5,"",IF(WEEKDAY($F$6,2)=6,"X",IF(WEEKDAY($F$6,2)=7,"X"))))))) ->  | AO44: =IF(WEEKDAY(AO$6,2)=1,"",IF(WEEKDAY(AO$6,2)=2,"",IF(WEEKDAY(AO$6,2)=3,"",IF(WEEKDAY(AO$6,2)=4,"",IF(WEEKDAY(AO$6,2)=5,"",IF(WEEKDAY(AO$6,2)=6,"X",IF(WEEKDAY(AO$6,2)=7,"X"))))))) -> X | AP44: X | AR44: X | AS44: X | AT44: X | AU44: X | AV44: X | AW44: X | AX44: X | AY44: X | AZ44: X | BA44: X | BB44: X | BC44: X | BD44: X | BE44: X | BF44: X | BG44: X | BH44: X | BI44: X | BJ44: X | BK44: X | BL44: X | BM44: X | BN44: X | BO44: X | BP44: X | BQ44: X
G45: MÜDÜR YARDIMCISI | H45: =L45 -> 0 | I45: =VALUE(B46) -> 4116.6027 | K45: =IF(H45>I45,I45,H45) -> 0 | L45: =VALUE(E40) -> 0 | M45: =IF(N49>N40,N40,N49) -> 3874.4496 | N45: <HİZMETLİ KİŞİ | O45: =IF(Q45<0,0,Q45) -> 0 | P45: ELÂZIĞ | Q45: =IF(H45="","",H45-I45) -> -4116.6027 | R45: AKÇAKOCA | AB45: 44 | AM45: X | AO45: X | AP45: X | AQ45: =IF(WEEKDAY(AQ$6,2)=1,"",IF(WEEKDAY(AQ$6,2)=2,"",IF(WEEKDAY(AQ$6,2)=3,"",IF(WEEKDAY(AQ$6,2)=4,"",IF(WEEKDAY(AQ$6,2)=5,"",IF(WEEKDAY(AQ$6,2)=6,"X",IF(WEEKDAY(AQ$6,2)=7,"X"))))))) ->  | AR45: X | AS45: X | AT45: X | AU45: X | AV45: X | AW45: X | AX45: X | AY45: X | AZ45: X | BA45: X | BB45: X | BC45: X | BD45: X | BE45: X | BF45: X | BG45: X | BH45: X | BI45: X | BJ45: X | BK45: X | BL45: X | BM45: X | BN45: X | BO45: X | BP45: X | BQ45: X
A46: =CONCATENATE(BORDRO!Q10:Q12) -> 5327,3682 | B46: =CONCATENATE(BORDRO!R10:R12) -> 4116,6027 | C46: =CONCATENATE(BORDRO!S10:S12) -> 5811,6744 | D46: =CONCATENATE(BORDRO!T10:T12) -> 11139,0426 | E46: =CONCATENATE(BORDRO!U10:U12) -> 3874,4496 | G46: MEMUR | H46: =L46 -> 0 | I46: =VALUE(E46) -> 3874.4496 | K46: =IF(H46>I46,I46,H46) -> 0 | L46: =VALUE(E42) -> 0 | O46: 0 | P46: ERZİNCAN | Q46: -3874.4496 | R46: AKDAĞMADENİ | AB46: 45 | AM46: X | AO46: X | AP46: X | AR46: X | AS46: X | AT46: X | AU46: X | AV46: X | AW46: X | AX46: X | AY46: X | AZ46: X | BA46: X | BB46: X | BC46: X | BD46: X | BE46: X | BF46: X | BG46: X | BH46: X | BI46: X | BJ46: X | BK46: X | BL46: X | BM46: X | BN46: X | BO46: X | BP46: X | BQ46: X
G47: HİZMETLİ AŞÇI | H47: 0 | I47: =VALUE(E46) -> 3874.4496 | K47: =IF(H47>I47,I47,N47) ->  | L47: =VALUE(E43) -> 0 | M47: =L47 -> 0 | N47: =IF(F50=0,"",M47/F50) ->  | O47: =IF(Q47<0,0,Q47) -> 0 | P47: ERZURUM | Q47: =IF(H47="","",H47-I47) -> -3874.4496 | R47: AKDENİZ | AB47: 46 | AM47: X | AO47: X | AP47: X | AS47: X | AT47: X | AU47: X | AV47: X | AW47: X | AX47: X | AY47: X | AZ47: X | BA47: X | BB47: X | BC47: X | BD47: X | BE47: X | BF47: X | BG47: X | BH47: X | BI47: X | BJ47: X | BK47: X | BL47: X | BM47: X | BN47: X | BO47: X | BP47: X | BQ47: X
G48: ÖĞRETMEN | I48: =C46 -> 5811,6744 | N48: =BORDRO!U10 -> 3874.4496 | P48: ESKİŞEHİR | R48: AKHİSAR | AB48: 47 | AM48: X | AO48: X | AP48: X | AR48: X | AS48: X | AT48: X | AU48: X | AV48: X | AW48: X | AX48: X | AY48: X | AZ48: X | BA48: X | BB48: X | BC48: X | BD48: X | BE48: X | BF48: X | BG48: X | BH48: X | BI48: X | BJ48: X | BK48: X | BL48: X | BM48: X | BN48: X | BO48: X | BP48: X | BQ48: X
A49: TEMİZLİK | F49: HİZMETLİ AŞÇI SAY | G49: ÜCRETLİ USTA ÖĞR | I49: =D46 -> 11139,0426 | N49: =IF(N47>N48,N48,N47) -> 3874.4496 | P49: GAZİANTEP | R49: AKINCILAR | AB49: 48 | AM49: X | AO49: X | AP49: X | AR49: X | AS49: X | AT49: X | AU49: X | AV49: X | AW49: X | AX49: X | AY49: X | AZ49: X | BA49: X | BB49: X | BC49: X | BD49: X | BE49: X | BF49: X | BG49: X | BH49: X | BI49: X | BJ49: X | BK49: X | BL49: X | BM49: X | BN49: X | BO49: X | BP49: X | BQ49: X
A50: =BORDRO!G9:H9 -> 0 | B50: 0 | F50: =COUNTIF(ANASAYFA!G15:H29,KAYNAK!F21) -> 0 | G50: KOORDİNATÖR | I50: =I44 -> 5327.3682 | P50: GİRESUN | R50: AKKIŞLA | AB50: 49 | AM50: X | AO50: X | AP50: X | AR50: X | AS50: X | AT50: X | AU50: X | AV50: X | AW50: X | AX50: X | AY50: X | AZ50: X | BA50: X | BB50: X | BC50: X | BD50: X | BE50: X | BF50: X | BG50: X | BH50: X | BI50: X | BJ50: X | BK50: X | BL50: X | BM50: X | BN50: X | BO50: X | BP50: X | BQ50: X
A51: =CONCATENATE(A50) -> 0 | E51: KADROLU SGK LİMİT | I51: hisse | K51: pay | N51: ÖDENECEK | O51: 0 | P51: GÜMÜŞHANE | R51: AKKÖY | AB51: 50 | AM51: X | AO51: X | AP51: X | AR51: X | AS51: X | AT51: X | AU51: X | AV51: X | AW51: X | AX51: X | AY51: X | AZ51: X | BA51: X | BB51: X | BC51: X | BD51: X | BE51: X | BF51: X | BG51: X | BH51: X | BI51: X | BJ51: X | BK51: X | BL51: X | BM51: X | BN51: X | BO51: X | BP51: X | BQ51: X
D52: =_xlfn.IFS(ANASAYFA!G15:H15=KAYNAK!$F$23,KAYNAK!$I$50,ANASAYFA!I15:J15=KAYNAK!$G$16,KAYNAK!$I$48,ANASAYFA!I15:J15=KAYNAK!$G$17,KAYNAK!$I$49) ->  | F52: =VALUE(D52) ->  | G52: =ANASAYFA!C15 -> 0 | H52: =BORDRO!F17 ->  | I52: =IFERROR(BORDRO!I17/ANASAYFA!$D$11:$E$11,"") ->  | K52: =_xlfn.IFS(BORDRO!E17=KAYNAK!$F$19,IFERROR(KAYNAK!I52*BORDRO!$G$7:$H$7,""),BORDRO!E17=KAYNAK!$F$20,IFERROR(KAYNAK!I52*BORDRO!$G$7:$H$7,""),BORDRO!E17=KAYNAK!$F$16,"",BORDRO!E17=KAYNAK!$F$17,IFERROR(I52*BORDRO!G6,""),BORDRO!E17=KAYNAK!$F$18,IFERROR(KAYNAK!I52*BORDRO!G6,""),BORDRO!E17=KAYNAK!$F$21,"",BORDRO!E17=KAYNAK!$F$22,"",BORDRO!E17=KAYNAK!$F$23,IFERROR(KAYNAK!I52*BORDRO!$G$7:$H$7,"")) ->  | M52: =IF(K52="","",VALUE(K52)) ->  | N52: =IF(M52>F52,F52,M52) ->  | P52: HAKKÂRİ | Q52: =IF(K52="","",K52-$I$48) ->  | R52: AKKUŞ | AB52: 51 | AM52: X | AO52: X | AP52: X | AR52: X | AS52: X | AT52: X | AU52: =IF(WEEKDAY(AU$6,2)=1,"",IF(WEEKDAY(AU$6,2)=2,"",IF(WEEKDAY(AU$6,2)=3,"",IF(WEEKDAY(AU$6,2)=4,"",IF(WEEKDAY(AU$6,2)=5,"",IF(WEEKDAY(AU$6,2)=6,"X",IF(WEEKDAY(AU$6,2)=7,"X"))))))) -> X | AV52: X | AW52: X | AX52: X | AY52: X | AZ52: X | BA52: X | BB52: X | BC52: X | BD52: X | BE52: X | BF52: X | BG52: X | BH52: X | BI52: X | BJ52: X | BK52: =IF(WEEKDAY(BK$6,2)=1,"",IF(WEEKDAY(BK$6,2)=2,"",IF(WEEKDAY(BK$6,2)=3,"",IF(WEEKDAY(BK$6,2)=4,"",IF(WEEKDAY(BK$6,2)=5,"",IF(WEEKDAY(BK$6,2)=6,"X",IF(WEEKDAY(BK$6,2)=7,"X"))))))) -> X | BL52: X | BM52: X | BN52: X | BO52: X | BP52: X | BQ52: X
D53: =_xlfn.IFS(ANASAYFA!G16:H16=KAYNAK!$F$23,KAYNAK!$I$50,ANASAYFA!I16:J16=KAYNAK!$G$16,KAYNAK!$I$48,ANASAYFA!I16:J16=KAYNAK!$G$17,KAYNAK!$I$49) ->  | F53: =VALUE(D53) ->  | G53: =ANASAYFA!C16 -> 0 | H53: =BORDRO!F18 ->  | I53: =IFERROR(BORDRO!I18/ANASAYFA!$D$11:$E$11,"") ->  | K53: =_xlfn.IFS(BORDRO!E18=KAYNAK!$F$19,IFERROR(KAYNAK!I53*BORDRO!$G$7:$H$7,""),BORDRO!E18=KAYNAK!$F$20,IFERROR(KAYNAK!I53*BORDRO!$G$7:$H$7,""),BORDRO!E18=KAYNAK!$F$16,"",BORDRO!E18=KAYNAK!$F$17,IFERROR(I53*BORDRO!G7,""),BORDRO!E18=KAYNAK!$F$18,IFERROR(KAYNAK!I53*BORDRO!G7,""),BORDRO!E18=KAYNAK!$F$21,"",BORDRO!E18=KAYNAK!$F$22,"",BORDRO!E18=KAYNAK!$F$23,IFERROR(KAYNAK!I53*BORDRO!$G$7:$H$7,"")) ->  | M53: =IF(K53="","",VALUE(K53)) ->  | N53: =IF(M53="",0,IF(M53>F53,F53,M53)) ->  | O53: =IF(Q53<0,0,Q53) ->  | P53: HATAY | R53: AKÖREN | AB53: 52 | AM53: X | AO53: X | AP53: X | AR53: X | AS53: X | AT53: X | AU53: X | AV53: X | AW53: X | AX53: X | AY53: X | AZ53: X | BA53: X | BB53: X | BC53: X | BD53: X | BE53: X | BF53: X | BG53: X | BH53: X | BI53: X | BJ53: X | BK53: X | BL53: X | BM53: X | BN53: X | BO53: X | BP53: X | BQ53: X
D54: =_xlfn.IFS(ANASAYFA!G17:H17=KAYNAK!$F$23,KAYNAK!$I$50,ANASAYFA!I17:J17=KAYNAK!$G$16,KAYNAK!$I$48,ANASAYFA!I17:J17=KAYNAK!$G$17,KAYNAK!$I$49) ->  | G54: =ANASAYFA!C17 -> 0 | H54: =BORDRO!F19 ->  | I54: =IFERROR(BORDRO!I19/ANASAYFA!$D$11:$E$11,"") ->  | K54: =_xlfn.IFS(BORDRO!E19=KAYNAK!$F$19,IFERROR(KAYNAK!I54*BORDRO!$G$7:$H$7,""),BORDRO!E19=KAYNAK!$F$20,IFERROR(KAYNAK!I54*BORDRO!$G$7:$H$7,""),BORDRO!E19=KAYNAK!$F$16,"",BORDRO!E19=KAYNAK!$F$17,IFERROR(I54*BORDRO!G8,""),BORDRO!E19=KAYNAK!$F$18,IFERROR(KAYNAK!I54*BORDRO!G8,""),BORDRO!E19=KAYNAK!$F$21,"",BORDRO!E19=KAYNAK!$F$22,"",BORDRO!E19=KAYNAK!$F$23,IFERROR(KAYNAK!I54*BORDRO!$G$7:$H$7,"")) ->  | N54: =IF(M54>F54,F54,M54) ->  | O54: =IF(Q54<0,0,Q54) ->  | P54: ISPARTA | Q54: =IF(K54="","",K54-$I$48) ->  | R54: AKPINAR | AB54: 53 | AM54: X | AO54: X | AP54: X | AR54: X | AS54: X | AT54: X | AU54: X | AV54: X | AW54: X | AX54: X | AY54: X | AZ54: X | BA54: X | BB54: X | BC54: X | BD54: X | BE54: X | BF54: X | BG54: X | BH54: X | BI54: X | BJ54: X | BK54: X | BL54: X | BM54: X | BN54: X | BO54: X | BP54: X | BQ54: X
D55: =_xlfn.IFS(ANASAYFA!G18:H18=KAYNAK!$F$23,KAYNAK!$I$50,ANASAYFA!I18:J18=KAYNAK!$G$16,KAYNAK!$I$48,ANASAYFA!I18:J18=KAYNAK!$G$17,KAYNAK!$I$49) ->  | G55: =ANASAYFA!C18 -> 0 | H55: =BORDRO!F20 ->  | I55: =IFERROR(BORDRO!I20/ANASAYFA!$D$11:$E$11,"") ->  | K55: =_xlfn.IFS(BORDRO!E20=KAYNAK!$F$19,IFERROR(KAYNAK!I55*BORDRO!$G$7:$H$7,""),BORDRO!E20=KAYNAK!$F$20,IFERROR(KAYNAK!I55*BORDRO!$G$7:$H$7,""),BORDRO!E20=KAYNAK!$F$16,"",BORDRO!E20=KAYNAK!$F$17,IFERROR(I55*BORDRO!G9,""),BORDRO!E20=KAYNAK!$F$18,IFERROR(KAYNAK!I55*BORDRO!G9,""),BORDRO!E20=KAYNAK!$F$21,"",BORDRO!E20=KAYNAK!$F$22,"",BORDRO!E20=KAYNAK!$F$23,IFERROR(KAYNAK!I55*BORDRO!$G$7:$H$7,"")) ->  | P55: MERSİN | Q55: =IF(K55="","",K55-$I$48) ->  | R55: AKSARAY MERKEZ | AB55: 54 | AM55: X | AO55: X | AP55: X | AR55: X | AS55: X | AT55: X | AU55: X | AV55: X | AW55: X | AX55: X | AY55: X | AZ55: X | BA55: X | BB55: X | BC55: X | BD55: X | BE55: X | BF55: X | BG55: X | BH55: X | BI55: X | BJ55: X | BK55: X | BL55: X | BM55: X | BN55: X | BO55: X | BP55: X | BQ55: X
D56: =_xlfn.IFS(ANASAYFA!G19:H19=KAYNAK!$F$23,KAYNAK!$I$50,ANASAYFA!I19:J19=KAYNAK!$G$16,KAYNAK!$I$48,ANASAYFA!I19:J19=KAYNAK!$G$17,KAYNAK!$I$49) ->  | G56: =ANASAYFA!C19 -> 0 | H56: =BORDRO!F21 ->  | I56: =IFERROR(BORDRO!I21/ANASAYFA!$D$11:$E$11,"") ->  | K56: =_xlfn.IFS(BORDRO!E21=KAYNAK!$F$19,IFERROR(KAYNAK!I56*BORDRO!$G$7:$H$7,""),BORDRO!E21=KAYNAK!$F$20,IFERROR(KAYNAK!I56*BORDRO!$G$7:$H$7,""),BORDRO!E21=KAYNAK!$F$16,"",BORDRO!E21=KAYNAK!$F$17,IFERROR(I56*BORDRO!G10,""),BORDRO!E21=KAYNAK!$F$18,IFERROR(KAYNAK!I56*BORDRO!G10,""),BORDRO!E21=KAYNAK!$F$21,"",BORDRO!E21=KAYNAK!$F$22,"",BORDRO!E21=KAYNAK!$F$23,IFERROR(KAYNAK!I56*BORDRO!$G$7:$H$7,"")) ->  | P56: İSTANBUL | R56: AKSEKİ | AB56: 55 | AM56: X | AO56: X | AP56: X | AR56: X | AS56: X | AT56: X | AU56: X | AV56: X | AW56: X | AX56: X | AY56: X | AZ56: X | BA56: X | BB56: X | BC56: X | BD56: X | BE56: X | BF56: X | BG56: X | BH56: X | BI56: X | BJ56: X | BK56: X | BL56: X | BM56: X | BN56: X | BO56: X | BP56: X | BQ56: X
D57: =_xlfn.IFS(ANASAYFA!G20:H20=KAYNAK!$F$23,KAYNAK!$I$50,ANASAYFA!I20:J20=KAYNAK!$G$16,KAYNAK!$I$48,ANASAYFA!I20:J20=KAYNAK!$G$17,KAYNAK!$I$49) ->  | G57: =ANASAYFA!C20 -> 0 | H57: =BORDRO!F22 ->  | I57: =IFERROR(BORDRO!I22/ANASAYFA!$D$11:$E$11,"") ->  | K57: =_xlfn.IFS(BORDRO!E22=KAYNAK!$F$19,IFERROR(KAYNAK!I57*BORDRO!$G$7:$H$7,""),BORDRO!E22=KAYNAK!$F$20,IFERROR(KAYNAK!I57*BORDRO!$G$7:$H$7,""),BORDRO!E22=KAYNAK!$F$16,"",BORDRO!E22=KAYNAK!$F$17,IFERROR(I57*BORDRO!G11,""),BORDRO!E22=KAYNAK!$F$18,IFERROR(KAYNAK!I57*BORDRO!G11,""),BORDRO!E22=KAYNAK!$F$21,"",BORDRO!E22=KAYNAK!$F$22,"",BORDRO!E22=KAYNAK!$F$23,IFERROR(KAYNAK!I57*BORDRO!$G$7:$H$7,"")) ->  | P57: İZMİR | R57: AKSU | AB57: 56 | AM57: X | AO57: X | AP57: X | AR57: X | AS57: X | AT57: X | AU57: X | AV57: X | AW57: X | AX57: X | AY57: X | AZ57: X | BA57: X | BB57: X | BC57: X | BD57: X | BE57: X | BF57: X | BG57: X | BH57: X | BI57: X | BJ57: X | BK57: X | BL57: X | BM57: X | BN57: X | BO57: X | BP57: X | BQ57: X
D58: =_xlfn.IFS(ANASAYFA!G21:H21=KAYNAK!$F$23,KAYNAK!$I$50,ANASAYFA!I21:J21=KAYNAK!$G$16,KAYNAK!$I$48,ANASAYFA!I21:J21=KAYNAK!$G$17,KAYNAK!$I$49) ->  | G58: =ANASAYFA!C21 -> 0 | H58: =BORDRO!F23 ->  | I58: =IFERROR(BORDRO!I23/ANASAYFA!$D$11:$E$11,"") ->  | K58: =_xlfn.IFS(BORDRO!E23=KAYNAK!$F$19,IFERROR(KAYNAK!I58*BORDRO!$G$7:$H$7,""),BORDRO!E23=KAYNAK!$F$20,IFERROR(KAYNAK!I58*BORDRO!$G$7:$H$7,""),BORDRO!E23=KAYNAK!$F$16,"",BORDRO!E23=KAYNAK!$F$17,IFERROR(I58*BORDRO!G12,""),BORDRO!E23=KAYNAK!$F$18,IFERROR(KAYNAK!I58*BORDRO!G12,""),BORDRO!E23=KAYNAK!$F$21,"",BORDRO!E23=KAYNAK!$F$22,"",BORDRO!E23=KAYNAK!$F$23,IFERROR(KAYNAK!I58*BORDRO!$G$7:$H$7,"")) ->  | P58: KARS | R58: AKSU/ANTALYA | AB58: 57
D59: =_xlfn.IFS(ANASAYFA!G22:H22=KAYNAK!$F$23,KAYNAK!$I$50,ANASAYFA!I22:J22=KAYNAK!$G$16,KAYNAK!$I$48,ANASAYFA!I22:J22=KAYNAK!$G$17,KAYNAK!$I$49) ->  | G59: =ANASAYFA!C22 -> 0 | H59: =BORDRO!F24 ->  | I59: =IFERROR(BORDRO!I24/ANASAYFA!$D$11:$E$11,"") ->  | K59: =_xlfn.IFS(BORDRO!E24=KAYNAK!$F$19,IFERROR(KAYNAK!I59*BORDRO!$G$7:$H$7,""),BORDRO!E24=KAYNAK!$F$20,IFERROR(KAYNAK!I59*BORDRO!$G$7:$H$7,""),BORDRO!E24=KAYNAK!$F$16,"",BORDRO!E24=KAYNAK!$F$17,IFERROR(I59*BORDRO!G13,""),BORDRO!E24=KAYNAK!$F$18,IFERROR(KAYNAK!I59*BORDRO!G13,""),BORDRO!E24=KAYNAK!$F$21,"",BORDRO!E24=KAYNAK!$F$22,"",BORDRO!E24=KAYNAK!$F$23,IFERROR(KAYNAK!I59*BORDRO!$G$7:$H$7,"")) ->  | P59: KASTAMONU | R59: AKŞEHİR | AB59: 58
D60: =_xlfn.IFS(ANASAYFA!G23:H23=KAYNAK!$F$23,KAYNAK!$I$50,ANASAYFA!I23:J23=KAYNAK!$G$16,KAYNAK!$I$48,ANASAYFA!I23:J23=KAYNAK!$G$17,KAYNAK!$I$49) ->  | G60: =ANASAYFA!C23 -> 0 | H60: =BORDRO!F25 ->  | I60: =IFERROR(BORDRO!I25/ANASAYFA!$D$11:$E$11,"") ->  | K60: =_xlfn.IFS(BORDRO!E25=KAYNAK!$F$19,IFERROR(KAYNAK!I60*BORDRO!$G$7:$H$7,""),BORDRO!E25=KAYNAK!$F$20,IFERROR(KAYNAK!I60*BORDRO!$G$7:$H$7,""),BORDRO!E25=KAYNAK!$F$16,"",BORDRO!E25=KAYNAK!$F$17,IFERROR(I60*BORDRO!G14,""),BORDRO!E25=KAYNAK!$F$18,IFERROR(KAYNAK!I60*BORDRO!G14,""),BORDRO!E25=KAYNAK!$F$21,"",BORDRO!E25=KAYNAK!$F$22,"",BORDRO!E25=KAYNAK!$F$23,IFERROR(KAYNAK!I60*BORDRO!$G$7:$H$7,"")) ->  | P60: KAYSERİ | R60: AKYAKA | AB60: 59
D61: =_xlfn.IFS(ANASAYFA!G24:H24=KAYNAK!$F$23,KAYNAK!$I$50,ANASAYFA!I24:J24=KAYNAK!$G$16,KAYNAK!$I$48,ANASAYFA!I24:J24=KAYNAK!$G$17,KAYNAK!$I$49) ->  | G61: =ANASAYFA!C24 -> 0 | H61: =BORDRO!F26 ->  | I61: =IFERROR(BORDRO!I26/ANASAYFA!$D$11:$E$11,"") ->  | K61: =_xlfn.IFS(BORDRO!E26=KAYNAK!$F$19,IFERROR(KAYNAK!I61*BORDRO!$G$7:$H$7,""),BORDRO!E26=KAYNAK!$F$20,IFERROR(KAYNAK!I61*BORDRO!$G$7:$H$7,""),BORDRO!E26=KAYNAK!$F$16,"",BORDRO!E26=KAYNAK!$F$17,IFERROR(I61*BORDRO!G15,""),BORDRO!E26=KAYNAK!$F$18,IFERROR(KAYNAK!I61*BORDRO!G15,""),BORDRO!E26=KAYNAK!$F$21,"",BORDRO!E26=KAYNAK!$F$22,"",BORDRO!E26=KAYNAK!$F$23,IFERROR(KAYNAK!I61*BORDRO!$G$7:$H$7,"")) ->  | P61: KIRKLARELİ | R61: AKYAZI | AB61: 60 | AP61: İ/R
D62: =_xlfn.IFS(ANASAYFA!G25:H25=KAYNAK!$F$23,KAYNAK!$I$50,ANASAYFA!I25:J25=KAYNAK!$G$16,KAYNAK!$I$48,ANASAYFA!I25:J25=KAYNAK!$G$17,KAYNAK!$I$49) ->  | G62: =ANASAYFA!C25 -> 0 | H62: =BORDRO!F27 ->  | I62: =IFERROR(BORDRO!I27/ANASAYFA!$D$11:$E$11,"") ->  | K62: =_xlfn.IFS(BORDRO!E27=KAYNAK!$F$19,IFERROR(KAYNAK!I62*BORDRO!$G$7:$H$7,""),BORDRO!E27=KAYNAK!$F$20,IFERROR(KAYNAK!I62*BORDRO!$G$7:$H$7,""),BORDRO!E27=KAYNAK!$F$16,"",BORDRO!E27=KAYNAK!$F$17,IFERROR(I62*BORDRO!G16,""),BORDRO!E27=KAYNAK!$F$18,IFERROR(KAYNAK!I62*BORDRO!G16,""),BORDRO!E27=KAYNAK!$F$21,"",BORDRO!E27=KAYNAK!$F$22,"",BORDRO!E27=KAYNAK!$F$23,IFERROR(KAYNAK!I62*BORDRO!$G$7:$H$7,"")) ->  | P62: KIRŞEHİR | R62: AKYURT | AB62: 61 | AP62: X
D63: =_xlfn.IFS(ANASAYFA!G26:H26=KAYNAK!$F$23,KAYNAK!$I$50,ANASAYFA!I26:J26=KAYNAK!$G$16,KAYNAK!$I$48,ANASAYFA!I26:J26=KAYNAK!$G$17,KAYNAK!$I$49) ->  | G63: =ANASAYFA!C26 -> 0 | H63: =BORDRO!F28 ->  | I63: =IFERROR(BORDRO!I28/ANASAYFA!$D$11:$E$11,"") ->  | K63: =_xlfn.IFS(BORDRO!E28=KAYNAK!$F$19,IFERROR(KAYNAK!I63*BORDRO!$G$7:$H$7,""),BORDRO!E28=KAYNAK!$F$20,IFERROR(KAYNAK!I63*BORDRO!$G$7:$H$7,""),BORDRO!E28=KAYNAK!$F$16,"",BORDRO!E28=KAYNAK!$F$17,IFERROR(I63*BORDRO!G17,""),BORDRO!E28=KAYNAK!$F$18,IFERROR(KAYNAK!I63*BORDRO!G17,""),BORDRO!E28=KAYNAK!$F$21,"",BORDRO!E28=KAYNAK!$F$22,"",BORDRO!E28=KAYNAK!$F$23,IFERROR(KAYNAK!I63*BORDRO!$G$7:$H$7,"")) ->  | P63: KOCAELİ | R63: ALACA | AB63: 62 | AP63: 1
D64: =_xlfn.IFS(ANASAYFA!G27:H27=KAYNAK!$F$23,KAYNAK!$I$50,ANASAYFA!I27:J27=KAYNAK!$G$16,KAYNAK!$I$48,ANASAYFA!I27:J27=KAYNAK!$G$17,KAYNAK!$I$49) ->  | G64: =ANASAYFA!C27 -> 0 | H64: =BORDRO!F29 ->  | I64: =IFERROR(BORDRO!I29/ANASAYFA!$D$11:$E$11,"") ->  | K64: =_xlfn.IFS(BORDRO!E29=KAYNAK!$F$19,IFERROR(KAYNAK!I64*BORDRO!$G$7:$H$7,""),BORDRO!E29=KAYNAK!$F$20,IFERROR(KAYNAK!I64*BORDRO!$G$7:$H$7,""),BORDRO!E29=KAYNAK!$F$16,"",BORDRO!E29=KAYNAK!$F$17,IFERROR(I64*BORDRO!G18,""),BORDRO!E29=KAYNAK!$F$18,IFERROR(KAYNAK!I64*BORDRO!G18,""),BORDRO!E29=KAYNAK!$F$21,"",BORDRO!E29=KAYNAK!$F$22,"",BORDRO!E29=KAYNAK!$F$23,IFERROR(KAYNAK!I64*BORDRO!$G$7:$H$7,"")) ->  | P64: KONYA | R64: ALACAKAYA | AB64: 63 | AP64: 2
D65: =_xlfn.IFS(ANASAYFA!G28:H28=KAYNAK!$F$23,KAYNAK!$I$50,ANASAYFA!I28:J28=KAYNAK!$G$16,KAYNAK!$I$48,ANASAYFA!I28:J28=KAYNAK!$G$17,KAYNAK!$I$49) ->  | G65: =ANASAYFA!C28 -> 0 | H65: =BORDRO!F30 ->  | I65: =IFERROR(BORDRO!I30/ANASAYFA!$D$11:$E$11,"") ->  | K65: =_xlfn.IFS(BORDRO!E30=KAYNAK!$F$19,IFERROR(KAYNAK!I65*BORDRO!$G$7:$H$7,""),BORDRO!E30=KAYNAK!$F$20,IFERROR(KAYNAK!I65*BORDRO!$G$7:$H$7,""),BORDRO!E30=KAYNAK!$F$16,"",BORDRO!E30=KAYNAK!$F$17,IFERROR(I65*BORDRO!G19,""),BORDRO!E30=KAYNAK!$F$18,IFERROR(KAYNAK!I65*BORDRO!G19,""),BORDRO!E30=KAYNAK!$F$21,"",BORDRO!E30=KAYNAK!$F$22,"",BORDRO!E30=KAYNAK!$F$23,IFERROR(KAYNAK!I65*BORDRO!$G$7:$H$7,"")) ->  | P65: KÜTAHYA | R65: ALAÇAM | AB65: 64 | AP65: 3
D66: =_xlfn.IFS(ANASAYFA!G29:H29=KAYNAK!$F$23,KAYNAK!$I$50,ANASAYFA!I29:J29=KAYNAK!$G$16,KAYNAK!$I$48,ANASAYFA!I29:J29=KAYNAK!$G$17,KAYNAK!$I$49) ->  | G66: =ANASAYFA!C29 -> 0 | H66: =BORDRO!F31 ->  | I66: =IFERROR(BORDRO!I31/ANASAYFA!$D$11:$E$11,"") ->  | K66: =_xlfn.IFS(BORDRO!E31=KAYNAK!$F$19,IFERROR(KAYNAK!I66*BORDRO!$G$7:$H$7,""),BORDRO!E31=KAYNAK!$F$20,IFERROR(KAYNAK!I66*BORDRO!$G$7:$H$7,""),BORDRO!E31=KAYNAK!$F$16,"",BORDRO!E31=KAYNAK!$F$17,IFERROR(I66*BORDRO!G20,""),BORDRO!E31=KAYNAK!$F$18,IFERROR(KAYNAK!I66*BORDRO!G20,""),BORDRO!E31=KAYNAK!$F$21,"",BORDRO!E31=KAYNAK!$F$22,"",BORDRO!E31=KAYNAK!$F$23,IFERROR(KAYNAK!I66*BORDRO!$G$7:$H$7,"")) ->  | P66: MALATYA | R66: ALADAĞ | AB66: 65 | AP66: 4
P67: MANİSA | R67: ALANYA | AB67: 66 | AP67: 5
A68: ASGARİ ÜCRET | P68: KAHRAMANMARAŞ | R68: ALAPLI | AB68: 67 | AP68: 6
A69: =CONCATENATE(ANASAYFA!F6:G6) -> 13414,5 | P69: MARDİN | R69: ALAŞEHİR | AB69: 68 | AP69: 7
A70: =VALUE(A69) -> 13414.5 | P70: MUĞLA | R70: ALİAĞA | AB70: 69 | AP70: 8
A71: =A70*759/100000 -> 101.816055 | C71: DAMGA İSTİSNA | P71: MUŞ | R71: ALMUS | AB71: 70 | AP71: 9
A72: =A70/100*15 -> 2012.175 | C72: GELİR İSTİSNA | P72: NEVŞEHİR | R72: ALPU | AB72: 71 | AP72: 10
H73: KESİNTİ TOPLAMLARI | P73: NİĞDE | R73: ALTINDAĞ | AB73: 72
H74: KADROLU | L74: SGKLI | P74: ORDU | R74: ALTINEKİN | AB74: 73
H75: =IF(BORDRO!F17=KAYNAK!$G$16,BORDRO!N17:O17+BORDRO!P17) -> FALSE | J75: =VALUE(H75) ->  | L75: =IF(BORDRO!F17=KAYNAK!$G$17,BORDRO!N17:O17+BORDRO!P17+BORDRO!Q17+BORDRO!R17) -> FALSE | N75: =VALUE(L75) ->  | P75: RİZE | R75: ALTINOVA | AB75: 74
H76: =IF(BORDRO!F18=KAYNAK!$G$16,BORDRO!N18:O18+BORDRO!P18) -> FALSE | J76: =VALUE(H76) ->  | L76: =IF(BORDRO!F18=KAYNAK!$G$17,BORDRO!N18:O18+BORDRO!P18+BORDRO!Q18+BORDRO!R18) -> FALSE | N76: =VALUE(L76) ->  | P76: SAKARYA | R76: ALTINÖZÜ | AB76: 75
H77: =IF(BORDRO!F19=KAYNAK!$G$16,BORDRO!N19:O19+BORDRO!P19) -> FALSE | L77: =IF(BORDRO!F19=KAYNAK!$G$17,BORDRO!N19:O19+BORDRO!P19+BORDRO!Q19+BORDRO!R19) -> FALSE | P77: SAMSUN | R77: ALTINTAŞ | AB77: 76
H78: =IF(BORDRO!F20=KAYNAK!$G$16,BORDRO!N20:O20+BORDRO!P20) -> FALSE | L78: =IF(BORDRO!F20=KAYNAK!$G$17,BORDRO!N20:O20+BORDRO!P20+BORDRO!Q20+BORDRO!R20) -> FALSE | P78: SİİRT | R78: ALTINYAYLA | AB78: 77
C79: koordinatörlük toplam | H79: =IF(BORDRO!F21=KAYNAK!$G$16,BORDRO!N21:O21+BORDRO!P21) -> FALSE | L79: =IF(BORDRO!F21=KAYNAK!$G$17,BORDRO!N21:O21+BORDRO!P21+BORDRO!Q21+BORDRO!R21) -> FALSE | P79: SİNOP | R79: ALTINYAYLA | AB79: 78
C80: =SUM(E80:E94) -> 0 | E80: =_xlfn.IFS(ANASAYFA!G15="","0",ANASAYFA!G15=KAYNAK!$F$16,0,ANASAYFA!G15=KAYNAK!$F$17,ANASAYFA!L15,ANASAYFA!G15=KAYNAK!$F$18,ANASAYFA!L15,ANASAYFA!G15=KAYNAK!$F$21,0,ANASAYFA!G15=KAYNAK!$F$22,0,ANASAYFA!G15=KAYNAK!$F$19,ANASAYFA!L15,ANASAYFA!G15=KAYNAK!$F$23,ANASAYFA!L15,ANASAYFA!G15=KAYNAK!$F$20,0) -> 0 | H80: =IF(BORDRO!F22=KAYNAK!$G$16,BORDRO!N22:O22+BORDRO!P22) -> FALSE | L80: =IF(BORDRO!F22=KAYNAK!$G$17,BORDRO!N22:O22+BORDRO!P22+BORDRO!Q22+BORDRO!R22) -> FALSE | P80: SİVAS | R80: ALTUNHİSAR | AB80: 79
E81: =_xlfn.IFS(ANASAYFA!G16="","0",ANASAYFA!G16=KAYNAK!$F$16,0,ANASAYFA!G16=KAYNAK!$F$17,ANASAYFA!L16,ANASAYFA!G16=KAYNAK!$F$18,ANASAYFA!L16,ANASAYFA!G16=KAYNAK!$F$21,0,ANASAYFA!G16=KAYNAK!$F$22,0,ANASAYFA!G16=KAYNAK!$F$19,ANASAYFA!L16,ANASAYFA!G16=KAYNAK!$F$23,ANASAYFA!L16,ANASAYFA!G16=KAYNAK!$F$20,0) -> 0 | H81: =IF(BORDRO!F23=KAYNAK!$G$16,BORDRO!N23:O23+BORDRO!P23) -> FALSE | L81: =IF(BORDRO!F23=KAYNAK!$G$17,BORDRO!N23:O23+BORDRO!P23+BORDRO!Q23+BORDRO!R23) -> FALSE | P81: TEKİRDAĞ | R81: ALUCRA | AB81: 80
E82: =_xlfn.IFS(ANASAYFA!G17="","0",ANASAYFA!G17=KAYNAK!$F$16,0,ANASAYFA!G17=KAYNAK!$F$17,ANASAYFA!L17,ANASAYFA!G17=KAYNAK!$F$18,ANASAYFA!L17,ANASAYFA!G17=KAYNAK!$F$21,0,ANASAYFA!G17=KAYNAK!$F$22,0,ANASAYFA!G17=KAYNAK!$F$19,ANASAYFA!L17,ANASAYFA!G17=KAYNAK!$F$23,ANASAYFA!L17,ANASAYFA!G17=KAYNAK!$F$20,0) -> 0 | H82: =IF(BORDRO!F24=KAYNAK!$G$16,BORDRO!N24:O24+BORDRO!P24) -> FALSE | L82: =IF(BORDRO!F24=KAYNAK!$G$17,BORDRO!N24:O24+BORDRO!P24+BORDRO!Q24+BORDRO!R24) -> FALSE | P82: TOKAT | R82: AMASRA | AB82: 81
E83: =_xlfn.IFS(ANASAYFA!G18="","0",ANASAYFA!G18=KAYNAK!$F$16,0,ANASAYFA!G18=KAYNAK!$F$17,ANASAYFA!L18,ANASAYFA!G18=KAYNAK!$F$18,ANASAYFA!L18,ANASAYFA!G18=KAYNAK!$F$21,0,ANASAYFA!G18=KAYNAK!$F$22,0,ANASAYFA!G18=KAYNAK!$F$19,ANASAYFA!L18,ANASAYFA!G18=KAYNAK!$F$23,ANASAYFA!L18,ANASAYFA!G18=KAYNAK!$F$20,0) -> 0 | H83: =IF(BORDRO!F25=KAYNAK!$G$16,BORDRO!N25:O25+BORDRO!P25) -> FALSE | L83: =IF(BORDRO!F25=KAYNAK!$G$17,BORDRO!N25:O25+BORDRO!P25+BORDRO!Q25+BORDRO!R25) -> FALSE | P83: TRABZON | R83: AMASYA MERKEZ | AB83: 82
E84: =_xlfn.IFS(ANASAYFA!G19="","0",ANASAYFA!G19=KAYNAK!$F$16,0,ANASAYFA!G19=KAYNAK!$F$17,ANASAYFA!L19,ANASAYFA!G19=KAYNAK!$F$18,ANASAYFA!L19,ANASAYFA!G19=KAYNAK!$F$21,0,ANASAYFA!G19=KAYNAK!$F$22,0,ANASAYFA!G19=KAYNAK!$F$19,ANASAYFA!L19,ANASAYFA!G19=KAYNAK!$F$23,ANASAYFA!L19,ANASAYFA!G19=KAYNAK!$F$20,0) -> 0 | H84: =IF(BORDRO!F26=KAYNAK!$G$16,BORDRO!N26:O26+BORDRO!P26) -> FALSE | L84: =IF(BORDRO!F26=KAYNAK!$G$17,BORDRO!N26:O26+BORDRO!P26+BORDRO!Q26+BORDRO!R26) -> FALSE | P84: TUNCELİ | R84: ANAMUR | AB84: 83
E85: =_xlfn.IFS(ANASAYFA!G20="","0",ANASAYFA!G20=KAYNAK!$F$16,0,ANASAYFA!G20=KAYNAK!$F$17,ANASAYFA!L20,ANASAYFA!G20=KAYNAK!$F$18,ANASAYFA!L20,ANASAYFA!G20=KAYNAK!$F$21,0,ANASAYFA!G20=KAYNAK!$F$22,0,ANASAYFA!G20=KAYNAK!$F$19,ANASAYFA!L20,ANASAYFA!G20=KAYNAK!$F$23,ANASAYFA!L20,ANASAYFA!G20=KAYNAK!$F$20,0) -> 0 | F85: www.google.com | H85: =IF(BORDRO!F27=KAYNAK!$G$16,BORDRO!N27:O27+BORDRO!P27) -> FALSE | L85: =IF(BORDRO!F27=KAYNAK!$G$17,BORDRO!N27:O27+BORDRO!P27+BORDRO!Q27+BORDRO!R27) -> FALSE | P85: ŞANLIURFA | R85: ANDIRIN | AB85: 84
E86: =_xlfn.IFS(ANASAYFA!G21="","0",ANASAYFA!G21=KAYNAK!$F$16,0,ANASAYFA!G21=KAYNAK!$F$17,ANASAYFA!L21,ANASAYFA!G21=KAYNAK!$F$18,ANASAYFA!L21,ANASAYFA!G21=KAYNAK!$F$21,0,ANASAYFA!G21=KAYNAK!$F$22,0,ANASAYFA!G21=KAYNAK!$F$19,ANASAYFA!L21,ANASAYFA!G21=KAYNAK!$F$23,ANASAYFA!L21,ANASAYFA!G21=KAYNAK!$F$20,0) -> 0 | H86: =IF(BORDRO!F28=KAYNAK!$G$16,BORDRO!N28:O28+BORDRO!P28) -> FALSE | L86: =IF(BORDRO!F28=KAYNAK!$G$17,BORDRO!N28:O28+BORDRO!P28+BORDRO!Q28+BORDRO!R28) -> FALSE | P86: UŞAK | R86: ANKARA | AB86: 85
E87: =_xlfn.IFS(ANASAYFA!G22="","0",ANASAYFA!G22=KAYNAK!$F$16,0,ANASAYFA!G22=KAYNAK!$F$17,ANASAYFA!L22,ANASAYFA!G22=KAYNAK!$F$18,ANASAYFA!L22,ANASAYFA!G22=KAYNAK!$F$21,0,ANASAYFA!G22=KAYNAK!$F$22,0,ANASAYFA!G22=KAYNAK!$F$19,ANASAYFA!L22,ANASAYFA!G22=KAYNAK!$F$23,ANASAYFA!L22,ANASAYFA!G22=KAYNAK!$F$20,0) -> 0 | H87: =IF(BORDRO!F29=KAYNAK!$G$16,BORDRO!N29:O29+BORDRO!P29) -> FALSE | L87: =IF(BORDRO!F29=KAYNAK!$G$17,BORDRO!N29:O29+BORDRO!P29+BORDRO!Q29+BORDRO!R29) -> FALSE | P87: VAN | R87: ANTALYA MERKEZ | AB87: 86
E88: =_xlfn.IFS(ANASAYFA!G23="","0",ANASAYFA!G23=KAYNAK!$F$16,0,ANASAYFA!G23=KAYNAK!$F$17,ANASAYFA!L23,ANASAYFA!G23=KAYNAK!$F$18,ANASAYFA!L23,ANASAYFA!G23=KAYNAK!$F$21,0,ANASAYFA!G23=KAYNAK!$F$22,0,ANASAYFA!G23=KAYNAK!$F$19,ANASAYFA!L23,ANASAYFA!G23=KAYNAK!$F$23,ANASAYFA!L23,ANASAYFA!G23=KAYNAK!$F$20,0) -> 0 | H88: =IF(BORDRO!F30=KAYNAK!$G$16,BORDRO!N30:O30+BORDRO!P30) -> FALSE | L88: =IF(BORDRO!F30=KAYNAK!$G$17,BORDRO!N30:O30+BORDRO!P30+BORDRO!Q30+BORDRO!R30) -> FALSE | P88: YOZGAT | R88: ARABAN | AB88: 87
E89: =_xlfn.IFS(ANASAYFA!G24="","0",ANASAYFA!G24=KAYNAK!$F$16,0,ANASAYFA!G24=KAYNAK!$F$17,ANASAYFA!L24,ANASAYFA!G24=KAYNAK!$F$18,ANASAYFA!L24,ANASAYFA!G24=KAYNAK!$F$21,0,ANASAYFA!G24=KAYNAK!$F$22,0,ANASAYFA!G24=KAYNAK!$F$19,ANASAYFA!L24,ANASAYFA!G24=KAYNAK!$F$23,ANASAYFA!L24,ANASAYFA!G24=KAYNAK!$F$20,0) -> 0 | H89: =IF(BORDRO!F31=KAYNAK!$G$16,BORDRO!N31:O31+BORDRO!P31) -> FALSE | L89: =IF(BORDRO!F31=KAYNAK!$G$17,BORDRO!N31:O31+BORDRO!P31+BORDRO!Q31+BORDRO!R31) -> FALSE | P89: ZONGULDAK | R89: ARAÇ | AB89: 88
B90: Aylar | E90: =_xlfn.IFS(ANASAYFA!G25="","0",ANASAYFA!G25=KAYNAK!$F$16,0,ANASAYFA!G25=KAYNAK!$F$17,ANASAYFA!L25,ANASAYFA!G25=KAYNAK!$F$18,ANASAYFA!L25,ANASAYFA!G25=KAYNAK!$F$21,0,ANASAYFA!G25=KAYNAK!$F$22,0,ANASAYFA!G25=KAYNAK!$F$19,ANASAYFA!L25,ANASAYFA!G25=KAYNAK!$F$23,ANASAYFA!L25,ANASAYFA!G25=KAYNAK!$F$20,0) -> 0 | P90: AKSARAY | R90: ARAKLI | AB90: 89
B91: 1 | E91: =_xlfn.IFS(ANASAYFA!G26="","0",ANASAYFA!G26=KAYNAK!$F$16,0,ANASAYFA!G26=KAYNAK!$F$17,ANASAYFA!L26,ANASAYFA!G26=KAYNAK!$F$18,ANASAYFA!L26,ANASAYFA!G26=KAYNAK!$F$21,0,ANASAYFA!G26=KAYNAK!$F$22,0,ANASAYFA!G26=KAYNAK!$F$19,ANASAYFA!L26,ANASAYFA!G26=KAYNAK!$F$23,ANASAYFA!L26,ANASAYFA!G26=KAYNAK!$F$20,0) -> 0 | P91: BAYBURT | R91: ARALIK | AB91: 90
E92: =_xlfn.IFS(ANASAYFA!G27="","0",ANASAYFA!G27=KAYNAK!$F$16,0,ANASAYFA!G27=KAYNAK!$F$17,ANASAYFA!L27,ANASAYFA!G27=KAYNAK!$F$18,ANASAYFA!L27,ANASAYFA!G27=KAYNAK!$F$21,0,ANASAYFA!G27=KAYNAK!$F$22,0,ANASAYFA!G27=KAYNAK!$F$19,ANASAYFA!L27,ANASAYFA!G27=KAYNAK!$F$23,ANASAYFA!L27,ANASAYFA!G27=KAYNAK!$F$20,0) -> 0 | P92: KARAMAN | R92: ARAPGİR | AB92: 91
E93: =_xlfn.IFS(ANASAYFA!G28="","0",ANASAYFA!G28=KAYNAK!$F$16,0,ANASAYFA!G28=KAYNAK!$F$17,ANASAYFA!L28,ANASAYFA!G28=KAYNAK!$F$18,ANASAYFA!L28,ANASAYFA!G28=KAYNAK!$F$21,0,ANASAYFA!G28=KAYNAK!$F$22,0,ANASAYFA!G28=KAYNAK!$F$19,ANASAYFA!L28,ANASAYFA!G28=KAYNAK!$F$23,ANASAYFA!L28,ANASAYFA!G28=KAYNAK!$F$20,0) -> 0 | P93: KIRIKKALE | R93: ARDAHAN MERKEZ | AB93: 92
E94: =_xlfn.IFS(ANASAYFA!G29="","0",ANASAYFA!G29=KAYNAK!$F$16,0,ANASAYFA!G29=KAYNAK!$F$17,ANASAYFA!L29,ANASAYFA!G29=KAYNAK!$F$18,ANASAYFA!L29,ANASAYFA!G29=KAYNAK!$F$21,0,ANASAYFA!G29=KAYNAK!$F$22,0,ANASAYFA!G29=KAYNAK!$F$19,ANASAYFA!L29,ANASAYFA!G29=KAYNAK!$F$23,ANASAYFA!L29,ANASAYFA!G29=KAYNAK!$F$20,0) -> 0 | P94: BATMAN | R94: ARDANUÇ | AB94: 93
G95: MÜDÜR | H95: =ANASAYFA!T10:V10 -> 0 | I95: 0 | J95: 0 | P95: ŞIRNAK | R95: ARDEŞEN | AB95: 94
G96: MÜDÜR YARD | H96: =ANASAYFA!T11:V11 -> 0 | I96: 0 | J96: 0 | P96: BARTIN | R96: ARGUVAN | AB96: 95
P97: ARDAHAN | R97: ARHAVİ | AB97: 96
H98: =ANASAYFA!Q11:R11 -> Müdür Yardımcısı | I98: 0 | P98: IĞDIR | R98: ARICAK | AB98: 97
H99: =ANASAYFA!Q10:R10 -> Okul Müdürü | I99: 0 | P99: YALOVA | R99: ARİFİYE | AB99: 98
P100: KARABÜK | R100: ARMUTLU | AB100: 99
H101: =CONCATENATE(H96) -> 0 | I101: =CONCATENATE(H98) -> Müdür Yardımcısı | P101: KİLİS | R101: ARNAVUTKÖY | AB101: 100
H102: =CONCATENATE(H95) -> 0 | I102: =H99 -> Okul Müdürü | P102: OSMANİYE | R102: ARPAÇAY | AB102: 101
P103: DÜZCE | R103: ARSİN | AB103: 102
R104: ARTOVA | AB104: 103
F105: NET TUTAR | G105: İban birleştir | L105: =CONCATENATE(ANASAYFA!T9:V9) -> KÖYCEĞİZ ANAOKULU | R105: ARTVİN MERKEZ | AB105: 104
E106: 1 | F106: =CONCATENATE(BORDRO!X17) ->  | L106: =UPPER(L105) -> KÖYCEĞİZ ANAOKULU | N106: =CONCATENATE(ANASAYFA!U8:V8) -> KÖYCEĞİZ | P106: 2023 | R106: ASARCIK | AB106: 105
E107: 2 | N107: =CONCATENATE(ANASAYFA!R8:R8) -> İLÇESİ | P107: 2024 | R107: ASLANAPA | AB107: 106
E108: 3 | P108: 2025 | R108: AŞKALE | AB108: 107
E109: 4 | P109: 2026 | R109: ATABEY | AB109: 108
E110: 5 | P110: 2027 | R110: ATAKUM | AB110: 109
E111: 6 | P111: 2028 | R111: ATAŞEHİR | AB111: 110
E112: 7 | P112: 2029 | R112: ATKARACALAR | AB112: 111
E113: 8 | P113: 2030 | R113: AVANOS | AB113: 112
E114: 9 | P114: =VALUE(ANASAYFA!K30) -> 0 | R114: AVCILAR | AB114: 113
E115: 10 | R115: AYANCIK | AB115: 114
E116: 11 | P116: =VALUE(ANASAYFA!D11) -> 0 | R116: AYAŞ | AB116: 115
E117: 12 | R117: AYBASTI | AB117: 116
E118: 13 | R118: AYDIN MERKEZ | AB118: 117
E119: 14 | R119: AYDINCIK | AB119: 118
E120: 15 | R120: AYDINCIK | AB120: 119
R121: AYDINLAR | AB121: 120
R122: AYDINTEPE | AB122: 121
F123: iban tek | J123: iban birleşik | R123: AYRANCI | AB123: 122
F124: =CONCATENATE(ANASAYFA!Q15) ->  | J124: =CONCATENATE(F124) ->  | R124: AYVACIK | AB124: 123
F125: =CONCATENATE(ANASAYFA!Q16:S16) ->  | J125: =CONCATENATE(F125) ->  | R125: AYVACIK | AB125: 124
F126: =CONCATENATE(ANASAYFA!Q17:S17) ->  | R126: AYVALIK | AB126: 125
F127: =CONCATENATE(ANASAYFA!Q18:S18) ->  | R127: AZDAVAY | AB127: 126
F128: =CONCATENATE(ANASAYFA!Q19:S19) ->  | R128: BABADAĞ | AB128: 127
F129: =CONCATENATE(ANASAYFA!Q20:S20) ->  | R129: BABAESKİ | AB129: 128
F130: =CONCATENATE(ANASAYFA!Q21:S21) ->  | R130: BAFRA | AB130: 129
F131: =CONCATENATE(ANASAYFA!Q22:S22) ->  | R131: BAĞCILAR | AB131: 130
F132: =CONCATENATE(ANASAYFA!Q23:S23) ->  | R132: BAĞLAR | AB132: 131
F133: =CONCATENATE(ANASAYFA!Q24:S24) ->  | R133: BAHÇE | AB133: 132
F134: =CONCATENATE(ANASAYFA!Q25:S25) ->  | R134: BAHÇELİEVLER | AB134: 133
F135: =CONCATENATE(ANASAYFA!#REF!) ->  | R135: BAHÇESARAY | AB135: 134
F136: =CONCATENATE(ANASAYFA!Q27:S27) ->  | R136: BAHŞİLİ | AB136: 135
F137: =CONCATENATE(ANASAYFA!Q28:S28) ->  | R137: BAKIRKÖY | AB137: 136
F138: =CONCATENATE(ANASAYFA!Q29:S29) ->  | R138: BAKLAN | AB138: 137
F139: =CONCATENATE(ANASAYFA!Q30:S30) ->  | R139: BALÂ | AB139: 138
F140: =CONCATENATE(ANASAYFA!Q31:S31) ->  | R140: BALÇOVA | AB140: 139
F141: =CONCATENATE(ANASAYFA!#REF!) ->  | R141: BALIKESİR MERKEZ | AB141: 140
R142: BALIŞEYH | AB142: 141
F143: =ANASAYFA!Q15 -> 0 | R143: BALYA | AB143: 142
R144: BANAZ | AB144: 143
R145: BANDIRMA | AB145: 144
R146: BARTIN MERKEZ | AB146: 145
R147: BASKİL | AB147: 146
R148: BAŞAKŞEHİR | AB148: 147
R149: BAŞÇİFTLİK | AB149: 148
R150: BAŞİSKELE | AB150: 149
G151: OKUL MÜDÜRÜ | R151: BAŞKALE | AB151: 150
R152: BAŞMAKÇI
R153: BAŞYAYLA
R154: BATMAN MERKEZ
R155: BATTALGAZİ
R156: BAYAT
H157: maaş katsayı | J157: gösterge | L157: brüt aylık | N157: brüt asgari ücret | R157: BAYAT
H158: =ANASAYFA!B6:C6 -> 0.509796 | I158: 0 | J158: =ANASAYFA!H6:I6 -> 140 | K158: 0 | L158: =ANASAYFA!D6:E6 -> 4843.062 | M158: 0 | N158: =ANASAYFA!F6:G6 -> 13414.5 | O158: 0 | R158: BAYBURT MERKEZ
H159: =CONCATENATE(H158) -> 0,509796 | J159: =CONCATENATE(J158) -> 140 | L159: 4843,062 | N159: 13414,5 | R159: BAYINDIR
R160: BAYKAN
H161: en düşük | J161: en yüksek | L161: belirlenen | R161: BAYRAKLI
H162: =ANASAYFA!F11:G11 -> 7.137144 | I162: 0 | J162: =ANASAYFA!H11:I11 -> 17.84286 | K162: 0 | L162: =ANASAYFA!J11:K11 -> 0 | M162: 0 | R162: BAYRAMİÇ
H163: =CONCATENATE(H162) -> 7,137144 | J163: =CONCATENATE(J162) -> 17,84286 | L163: 0 | R163: BAYRAMÖREN
R164: BAYRAMPAŞA
H165: öğr sayı | J165: şube sayı | L165: iş günü | N165: toplam saat | P165: ücret toplam | R165: BEKİLLİ
H166: =ANASAYFA!Q6:Q6 -> 0 | J166: =ANASAYFA!#REF! ->  | L166: =G6 -> 0 | N166: =ANASAYFA!D11:E11 -> 0 | O166: 0 | P166: =G10 -> 0 | R166: BELEN
H167: =CONCATENATE(H166) -> 0 | J167: =CONCATENATE(J166) ->  | L167: 0 | N167: 0 | O167: =CONCATENATE(O166) -> 0 | P167: =CONCATENATE(P166) -> 0 | R167: BERGAMA
R168: BESNİ
R169: BEŞİKDÜZÜ
R170: BEŞİKTAŞ
L171: pay | N171: gerçekleşen | R171: BEŞİRİ
L172: =BORDRO!G4:H4 -> 0 | M172: 0 | N172: =BORDRO!I4:J4 -> 0 | O172: 0 | R172: BEYAĞAÇ
L173: =BORDRO!G5:H5 -> 0 | M173: 0 | N173: =BORDRO!I5:J5 -> 0 | O173: 0 | R173: BEYDAĞ
L174: =BORDRO!G6:H6 -> 0 | M174: 0 | N174: =BORDRO!I6:J6 -> 0 | O174: 0 | R174: BEYKOZ
L175: =BORDRO!G7:H7 -> 0 | M175: 0 | N175: =BORDRO!I7:J7 ->  | O175: 0 | R175: BEYLİKDÜZÜ
L176: =BORDRO!G8:H8 -> 0 | M176: 0 | N176: =BORDRO!I8:J8 -> 0 | O176: 0 | R176: BEYLİKOVA
L177: =BORDRO!G9:H9 -> 0 | M177: 0 | N177: =BORDRO!I9:J9 -> 0 | O177: 0 | R177: BEYOĞLU
F178: işgünü | L178: =BORDRO!G10:H10 -> 0 | M178: 0 | N178: =BORDRO!I10:J10 ->  | O178: 0 | R178: BEYPAZARI
E179: 1 | F179: =VLOOKUP(TAKVİM!$F$2,TAKVİM!$F$6:$I$101,5,0) ->  | L179: pay | R179: BEYŞEHİR
F180: 1 | L180: =ROUNDUP(CONCATENATE(L172),2) -> 0 | N180: =CEILING(CONCATENATE(N172),0.1) -> 0 | R180: BEYTÜŞŞEBAP
F181: 2 | L181: 0 | N181: 0 | R181: BİGA
F182: 3 | L182: 0 | N182: 0 | R182: BİGADİÇ
D183: topla | F183: 4 | L183: 0 | R183: BİLECİK MERKEZ
B184: =SUM(_xlfn.IFS(BORDRO!F17=" ","0",BORDRO!F17=KAYNAK!$G$16,KAYNAK!J75,BORDRO!F17=KAYNAK!$G$17,KAYNAK!N75)) -> 0 | C184: =BORDRO!U17 ->  | D184: =IFERROR(SUM(B184:C184),B184) -> 0 | F184: 5 | L184: 0 | N184: 0 | R184: BİNGÖL MERKEZ
B185: =SUM(_xlfn.IFS(BORDRO!F18=" ","0",BORDRO!F18=KAYNAK!$G$16,KAYNAK!J76,BORDRO!F18=KAYNAK!$G$17,KAYNAK!N76)) -> 0 | C185: =BORDRO!U18 ->  | D185: =IFERROR(SUM(B185:C185),B185) -> 0 | F185: 6 | L185: 0 | N185: 0 | R185: BİRECİK
B186: =SUM(_xlfn.IFS(BORDRO!F19=" ","0",BORDRO!F19=KAYNAK!$G$16,KAYNAK!J77,BORDRO!F19=KAYNAK!$G$17,KAYNAK!N77)) -> 0 | C186: =BORDRO!U19 ->  | D186: 0 | F186: 7 | L186: 0 | R186: BİSMİL
B187: =SUM(_xlfn.IFS(BORDRO!F20=" ","0",BORDRO!F20=KAYNAK!$G$16,KAYNAK!J78,BORDRO!F20=KAYNAK!$G$17,KAYNAK!N78)) -> 0 | C187: =BORDRO!U20 ->  | D187: 0 | F187: 8 | R187: BİTLİS MERKEZ
B188: =SUM(_xlfn.IFS(BORDRO!F21=" ","0",BORDRO!F21=KAYNAK!$G$16,KAYNAK!J79,BORDRO!F21=KAYNAK!$G$17,KAYNAK!N79)) -> 0 | C188: =BORDRO!U21 ->  | D188: 0 | F188: 9 | O188: VERGİ | R188: BODRUM
B189: =SUM(_xlfn.IFS(BORDRO!F22=" ","0",BORDRO!F22=KAYNAK!$G$16,KAYNAK!J80,BORDRO!F22=KAYNAK!$G$17,KAYNAK!N80)) -> 0 | C189: =BORDRO!U22 ->  | D189: 0 | F189: 10 | O189: =BORDRO!X9:X10 -> 0 | R189: BOĞAZKALE
B190: =SUM(_xlfn.IFS(BORDRO!F23=" ","0",BORDRO!F23=KAYNAK!$G$16,KAYNAK!J81,BORDRO!F23=KAYNAK!$G$17,KAYNAK!N81)) -> 0 | C190: =BORDRO!U23 ->  | D190: 0 | F190: 11 | O190: 0 | R190: BOĞAZLIYAN
B191: =SUM(_xlfn.IFS(BORDRO!F24=" ","0",BORDRO!F24=KAYNAK!$G$16,KAYNAK!J82,BORDRO!F24=KAYNAK!$G$17,KAYNAK!N82)) -> 0 | C191: =BORDRO!U24 ->  | D191: 0 | F191: 12 | O191: =CEILING(CONCATENATE(O189),0.11) -> 0 | R191: BOLU MERKEZ
B192: =SUM(_xlfn.IFS(BORDRO!F25=" ","0",BORDRO!F25=KAYNAK!$G$16,KAYNAK!J83,BORDRO!F25=KAYNAK!$G$17,KAYNAK!N83)) -> 0 | C192: =BORDRO!U25 ->  | D192: 0 | F192: 13 | R192: BOLVADİN
B193: =SUM(_xlfn.IFS(BORDRO!F26=" ","0",BORDRO!F26=KAYNAK!$G$16,KAYNAK!J84,BORDRO!F26=KAYNAK!$G$17,KAYNAK!N84)) -> 0 | C193: =BORDRO!U26 ->  | D193: 0 | F193: 14 | R193: BOR
B194: =SUM(_xlfn.IFS(BORDRO!F27=" ","0",BORDRO!F27=KAYNAK!$G$16,KAYNAK!J85,BORDRO!F27=KAYNAK!$G$17,KAYNAK!N85)) -> 0 | C194: =BORDRO!U27 ->  | D194: 0 | F194: 15 | R194: BORÇKA
B195: =SUM(_xlfn.IFS(BORDRO!F28=" ","0",BORDRO!F28=KAYNAK!$G$16,KAYNAK!J86,BORDRO!F28=KAYNAK!$G$17,KAYNAK!N86)) -> 0 | C195: =BORDRO!U28 ->  | D195: 0 | F195: 16 | R195: BORNOVA
B196: =SUM(_xlfn.IFS(BORDRO!F29=" ","0",BORDRO!F29=KAYNAK!$G$16,KAYNAK!J87,BORDRO!F29=KAYNAK!$G$17,KAYNAK!N87)) -> 0 | C196: =BORDRO!U29 ->  | D196: 0 | F196: 17 | R196: BOYABAT
B197: =SUM(_xlfn.IFS(BORDRO!F30=" ","0",BORDRO!F30=KAYNAK!$G$16,KAYNAK!J88,BORDRO!F30=KAYNAK!$G$17,KAYNAK!N88)) -> 0 | C197: =BORDRO!U30 ->  | D197: 0 | F197: 18 | R197: BOZCAADA
B198: =SUM(_xlfn.IFS(BORDRO!F31=" ","0",BORDRO!F31=KAYNAK!$G$16,KAYNAK!J89,BORDRO!F31=KAYNAK!$G$17,KAYNAK!N89)) -> 0 | C198: =BORDRO!U31 ->  | D198: 0 | F198: 19 | R198: BOZDOĞAN
F199: 20 | R199: BOZKIR
F200: 21 | R200: BOZKURT
... 795 more rows

Sheet TAKVİM (hidden)
D1: seçili ay | E1: seçili yıl | F1: birleştir | I1: seçili tarih ilk gün | M1: Seçili Yıl | O1: formül
D2: =ANASAYFA!N6 -> KASIM | E2: =ANASAYFA!N5 -> 2023 | F2: =CONCATENATE(D2,E2) -> KASIM2023 | I2: =VLOOKUP(F2,F6:H101,2,0) -> 2023-11-01 | M2: =ANASAYFA!N5 -> 2023 | O2: =IF($M$2=$L$6,M6,IF($M$2=$L$7,M7,IF($M$2=$L$8,M8,IF($M$2=$L$9,M9,IF($M$2=$L$10,M10,IF($M$2=$L$11,M11,IF($M$2=$L$12,M12,IF($M$2=$L$13,M13)))))))) -> 22
B5: eğer | D5: ay | E5: yıl | F5: birleştir | M5: Ocak | N5: Şubat | O5: mart | P5: Nisan | Q5: Mayıs | R5: Haziran | S5: Temmuz | T5: Ağustos | U5: Eylül | V5: Ekim | W5: Kasım | X5: Aralık
B6: =IF(D6="","",D6) -> Ocak | C6: 1 | D6: Ocak | E6: 2023 | F6: =CONCATENATE(D6,E6) -> Ocak2023 | G6: =DATE(E6,C6,1) -> 2023-01-01 | H6: =EOMONTH(G6,0) -> 2023-01-31 | I6: =NETWORKDAYS(G6,H6) -> 22 | L6: 2023 | M6: 22 | N6: 20 | O6: 23 | P6: 15 | Q6: 23 | R6: 22 | S6: 21 | T6: 23 | U6: 21 | V6: 22 | W6: 17 | X6: 21
B7: =IF(D7="","",D7) -> Şubat | C7: 2 | D7: Şubat | E7: 2023 | F7: =CONCATENATE(D7,E7) -> Şubat2023 | G7: =DATE(E7,C7,1) -> 2023-02-01 | H7: =EOMONTH(G7,0) -> 2023-02-28 | I7: =NETWORKDAYS(G7,H7) -> 20 | L7: 2024 | M7: 23 | N7: 21 | O7: 21 | P7: 17 | Q7: 23 | R7: 20 | S7: 23 | T7: 22 | U7: 21 | V7: 23 | W7: 16 | X7: 22
B8: Mart | C8: 3 | D8: Mart | E8: 2023 | F8: Mart2023 | G8: 2023-03-01 | H8: 2023-03-31 | I8: 23 | L8: 2025 | M8: 23 | N8: 20 | O8: 21 | P8: 17 | Q8: 22 | R8: 21 | S8: 23 | T8: 21 | U8: 22 | V8: 23 | W8: 15 | X8: 23
B9: Nisan | C9: 4 | D9: Nisan | E9: 2023 | F9: Nisan2023 | G9: 2023-04-01 | H9: 2023-04-30 | I9: 20 | L9: 2026 | M9: 22 | N9: 20 | O9: 22 | P9: 17 | Q9: 21 | R9: 22 | S9: 23 | T9: 21 | U9: 22 | V9: 22 | W9: 16 | X9: 23
B10: Mayıs | C10: 5 | D10: Mayıs | E10: 2023 | F10: Mayıs2023 | G10: 2023-05-01 | H10: 2023-05-31 | I10: 23 | L10: 2027 | M10: 21 | N10: 20 | O10: 23 | P10: 17 | Q10: 21 | R10: 22 | S10: 22 | T10: 22 | U10: 22 | V10: 21 | W10: 17 | X10: 23
B11: Haziran | C11: 6 | D11: Haziran | E11: 2023 | F11: Haziran2023 | G11: 2023-06-01 | H11: 2023-06-30 | I11: 22 | L11: 2028 | M11: 21 | N11: 21 | O11: 23 | P11: 15 | Q11: 23 | R11: 22 | S11: 21 | T11: 23 | U11: 21 | V11: 22 | W11: 17 | X11: 21
B12: Temmuz | C12: 7 | D12: Temmuz | E12: 2023 | F12: Temmuz2023 | G12: 2023-07-01 | H12: 2023-07-31 | I12: 21 | L12: 2029 | M12: 23 | N12: 20 | O12: 22 | P12: 16 | Q12: 23 | R12: 21 | S12: 22 | T12: 23 | U12: 20 | V12: 23 | W12: 17 | X12: 21
B13: Ağustos | C13: 8 | D13: Ağustos | E13: 2023 | F13: Ağustos2023 | G13: 2023-08-01 | H13: 2023-08-31 | I13: 23 | L13: 2030 | M13: 23 | N13: 20 | O13: 21 | P13: 17 | Q13: 23 | R13: 20 | S13: 23 | T13: 22 | U13: 21 | V13: 23 | W13: 16 | X13: 22
B14: Eylül | C14: 9 | D14: Eylül | E14: 2023 | F14: Eylül2023 | G14: 2023-09-01 | H14: 2023-09-30 | I14: 21
B15: Ekim | C15: 10 | D15: Ekim | E15: 2023 | F15: Ekim2023 | G15: 2023-10-01 | H15: 2023-10-31 | I15: 22
B16: Kasım | C16: 11 | D16: Kasım | E16: 2023 | F16: Kasım2023 | G16: 2023-11-01 | H16: 2023-11-30 | I16: 22 | M16: Ocak | N16: Şubat | O16: mart | P16: Nisan | Q16: Mayıs | R16: Haziran | S16: Temmuz | T16: Ağustos | U16: Eylül | V16: Ekim | W16: Kasım | X16: Aralık
B17: Aralık | C17: 12 | D17: Aralık | E17: 2023 | F17: Aralık2023 | G17: 2023-12-01 | H17: 2023-12-31 | I17: 21 | L17: fonksiyon | M17: =IF($M$2=$L$6,M6,IF($M$2=$L$7,M7,IF($M$2=$L$8,M8,IF($M$2=$L$9,M9,IF($M$2=$L$10,M10,IF($M$2=$L$11,M11,IF($M$2=$L$12,M12,IF($M$2=$L$13,M13)))))))) -> 22 | N17: =IF($M$2=$L$6,N6,IF($M$2=$L$7,N7,IF($M$2=$L$8,N8,IF($M$2=$L$9,N9,IF($M$2=$L$10,N10,IF($M$2=$L$11,N11,IF($M$2=$L$12,N12,IF($M$2=$L$13,N13)))))))) -> 20 | O17: =IF($M$2=$L$6,O6,IF($M$2=$L$7,O7,IF($M$2=$L$8,O8,IF($M$2=$L$9,O9,IF($M$2=$L$10,O10,IF($M$2=$L$11,O11,IF($M$2=$L$12,O12,IF($M$2=$L$13,O13)))))))) -> 23 | P17: =IF($M$2=$L$6,P6,IF($M$2=$L$7,P7,IF($M$2=$L$8,P8,IF($M$2=$L$9,P9,IF($M$2=$L$10,P10,IF($M$2=$L$11,P11,IF($M$2=$L$12,P12,IF($M$2=$L$13,P13)))))))) -> 15 | Q17: 23 | R17: 22 | S17: 21 | T17: 23 | U17: 21 | V17: 22 | W17: 17 | X17: 21
B18: Ocak | C18: 1 | D18: Ocak | E18: 2024 | F18: Ocak2024 | G18: 2024-01-01 | H18: 2024-01-31 | I18: 23 | M18: 1 | N18: 1 | O18: 1 | P18: 1 | Q18: 1 | R18: 1 | S18: 1 | T18: 1 | U18: 1 | V18: 1 | W18: 1 | X18: 1
B19: Şubat | C19: 2 | D19: Şubat | E19: 2024 | F19: Şubat2024 | G19: 2024-02-01 | H19: 2024-02-29 | I19: 21 | M19: 2 | N19: 2 | O19: 2 | P19: 2 | Q19: 2 | R19: 2 | S19: 2 | T19: 2 | U19: 2 | V19: 2 | W19: 2 | X19: 2
B20: Mart | C20: 3 | D20: Mart | E20: 2024 | F20: Mart2024 | G20: 2024-03-01 | H20: 2024-03-31 | I20: 21 | M20: 3 | N20: 3 | O20: 3 | P20: 3 | Q20: 3 | R20: 3 | S20: 3 | T20: 3 | U20: 3 | V20: 3 | W20: 3 | X20: 3
B21: Nisan | C21: 4 | D21: Nisan | E21: 2024 | F21: Nisan2024 | G21: 2024-04-01 | H21: 2024-04-30 | I21: 22 | M21: 4 | N21: 4 | O21: 4 | P21: 4 | Q21: 4 | R21: 4 | S21: 4 | T21: 4 | U21: 4 | V21: 4 | W21: 4 | X21: 4
B22: Mayıs | C22: 5 | D22: Mayıs | E22: 2024 | F22: Mayıs2024 | G22: 2024-05-01 | H22: 2024-05-31 | I22: 23 | M22: 5 | N22: 5 | O22: 5 | P22: 5 | Q22: 5 | R22: 5 | S22: 5 | T22: 5 | U22: 5 | V22: 5 | W22: 5 | X22: 5
B23: Haziran | C23: 6 | D23: Haziran | E23: 2024 | F23: Haziran2024 | G23: 2024-06-01 | H23: 2024-06-30 | I23: 20 | M23: 6 | N23: 6 | O23: 6 | P23: 6 | Q23: 6 | R23: 6 | S23: 6 | T23: 6 | U23: 6 | V23: 6 | W23: 6 | X23: 6
B24: Temmuz | C24: 7 | D24: Temmuz | E24: 2024 | F24: Temmuz2024 | G24: 2024-07-01 | H24: 2024-07-31 | I24: 23 | M24: 7 | N24: 7 | O24: 7 | P24: 7 | Q24: 7 | R24: 7 | S24: 7 | T24: 7 | U24: 7 | V24: 7 | W24: 7 | X24: 7
B25: Ağustos | C25: 8 | D25: Ağustos | E25: 2024 | F25: Ağustos2024 | G25: 2024-08-01 | H25: 2024-08-31 | I25: 22 | M25: 8 | N25: 8 | O25: 8 | P25: 8 | Q25: 8 | R25: 8 | S25: 8 | T25: 8 | U25: 8 | V25: 8 | W25: 8 | X25: 8
B26: Eylül | C26: 9 | D26: Eylül | E26: 2024 | F26: Eylül2024 | G26: 2024-09-01 | H26: 2024-09-30 | I26: 21 | M26: 9 | N26: 9 | O26: 9 | P26: 9 | Q26: 9 | R26: 9 | S26: 9 | T26: 9 | U26: 9 | V26: 9 | W26: 9 | X26: 9
B27: Ekim | C27: 10 | D27: Ekim | E27: 2024 | F27: Ekim2024 | G27: 2024-10-01 | H27: 2024-10-31 | I27: 23 | M27: 10 | N27: 10 | O27: 10 | P27: 10 | Q27: 10 | R27: 10 | S27: 10 | T27: 10 | U27: 10 | V27: 10 | W27: 10 | X27: 10
B28: Kasım | C28: 11 | D28: Kasım | E28: 2024 | F28: Kasım2024 | G28: 2024-11-01 | H28: 2024-11-30 | I28: 21 | M28: 11 | N28: 11 | O28: 11 | P28: 11 | Q28: 11 | R28: 11 | S28: 11 | T28: 11 | U28: 11 | V28: 11 | W28: 11 | X28: 11
B29: Aralık | C29: 12 | D29: Aralık | E29: 2024 | F29: Aralık2024 | G29: 2024-12-01 | H29: 2024-12-31 | I29: 22 | M29: 12 | N29: 12 | O29: 12 | P29: 12 | Q29: 12 | R29: 12 | S29: 12 | T29: 12 | U29: 12 | V29: 12 | W29: 12 | X29: 12
B30: Ocak | C30: 1 | D30: Ocak | E30: 2025 | F30: Ocak2025 | G30: 2025-01-01 | H30: 2025-01-31 | I30: 23 | M30: 13 | N30: 13 | O30: 13 | P30: 13 | Q30: 13 | R30: 13 | S30: 13 | T30: 13 | U30: 13 | V30: 13 | W30: 13 | X30: 13
B31: Şubat | C31: 2 | D31: Şubat | E31: 2025 | F31: Şubat2025 | G31: 2025-02-01 | H31: 2025-02-28 | I31: 20 | M31: 14 | N31: 14 | O31: 14 | P31: 14 | Q31: 14 | R31: 14 | S31: 14 | T31: 14 | U31: 14 | V31: 14 | W31: 14 | X31: 14
B32: Mart | C32: 3 | D32: Mart | E32: 2025 | F32: Mart2025 | G32: 2025-03-01 | H32: 2025-03-31 | I32: 21 | M32: 15 | N32: 15 | O32: 15 | P32: 15 | Q32: 15 | R32: 15 | S32: 15 | T32: 15 | U32: 15 | V32: 15 | W32: 15 | X32: 15
B33: Nisan | C33: 4 | D33: Nisan | E33: 2025 | F33: Nisan2025 | G33: 2025-04-01 | H33: 2025-04-30 | I33: 22 | M33: 16 | N33: 16 | O33: 16 | P33: 16 | Q33: 16 | R33: 16 | S33: 16 | T33: 16 | U33: 16 | V33: 16 | W33: 16 | X33: 16
B34: Mayıs | C34: 5 | D34: Mayıs | E34: 2025 | F34: Mayıs2025 | G34: 2025-05-01 | H34: 2025-05-31 | I34: 22 | M34: 17 | N34: 17 | O34: 17 | P34: 17 | Q34: 17 | R34: 17 | S34: 17 | T34: 17 | U34: 17 | V34: 17 | W34: 17 | X34: 17
B35: Haziran | C35: 6 | D35: Haziran | E35: 2025 | F35: Haziran2025 | G35: 2025-06-01 | H35: 2025-06-30 | I35: 21 | M35: 18 | N35: 18 | O35: 18 | P35: 18 | Q35: 18 | R35: 18 | S35: 18 | T35: 18 | U35: 18 | V35: 18 | W35: 18 | X35: 18
B36: Temmuz | C36: 7 | D36: Temmuz | E36: 2025 | F36: Temmuz2025 | G36: 2025-07-01 | H36: 2025-07-31 | I36: 23 | M36: 19 | N36: 19 | O36: 19 | P36: 19 | Q36: 19 | R36: 19 | S36: 19 | T36: 19 | U36: 19 | V36: 19 | W36: 19 | X36: 19
B37: Ağustos | C37: 8 | D37: Ağustos | E37: 2025 | F37: Ağustos2025 | G37: 2025-08-01 | H37: 2025-08-31 | I37: 21 | M37: 20 | N37: 20 | O37: 20 | P37: 20 | Q37: 20 | R37: 20 | S37: 20 | T37: 20 | U37: 20 | V37: 20 | W37: 20 | X37: 20
B38: Eylül | C38: 9 | D38: Eylül | E38: 2025 | F38: Eylül2025 | G38: 2025-09-01 | H38: 2025-09-30 | I38: 22 | M38: 21 | N38: 21 | O38: 21 | P38: 21 | Q38: 21 | R38: 21 | S38: 21 | T38: 21 | U38: 21 | V38: 21 | W38: 21 | X38: 21
B39: Ekim | C39: 10 | D39: Ekim | E39: 2025 | F39: Ekim2025 | G39: 2025-10-01 | H39: 2025-10-31 | I39: 23 | M39: 22 | N39: 22 | O39: 22 | P39: 22 | Q39: 22 | R39: 22 | S39: 22 | T39: 22 | U39: 22 | V39: 22 | W39: 22 | X39: 22
B40: Kasım | C40: 11 | D40: Kasım | E40: 2025 | F40: Kasım2025 | G40: 2025-11-01 | H40: 2025-11-30 | I40: 20 | M40: 23 | N40: 23 | O40: 23 | P40: 23 | Q40: 23 | R40: 23 | S40: 23 | T40: 23 | U40: 23 | V40: 23 | W40: 23 | X40: 23
B41: Aralık | C41: 12 | D41: Aralık | E41: 2025 | F41: Aralık2025 | G41: 2025-12-01 | H41: 2025-12-31 | I41: 23 | M41: 24 | N41: 24 | O41: 24 | P41: 24 | Q41: 24 | R41: 24 | S41: 24 | T41: 24 | U41: 24 | V41: 24 | W41: 24 | X41: 24
B42: Ocak | C42: 1 | D42: Ocak | E42: 2026 | F42: Ocak2026 | G42: 2026-01-01 | H42: 2026-01-31 | I42: 22 | M42: 25 | N42: 25 | O42: 25 | P42: 25 | Q42: 25 | R42: 25 | S42: 25 | T42: 25 | U42: 25 | V42: 25 | W42: 25 | X42: 25
B43: Şubat | C43: 2 | D43: Şubat | E43: 2026 | F43: Şubat2026 | G43: 2026-02-01 | H43: 2026-02-28 | I43: 20 | M43: 26 | N43: 26 | O43: 26 | P43: 26 | Q43: 26 | R43: 26 | S43: 26 | T43: 26 | U43: 26 | V43: 26 | W43: 26 | X43: 26
B44: Mart | C44: 3 | D44: Mart | E44: 2026 | F44: Mart2026 | G44: 2026-03-01 | H44: 2026-03-31 | I44: 22 | M44: 27 | N44: 27 | O44: 27 | P44: 27 | Q44: 27 | R44: 27 | S44: 27 | T44: 27 | U44: 27 | V44: 27 | W44: 27 | X44: 27
B45: Nisan | C45: 4 | D45: Nisan | E45: 2026 | F45: Nisan2026 | G45: 2026-04-01 | H45: 2026-04-30 | I45: 22 | M45: 28 | N45: 28 | O45: 28 | P45: 28 | Q45: 28 | R45: 28 | S45: 28 | T45: 28 | U45: 28 | V45: 28 | W45: 28 | X45: 28
B46: Mayıs | C46: 5 | D46: Mayıs | E46: 2026 | F46: Mayıs2026 | G46: 2026-05-01 | H46: 2026-05-31 | I46: 21 | M46: 29 | N46: 29 | O46: 29 | P46: 29 | Q46: 29 | R46: 29 | S46: 29 | T46: 29 | U46: 29 | V46: 29 | W46: 29 | X46: 29
B47: Haziran | C47: 6 | D47: Haziran | E47: 2026 | F47: Haziran2026 | G47: 2026-06-01 | H47: 2026-06-30 | I47: 22 | M47: 30 | N47: 30 | O47: 30 | P47: 30 | Q47: 30 | R47: 30 | S47: 30 | T47: 30 | U47: 30 | V47: 30 | W47: 30 | X47: 30
B48: Temmuz | C48: 7 | D48: Temmuz | E48: 2026 | F48: Temmuz2026 | G48: 2026-07-01 | H48: 2026-07-31 | I48: 23 | M48: 31 | N48: 31 | O48: 31 | P48: 31 | Q48: 31 | R48: 31 | S48: 31 | T48: 31 | U48: 31 | V48: 31 | W48: 31 | X48: 31
B49: Ağustos | C49: 8 | D49: Ağustos | E49: 2026 | F49: Ağustos2026 | G49: 2026-08-01 | H49: 2026-08-31 | I49: 21
B50: Eylül | C50: 9 | D50: Eylül | E50: 2026 | F50: Eylül2026 | G50: 2026-09-01 | H50: 2026-09-30 | I50: 22
B51: Ekim | C51: 10 | D51: Ekim | E51: 2026 | F51: Ekim2026 | G51: 2026-10-01 | H51: 2026-10-31 | I51: 22
B52: Kasım | C52: 11 | D52: Kasım | E52: 2026 | F52: Kasım2026 | G52: 2026-11-01 | H52: 2026-11-30 | I52: 21
B53: Aralık | C53: 12 | D53: Aralık | E53: 2026 | F53: Aralık2026 | G53: 2026-12-01 | H53: 2026-12-31 | I53: 23
B54: Ocak | C54: 1 | D54: Ocak | E54: 2027 | F54: Ocak2027 | G54: 2027-01-01 | H54: 2027-01-31 | I54: 21
B55: Şubat | C55: 2 | D55: Şubat | E55: 2027 | F55: Şubat2027 | G55: 2027-02-01 | H55: 2027-02-28 | I55: 20
B56: Mart | C56: 3 | D56: Mart | E56: 2027 | F56: Mart2027 | G56: 2027-03-01 | H56: 2027-03-31 | I56: 23
B57: Nisan | C57: 4 | D57: Nisan | E57: 2027 | F57: Nisan2027 | G57: 2027-04-01 | H57: 2027-04-30 | I57: 22
B58: Mayıs | C58: 5 | D58: Mayıs | E58: 2027 | F58: Mayıs2027 | G58: 2027-05-01 | H58: 2027-05-31 | I58: 21
B59: Haziran | C59: 6 | D59: Haziran | E59: 2027 | F59: Haziran2027 | G59: 2027-06-01 | H59: 2027-06-30 | I59: 22
B60: Temmuz | C60: 7 | D60: Temmuz | E60: 2027 | F60: Temmuz2027 | G60: 2027-07-01 | H60: 2027-07-31 | I60: 22
B61: Ağustos | C61: 8 | D61: Ağustos | E61: 2027 | F61: Ağustos2027 | G61: 2027-08-01 | H61: 2027-08-31 | I61: 22
B62: Eylül | C62: 9 | D62: Eylül | E62: 2027 | F62: Eylül2027 | G62: 2027-09-01 | H62: 2027-09-30 | I62: 22
B63: Ekim | C63: 10 | D63: Ekim | E63: 2027 | F63: Ekim2027 | G63: 2027-10-01 | H63: 2027-10-31 | I63: 21
B64: Kasım | C64: 11 | D64: Kasım | E64: 2027 | F64: Kasım2027 | G64: 2027-11-01 | H64: 2027-11-30 | I64: 22
B65: Aralık | C65: 12 | D65: Aralık | E65: 2027 | F65: Aralık2027 | G65: 2027-12-01 | H65: 2027-12-31 | I65: 23
B66: Ocak | C66: 1 | D66: Ocak | E66: 2028 | F66: Ocak2028 | G66: 2028-01-01 | H66: 2028-01-31 | I66: 21
B67: Şubat | C67: 2 | D67: Şubat | E67: 2028 | F67: Şubat2028 | G67: 2028-02-01 | H67: 2028-02-29 | I67: 21
B68: Mart | C68: 3 | D68: Mart | E68: 2028 | F68: Mart2028 | G68: 2028-03-01 | H68: 2028-03-31 | I68: 23
B69: Nisan | C69: 4 | D69: Nisan | E69: 2028 | F69: Nisan2028 | G69: 2028-04-01 | H69: 2028-04-30 | I69: 20
B70: Mayıs | C70: 5 | D70: Mayıs | E70: 2028 | F70: Mayıs2028 | G70: 2028-05-01 | H70: 2028-05-31 | I70: 23
B71: =IF(D71="","",D71) -> Haziran | C71: 6 | D71: Haziran | E71: 2028 | F71: =CONCATENATE(D71,E71) -> Haziran2028 | G71: =DATE(E71,C71,1) -> 2028-06-01 | H71: =EOMONTH(G71,0) -> 2028-06-30 | I71: =NETWORKDAYS(G71,H71) -> 22
B72: Temmuz | C72: 7 | D72: Temmuz | E72: 2028 | F72: Temmuz2028 | G72: 2028-07-01 | H72: 2028-07-31 | I72: 21
B73: Ağustos | C73: 8 | D73: Ağustos | E73: 2028 | F73: Ağustos2028 | G73: 2028-08-01 | H73: 2028-08-31 | I73: 23
B74: Eylül | C74: 9 | D74: Eylül | E74: 2028 | F74: Eylül2028 | G74: 2028-09-01 | H74: 2028-09-30 | I74: 21
B75: Ekim | C75: 10 | D75: Ekim | E75: 2028 | F75: Ekim2028 | G75: 2028-10-01 | H75: 2028-10-31 | I75: 22
B76: Kasım | C76: 11 | D76: Kasım | E76: 2028 | F76: Kasım2028 | G76: 2028-11-01 | H76: 2028-11-30 | I76: 22
B77: Aralık | C77: 12 | D77: Aralık | E77: 2028 | F77: Aralık2028 | G77: 2028-12-01 | H77: 2028-12-31 | I77: 21
B78: Ocak | C78: 1 | D78: Ocak | E78: 2029 | F78: Ocak2029 | G78: 2029-01-01 | H78: 2029-01-31 | I78: 23
B79: Şubat | C79: 2 | D79: Şubat | E79: 2029 | F79: Şubat2029 | G79: 2029-02-01 | H79: 2029-02-28 | I79: 20
B80: Mart | C80: 3 | D80: Mart | E80: 2029 | F80: Mart2029 | G80: 2029-03-01 | H80: 2029-03-31 | I80: 22
B81: Nisan | C81: 4 | D81: Nisan | E81: 2029 | F81: Nisan2029 | G81: 2029-04-01 | H81: 2029-04-30 | I81: 21
B82: Mayıs | C82: 5 | D82: Mayıs | E82: 2029 | F82: Mayıs2029 | G82: 2029-05-01 | H82: 2029-05-31 | I82: 23
B83: Haziran | C83: 6 | D83: Haziran | E83: 2029 | F83: Haziran2029 | G83: 2029-06-01 | H83: 2029-06-30 | I83: 21
B84: Temmuz | C84: 7 | D84: Temmuz | E84: 2029 | F84: Temmuz2029 | G84: 2029-07-01 | H84: 2029-07-31 | I84: 22
B85: Ağustos | C85: 8 | D85: Ağustos | E85: 2029 | F85: Ağustos2029 | G85: 2029-08-01 | H85: 2029-08-31 | I85: 23
B86: Eylül | C86: 9 | D86: Eylül | E86: 2029 | F86: Eylül2029 | G86: 2029-09-01 | H86: 2029-09-30 | I86: 20
B87: Ekim | C87: 10 | D87: Ekim | E87: 2029 | F87: Ekim2029 | G87: 2029-10-01 | H87: 2029-10-31 | I87: 23
B88: Kasım | C88: 11 | D88: Kasım | E88: 2029 | F88: Kasım2029 | G88: 2029-11-01 | H88: 2029-11-30 | I88: 22
B89: Aralık | C89: 12 | D89: Aralık | E89: 2029 | F89: Aralık2029 | G89: 2029-12-01 | H89: 2029-12-31 | I89: 21
B90: Ocak | C90: 1 | D90: Ocak | E90: 2030 | F90: Ocak2030 | G90: 2030-01-01 | H90: 2030-01-31 | I90: 23
B91: Şubat | C91: 2 | D91: Şubat | E91: 2030 | F91: Şubat2030 | G91: 2030-02-01 | H91: 2030-02-28 | I91: 20
B92: Mart | C92: 3 | D92: Mart | E92: 2030 | F92: Mart2030 | G92: 2030-03-01 | H92: 2030-03-31 | I92: 21
B93: Nisan | C93: 4 | D93: Nisan | E93: 2030 | F93: Nisan2030 | G93: 2030-04-01 | H93: 2030-04-30 | I93: 22
B94: Mayıs | C94: 5 | D94: Mayıs | E94: 2030 | F94: Mayıs2030 | G94: 2030-05-01 | H94: 2030-05-31 | I94: 23
B95: Haziran | C95: 6 | D95: Haziran | E95: 2030 | F95: Haziran2030 | G95: 2030-06-01 | H95: 2030-06-30 | I95: 20
B96: Temmuz | C96: 7 | D96: Temmuz | E96: 2030 | F96: Temmuz2030 | G96: 2030-07-01 | H96: 2030-07-31 | I96: 23
B97: Ağustos | C97: 8 | D97: Ağustos | E97: 2030 | F97: Ağustos2030 | G97: 2030-08-01 | H97: 2030-08-31 | I97: 22
B98: Eylül | C98: 9 | D98: Eylül | E98: 2030 | F98: Eylül2030 | G98: 2030-09-01 | H98: 2030-09-30 | I98: 21
B99: Ekim | C99: 10 | D99: Ekim | E99: 2030 | F99: Ekim2030 | G99: 2030-10-01 | H99: 2030-10-31 | I99: 23
B100: Kasım | C100: 11 | D100: Kasım | E100: 2030 | F100: Kasım2030 | G100: 2030-11-01 | H100: 2030-11-30 | I100: 21
B101: Aralık | C101: 12 | D101: Aralık | E101: 2030 | F101: Aralık2030 | G101: 2030-12-01 | H101: 2030-12-31 | I101: 22
L104: Ocak | M104: Şubat | N104: mart | O104: Nisan | P104: Mayıs | Q104: Haziran | R104: Temmuz | S104: Ağustos | T104: Eylül | U104: Ekim | V104: Kasım | W104: Aralık | Y104: Ocak | Z104: Şubat | AA104: mart | AB104: Nisan | AC104: Mayıs | AD104: Haziran | AE104: Temmuz | AF104: Ağustos | AG104: Eylül | AH104: Ekim | AI104: Kasım | AJ104: Aralık
L105: =IF(D6="ocak",I6,"") -> 22 | M105: =IF(D6="Şubat",I6,"") ->  | N105: =IF(D6="Mart",I6,"") ->  | O105: =IF(D6="Nisan",I6,"") ->  | P105: =IF(D6="Mayıs",I6,"") ->  | Q105: =IF(D6="Haziran",I6,"") ->  | R105: =IF(D6="Temmuz",I6,"") ->  | S105: =IF(D6="Ağustos",I6,"") ->  | T105: =IF(D6="Eylül",I6,"") ->  | U105: =IF(D6="Ekim",I6,"") ->  | V105: =IF(D6="Kasım",I6,"") ->  | W105: =IF(D6="Aralık",I6,"") ->  | Y105: 22
L106: =IF(D7="ocak",I7,"") ->  | M106: =IF(D7="Şubat",I7,"") -> 20 | N106: =IF(D7="Mart",I7,"") ->  | O106: =IF(D7="Nisan",I7,"") ->  | P106: =IF(D7="Mayıs",I7,"") ->  | Q106: =IF(D7="Haziran",I7,"") ->  | R106: =IF(D7="Temmuz",I7,"") ->  | S106: =IF(D7="Ağustos",I7,"") ->  | T106: =IF(D7="Eylül",I7,"") ->  | U106: =IF(D7="Ekim",I7,"") ->  | V106: =IF(D7="Kasım",I7,"") ->  | W106: =IF(D7="Aralık",I7,"") ->  | Z106: 20
N107: 23 | AA107: 23
O108: 20 | AB108: 20
P109: 23 | AC109: 23
Q110: 22 | AD110: 22
R111: 21
S112: 23 | AF112: 23
T113: 21 | AG113: 21
U114: 22 | AH114: 22
V115: 22 | AI115: 22
W116: 21 | AJ116: 21
L117: 23 | Y117: 23
M118: 21 | Z118: 21
N119: 21 | AA119: 21
O120: 22 | AB120: 22
P121: 23 | AC121: 23
Q122: 20 | AD122: 20
R123: 23
S124: 22 | AF124: 22
T125: 21 | AG125: 21
U126: 23 | AH126: 23
V127: 21 | AI127: 21
W128: 22 | AJ128: 22
L129: 23 | Y129: 23
M130: 20 | Z130: 20
N131: 21 | AA131: 21
O132: 22 | AB132: 22
P133: 22 | AC133: 22
Q134: 21 | AD134: 21
R135: 23
S136: 21 | AF136: 21
T137: 22 | AG137: 22
U138: 23 | AH138: 23
V139: 20 | AI139: 20
W140: 23 | AJ140: 23
L141: 22 | Y141: 22
M142: 20 | Z142: 20
N143: 22 | AA143: 22
O144: 22 | AB144: 22
P145: 21 | AC145: 21
Q146: 22 | AD146: 22
R147: 23
S148: 21 | AF148: 21
T149: 22 | AG149: 22
U150: 22 | AH150: 22
V151: 21 | AI151: 21
W152: 23 | AJ152: 23
L153: 21 | Y153: 21
M154: 20 | Z154: 20
N155: 23 | AA155: 23
O156: 22 | AB156: 22
P157: 21 | AC157: 21
Q158: 22 | AD158: 22
R159: 22
S160: 22 | AF160: 22
T161: 22 | AG161: 22
U162: 21 | AH162: 21
V163: 22 | AI163: 22
W164: 23 | AJ164: 23
L165: 21 | Y165: 21
M166: 21 | Z166: 21
N167: 23 | AA167: 23
O168: 20 | AB168: 20
P169: 23 | AC169: 23
L170: =IF(D71="ocak",I71,"") ->  | M170: =IF(D71="Şubat",I71,"") ->  | N170: =IF(D71="Mart",I71,"") ->  | O170: =IF(D71="Nisan",I71,"") ->  | P170: =IF(D71="Mayıs",I71,"") ->  | Q170: =IF(D71="Haziran",I71,"") -> 22 | R170: =IF(D71="Temmuz",I71,"") ->  | S170: =IF(D71="Ağustos",I71,"") ->  | T170: =IF(D71="Eylül",I71,"") ->  | U170: =IF(D71="Ekim",I71,"") ->  | V170: =IF(D71="Kasım",I71,"") ->  | W170: =IF(D71="Aralık",I71,"") ->  | AD170: 22
R171: 21
S172: 23 | AF172: 23
T173: 21 | AG173: 21
U174: 22 | AH174: 22
V175: 22 | AI175: 22
W176: 21 | AJ176: 21
L177: 23 | Y177: 23
M178: 20 | Z178: 20
N179: 22 | AA179: 22
O180: 21 | AB180: 21
P181: 23 | AC181: 23
Q182: 21 | AD182: 21
R183: 22
S184: 23 | AF184: 23
T185: 20 | AG185: 20
U186: 23 | AH186: 23
V187: 22 | AI187: 22
W188: 21 | AJ188: 21
L189: 23 | Y189: 23
M190: 20 | Z190: 20
N191: 21 | AA191: 21
O192: 22 | AB192: 22
P193: 23 | AC193: 23
Q194: 20 | AD194: 20
R195: 23
S196: 22 | AF196: 22
T197: 21 | AG197: 21
U198: 23 | AH198: 23
V199: 21 | AI199: 21
W200: 22 | AJ200: 22
L234: =IF(D135="ocak",I135,"") ->  | M234: =IF(D135="Şubat",I135,"") ->  | N234: =IF(D135="Mart",I135,"") ->  | O234: =IF(D135="Nisan",I135,"") ->  | P234: =IF(D135="Mayıs",I135,"") ->  | Q234: =IF(D135="Haziran",I135,"") ->  | R234: =IF(D135="Temmuz",I135,"") ->  | S234: =IF(D135="Ağustos",I135,"") ->  | T234: =IF(D135="Eylül",I135,"") ->  | U234: =IF(D135="Ekim",I135,"") ->  | V234: =IF(D135="Kasım",I135,"") ->  | W234: =IF(D135="Aralık",I135,"") -> 
L298: =IF(D199="ocak",I199,"") -> 
L362: =IF(D263="ocak",I263,"") -> 
